Workbook

Sheet CAMP PILOTO EVOL
A1: PARA DESTACAR UM PILOTO MARQUE/DESMARQUE COM UM "X" AO LADO DO NOME E CLIQUE NO BOTÃO. => | D1: OK | F1: OK | H1: OK | J1: OK | L1: OK | N1: OK | P1: OK | R1: OK | T1: OK | V1: OK | X1: DIF. LIDER | Y1: DIF. 5º | Z1: DIF. PRÓXIMO | AA1: OK | AC1: DIF. LIDER | AD1: DIF. 5º | AE1: DIF. PRÓXIMO | AF1: OK | AH1: DIF. LIDER | AI1: DIF. 5º | AJ1: DIF. PRÓXIMO
D2: Etapa 1 11/02/2021 - 20:30 | F2: Etapa 2 27/05/2021 - 21:15 | H2: Etapa 3 17/06/2021 - 20:30 | J2: Etapa 4 01/07/2021 - 20:30 | L2: Etapa 5 15/07/2021 - 20:30 | N2: Etapa 6 22/07/2021 - 20:30 | P2: Etapa 7 12/08/2021 - 20:30 | R2: Etapa 8 26/08/2021 - 21:15 | T2: Etapa 9 16/09/2021 - 20:30 | V2: Etapa 10 14/10/2021 - 20:30 | AA2: Etapa 11 11/11/2021 - 20:30 | AF2: 12ª etapa
B4: Nome do (a) Piloto (a) | D4: PILOTO | E4: PONTOS | F4: PILOTO | G4: PONTOS | H4: PILOTO | I4: PONTOS | J4: PILOTO | K4: PONTOS | L4: PILOTO | M4: PONTOS | N4: PILOTO | O4: PONTOS | P4: PILOTO | Q4: PONTOS | R4: PILOTO | S4: PONTOS | T4: PILOTO | U4: PONTOS | V4: PILOTO | W4: PONTOS | AA4: PILOTO | AB4: PONTOS | AF4: PILOTO | AG4: PONTOS
B5: Adriano Morato | C5: 1 | D5: Cláudio Dumont | E5: 60 | F5: Marcelo Mizrahy | G5: 96 | H5: Ivan Renault | I5: 122 | J5: Ivan Renault | K5: 122 | L5: Ivan Renault | M5: 170 | N5: Marcelo Surerus | O5: 197 | P5: Guilherme Janot | Q5: 246 | R5: Marcelo Surerus | S5: 281 | T5: Marcelo Surerus | U5: 325 | V5: Marcelo Sant'anna | W5: 374 | X5: - | Y5: - | Z5: - | AA5: Marcelo Sant'anna | AB5: 434 | AC5: - | AD5: - | AE5: - | AF5: Marcelo Sant'anna | AG5: 480 | AH5: - | AI5: - | AJ5: -
B6: Alberto Branco | C6: 2 | D6: Rodrigo Rotheia | E6: 55 | F6: Guilherme Janot | G6: 94 | H6: Cláudio Dumont | I6: 115 | J6: Cláudio Dumont | K6: 115 | L6: Cláudio Dumont | M6: 161 | N6: Guilherme Janot | O6: 194 | P6: Marcelo Mizrahy | Q6: 229 | R6: Guilherme Janot | S6: 278 | T6: Marcelo Sant'anna | U6: 319 | V6: Marcelo Surerus | W6: 363 | X6: =W5-W6 -> 11 | Y6: - | Z6: =W5-W6 -> 11 | AA6: Marcelo Surerus | AB6: 413 | AC6: =AB5-AB6 -> 21 | AD6: - | AE6: =AB5-AB6 -> 21 | AF6: Marcelo Surerus | AG6: 463 | AH6: =AG5-AG6 -> 17 | AI6: - | AJ6: =AG5-AG6 -> 17
B7: Aldo Silvestre | C7: 3 | D7: Marcelo Mizrahy | E7: 52 | F7: Rodrigo Rotheia | G7: 91 | H7: Rodrigo Rotheia | I7: 103 | J7: Rodrigo Rotheia | K7: 103 | L7: Marcelo Surerus | M7: 153 | N7: Jarbas Reis | O7: 188 | P7: Marcelo Surerus | Q7: 229 | R7: Marcelo Sant'anna | S7: 277 | T7: Guilherme Janot | U7: 318 | V7: Alexandre Melillo | W7: 356 | X7: =W5-W7 -> 18 | Y7: - | Z7: =W6-W7 -> 7 | AA7: Alexandre Melillo | AB7: 402 | AC7: =AB5-AB7 -> 32 | AD7: - | AE7: =AB6-AB7 -> 11 | AF7: Alexandre Melillo | AG7: 457 | AH7: =AG5-AG7 -> 23 | AI7: - | AJ7: =AG6-AG7 -> 6
A8: X | B8: Alexandre Melillo | C8: 4 | D8: Claudio Junqueira | E8: 52 | F8: Alexandre Melillo | G8: 84 | H8: Marcelo Mizrahy | I8: 96 | J8: Marcelo Surerus | K8: 98 | L8: Marcelo Mizrahy | M8: 148 | N8: Alexandre Melillo | O8: 187 | P8: Jarbas Reis | Q8: 228 | R8: Marcelo Mizrahy | S8: 275 | T8: Alexandre Melillo | U8: 314 | V8: Marcelo Mizrahy | W8: 348 | X8: =W5-W8 -> 26 | Y8: - | Z8: =W7-W8 -> 8 | AA8: Marcelo Mizrahy | AB8: 396 | AC8: =AB5-AB8 -> 38 | AD8: - | AE8: =AB7-AB8 -> 6 | AF8: Marcelo Mizrahy | AG8: 448 | AH8: =AG5-AG8 -> 32 | AI8: - | AJ8: =AG7-AG8 -> 9
B9: Anderson Lopes | C9: 5 | D9: Rodrigo Mercadante | E9: 48 | F9: Rodrigo Mercadante | G9: 76 | H9: Marcelo Surerus | I9: 96 | J9: Guilherme Janot | K9: 98 | L9: Guilherme Janot | M9: 144 | N9: Ivan Renault | O9: 177 | P9: Marcelo Sant'anna | Q9: 222 | R9: Jarbas Reis | S9: 272 | T9: Jarbas Reis | U9: 302 | V9: Jarbas Reis | W9: 346 | X9: =W5-W9 -> 28 | Y9: - | Z9: =W8-W9 -> 2 | AA9: Guilherme Janot | AB9: 380 | AC9: =AB5-AB9 -> 54 | AD9: - | AE9: =AB8-AB9 -> 16 | AF9: Marcelo Clemente | AG9: 436 | AH9: =AG5-AG9 -> 44 | AI9: - | AJ9: =AG8-AG9 -> 12
B10: Carlos Eduardo | C10: 6 | D10: Guilherme Janot | E10: 46 | F10: Claudio Junqueira | G10: 72 | H10: Guilherme Janot | I10: 94 | J10: Marcelo Mizrahy | K10: 96 | L10: Rodrigo Rotheia | M10: 139 | N10: Marcelo Mizrahy | O10: 174 | P10: Alexandre Melillo | Q10: 217 | R10: Alexandre Melillo | S10: 259 | T10: Rodrigo Mercadante | U10: 302 | V10: Guilherme Janot | W10: 342 | X10: =W5-W10 -> 32 | Y10: =W9-W10 -> 4 | Z10: =W9-W10 -> 4 | AA10: Jarbas Reis | AB10: 378 | AC10: =AB5-AB10 -> 56 | AD10: =AB9-AB10 -> 2 | AE10: =AB9-AB10 -> 2 | AF10: Jarbas Reis | AG10: 426 | AH10: =AG5-AG10 -> 54 | AI10: =AG9-AG10 -> 10 | AJ10: =AG9-AG10 -> 10
B11: Carlos Filizolla | C11: 7 | D11: Enio Júnior | E11: 44 | F11: Jarbas Reis | G11: 70 | H11: Euclides Almeida | I11: 92 | J11: Carlos Sampaio | K11: 95 | L11: Marcelo Clemente | M11: 134 | N11: Rodrigo Mercadante | O11: 166 | P11: Carlos Sampaio | Q11: 209 | R11: Rodrigo Mercadante | S11: 250 | T11: Marcelo Clemente | U11: 294 | V11: Rodrigo Mercadante | W11: 336 | X11: =W5-W11 -> 38 | Y11: =W9-W11 -> 10 | Z11: =W10-W11 -> 6 | AA11: Marcelo Clemente | AB11: 374 | AC11: =AB5-AB11 -> 60 | AD11: =AB9-AB11 -> 6 | AE11: =AB10-AB11 -> 4 | AF11: Rodrigo Mercadante | AG11: 398 | AH11: =AG5-AG11 -> 82 | AI11: =AG9-AG11 -> 38 | AJ11: =AG10-AG11 -> 28
B12: Carlos Sampaio | C12: 8 | D12: Marcelo Clemente | E12: 42 | F12: Marcelo Surerus | G12: 69 | H12: Alexandre Melillo | I12: 90 | J12: Euclides Almeida | K12: 92 | L12: Alexandre Melillo | M12: 130 | N12: Carlos Sampaio | O12: 163 | P12: Rodrigo Mercadante | Q12: 200 | R12: Marcelo Clemente | S12: 246 | T12: Marcelo Mizrahy | U12: 286 | V12: Marcelo Clemente | W12: 330 | X12: =W5-W12 -> 44 | Y12: =W9-W12 -> 16 | Z12: =W11-W12 -> 6 | AA12: Rodrigo Mercadante | AB12: 370 | AC12: =AB5-AB12 -> 64 | AD12: =AB9-AB12 -> 10 | AE12: =AB11-AB12 -> 4 | AF12: Carlos Eduardo | AG12: 394 | AH12: =AG5-AG12 -> 86 | AI12: =AG9-AG12 -> 42 | AJ12: =AG11-AG12 -> 4
B13: Cláudio Carvalho | C13: 9 | D13: Reinaldo Paoli | E13: 40 | F13: Ivan Renault | G13: 67 | H13: Caetano | I13: 84 | J13: Alexandre Melillo | K13: 90 | L13: Jarbas Reis | M13: 128 | N13: Marcelo Sant'anna | O13: 160 | P13: Carlos Eduardo | Q13: 200 | R13: Carlos Sampaio | S13: 233 | T13: Carlos Eduardo | U13: 276 | V13: Carlos Eduardo | W13: 328 | X13: =W5-W13 -> 46 | Y13: =W9-W13 -> 18 | Z13: =W12-W13 -> 2 | AA13: Carlos Eduardo | AB13: 356 | AC13: =AB5-AB13 -> 78 | AD13: =AB9-AB13 -> 24 | AE13: =AB12-AB13 -> 14 | AF13: Caetano | AG13: 385 | AH13: =AG5-AG13 -> 95 | AI13: =AG9-AG13 -> 51 | AJ13: =AG12-AG13 -> 9
B14: Cláudio Dumont | C14: 10 | D14: Maurílio Carmo | E14: 38 | F14: Reinaldo Paoli | G14: 63 | H14: Rodrigo Mercadante | I14: 76 | J14: Jarbas Reis | K14: 84 | L14: Marcelo Sant'anna | M14: 124 | N14: Marcelo Clemente | O14: 156 | P14: Marcelo Clemente | Q14: 198 | R14: Carlos Eduardo | S14: 230 | T14: Carlos Sampaio | U14: 257 | V14: Caetano | W14: 301 | X14: =W5-W14 -> 73 | Y14: =W9-W14 -> 45 | Z14: =W13-W14 -> 27 | AA14: Caetano | AB14: 353 | AC14: =AB5-AB14 -> 81 | AD14: =AB9-AB14 -> 27 | AE14: =AB13-AB14 -> 3 | AF14: Carlos Sampaio | AG14: 371 | AH14: =AG5-AG14 -> 109 | AI14: =AG9-AG14 -> 65 | AJ14: =AG13-AG14 -> 14
B15: Claudio Junqueira | C15: 11 | D15: Alexandre Melillo | E15: 36 | F15: Enio Júnior | G15: 61 | H15: Marcelo Clemente | I15: 74 | J15: Enio Júnior | K15: 82 | L15: Carlos Sampaio | M15: 121 | N15: Carlos Eduardo | O15: 156 | P15: Ivan Renault | Q15: 177 | R15: Caetano | S15: 201 | T15: Caetano | U15: 253 | V15: Carlos Sampaio | W15: 289 | X15: =W5-W15 -> 85 | Y15: =W9-W15 -> 57 | Z15: =W14-W15 -> 12 | AA15: Carlos Sampaio | AB15: 329 | AC15: =AB5-AB15 -> 105 | AD15: =AB9-AB15 -> 51 | AE15: =AB14-AB15 -> 24 | AF15: Guilherme Janot | AG15: 370 | AH15: =AG5-AG15 -> 110 | AI15: =AG9-AG15 -> 66 | AJ15: =AG14-AG15 -> 1
A16: X | B16: Marcelo Clemente | C16: 12 | D16: Carlos Eduardo | E16: 34 | F16: Cláudio Dumont | G16: 60 | H16: Carlos Eduardo | I16: 74 | J16: Carlos Eduardo | K16: 82 | L16: Rodrigo Mercadante | M16: 118 | N16: Cláudio Dumont | O16: 151 | P16: Ricardo Vidigal | Q16: 170 | R16: Gijo | S16: 198 | T16: Ricardo Araújo | U16: 243 | V16: Gijo | W16: 274 | X16: =W5-W16 -> 100 | Y16: =W9-W16 -> 72 | Z16: =W15-W16 -> 15 | AA16: Enio Júnior | AB16: 295 | AC16: =AB5-AB16 -> 139 | AD16: =AB9-AB16 -> 85 | AE16: =AB15-AB16 -> 34 | AF16: Enio Júnior | AG16: 329 | AH16: =AG5-AG16 -> 151 | AI16: =AG9-AG16 -> 107 | AJ16: =AG15-AG16 -> 41
B17: Ederson Lopes | C17: 13 | D17: Anderson Lopes | E17: 32 | F17: Carlos Eduardo | G17: 60 | H17: Jarbas Reis | I17: 70 | J17: Rodrigo Mercadante | K17: 76 | L17: Carlos Eduardo | M17: 116 | N17: Rodrigo Rotheia | O17: 150 | P17: Euclides Almeida | Q17: 161 | R17: Euclides Almeida | S17: 189 | T17: Gijo | U17: 234 | V17: Enio Júnior | W17: 259 | X17: =W5-W17 -> 115 | Y17: =W9-W17 -> 87 | Z17: =W16-W17 -> 15 | AA17: Ricardo Araújo | AB17: 283 | AC17: =AB5-AB17 -> 151 | AD17: =AB9-AB17 -> 97 | AE17: =AB16-AB17 -> 12 | AF17: Ricardo Araújo | AG17: 315 | AH17: =AG5-AG17 -> 165 | AI17: =AG9-AG17 -> 121 | AJ17: =AG16-AG17 -> 14
B18: Edson Ribeiro | C18: 14 | D18: Gustavo Mourão | E18: 30 | F18: Carlos Sampaio | G18: 56 | H18: Reinaldo Paoli | I18: 66 | J18: Marcelo Sant'anna | K18: 74 | L18: Euclides Almeida | M18: 103 | N18: Ricardo Vidigal | O18: 148 | P18: Gijo | Q18: 158 | R18: Ricardo Araújo | S18: 183 | T18: Michel Abouud | U18: 211 | V18: Ricardo Araújo | W18: 257 | X18: =W5-W18 -> 117 | Y18: =W9-W18 -> 89 | Z18: =W17-W18 -> 2 | AA18: Euclides Almeida | AB18: 275 | AC18: =AB5-AB18 -> 159 | AD18: =AB9-AB18 -> 105 | AE18: =AB17-AB18 -> 8 | AF18: Euclides Almeida | AG18: 315 | AH18: =AG5-AG18 -> 165 | AI18: =AG9-AG18 -> 121 | AJ18: =AG17-AG18 -> 0
B19: Emerson Lopes | C19: 15 | D19: Marcelo Santiago | E19: 28 | F19: Roberto Veloso | G19: 53 | H19: Enio Júnior | I19: 63 | J19: Marcelo Clemente | K19: 74 | L19: Ricardo Vidigal | M19: 102 | N19: Euclides Almeida | O19: 139 | P19: Enio Júnior | Q19: 154 | R19: Maurílio Carmo | S19: 180 | T19: Enio Júnior | U19: 209 | V19: Euclides Almeida | W19: 245 | X19: =W5-W19 -> 129 | Y19: =W9-W19 -> 101 | Z19: =W18-W19 -> 12 | AA19: Gijo | AB19: 264 | AC19: =AB5-AB19 -> 170 | AD19: =AB9-AB19 -> 116 | AE19: =AB18-AB19 -> 11 | AF19: Morvan | AG19: 277 | AH19: =AG5-AG19 -> 203 | AI19: =AG9-AG19 -> 159 | AJ19: =AG18-AG19 -> 38
B20: Enio Júnior | C20: 16 | D20: Michel Abouud | E20: 26 | F20: Euclides Almeida | G20: 53 | H20: Morvan | I20: 62 | J20: Leodegario Junior | K20: 70 | L20: Enio Júnior | M20: 101 | N20: Caetano | O20: 138 | P20: Ricardo Araújo | Q20: 153 | R20: Michel Abouud | S20: 179 | T20: Morvan | U20: 202 | V20: Michel Abouud | W20: 227 | X20: =W5-W20 -> 147 | Y20: =W9-W20 -> 119 | Z20: =W19-W20 -> 18 | AA20: Marcelo Santiago | AB20: 262 | AC20: =AB5-AB20 -> 172 | AD20: =AB9-AB20 -> 118 | AE20: =AB19-AB20 -> 2 | AF20: Marcelo Santiago | AG20: 273 | AH20: =AG5-AG20 -> 207 | AI20: =AG9-AG20 -> 163 | AJ20: =AG19-AG20 -> 4
B21: Euclides Almeida | C21: 17 | D21: Morvan | E21: 24 | F21: Léo Marx | G21: 52 | H21: Marcelo Sant'anna | I21: 58 | J21: Reinaldo Paoli | K21: 66 | L21: Roberto Veloso | M21: 99 | N21: Enio Júnior | O21: 135 | P21: Morvan | Q21: 151 | R21: Ivan Renault | S21: 177 | T21: Maurílio Carmo | U21: 200 | V21: Marcelo Santiago | W21: 220 | X21: =W5-W21 -> 154 | Y21: =W9-W21 -> 126 | Z21: =W20-W21 -> 7 | AA21: Rodrigo Rotheia | AB21: 233 | AC21: =AB5-AB21 -> 201 | AD21: =AB9-AB21 -> 147 | AE21: =AB20-AB21 -> 29 | AF21: Rodrigo Rotheia | AG21: 259 | AH21: =AG5-AG21 -> 221 | AI21: =AG9-AG21 -> 177 | AJ21: =AG20-AG21 -> 14
B22: Fernando Santos | C22: 18 | D22: Cláudio Carvalho | E22: 23 | F22: Maurílio Carmo | G22: 51 | H22: Jorge Prado | I22: 58 | J22: Morvan | K22: 62 | L22: Leodegario Junior | M22: 94 | N22: Morvan | O22: 123 | P22: Rodrigo Rotheia | Q22: 150 | R22: Morvan | S22: 174 | T22: Euclides Almeida | U22: 199 | V22: Morvan | W22: 219 | X22: =W5-W22 -> 155 | Y22: =W9-W22 -> 127 | Z22: =W21-W22 -> 1 | AA22: Morvan | AB22: 233 | AC22: =AB5-AB22 -> 201 | AD22: =AB9-AB22 -> 147 | AE22: =AB21-AB22 -> 0 | AF22: Gijo | AG22: 254 | AH22: =AG5-AG22 -> 226 | AI22: =AG9-AG22 -> 182 | AJ22: =AG21-AG22 -> 5
B23: Gijo | C23: 19 | D23: Marcelo Sant'anna | E23: 22 | F23: Marcelo Santiago | G23: 46 | H23: Carlos Sampaio | I23: 57 | J23: Ricardo Vidigal | K23: 60 | L23: Ricardo Araújo | M23: 91 | N23: Ricardo Araújo | O23: 121 | P23: Marcelo Santiago | Q23: 150 | R23: Enio Júnior | S23: 171 | T23: Marcelo Santiago | U23: 190 | V23: Maurílio Carmo | W23: 215 | X23: =W5-W23 -> 159 | Y23: =W9-W23 -> 131 | Z23: =W22-W23 -> 4 | AA23: Maurílio Carmo | AB23: 229 | AC23: =AB5-AB23 -> 205 | AD23: =AB9-AB23 -> 151 | AE23: =AB22-AB23 -> 4 | AF23: Maurílio Carmo | AG23: 219 | AH23: =AG5-AG23 -> 261 | AI23: =AG9-AG23 -> 217 | AJ23: =AG22-AG23 -> 35
B24: Guilherme Janot | C24: 20 | D24: Fernando Santos | E24: 21 | F24: Marcelo Sant'anna | G24: 46 | H24: Ricardo Vidigal | I24: 56 | J24: Jorge Prado | K24: 58 | L24: Gijo | M24: 89 | N24: Gijo | O24: 110 | P24: Michel Abouud | Q24: 145 | R24: Ricardo Vidigal | S24: 170 | T24: Leodegario Junior | U24: 178 | V24: Rodrigo Rotheia | W24: 178 | X24: =W5-W24 -> 196 | Y24: =W9-W24 -> 168 | Z24: =W23-W24 -> 37 | AA24: Michel Abouud | AB24: 217 | AC24: =AB5-AB24 -> 217 | AD24: =AB9-AB24 -> 163 | AE24: =AB23-AB24 -> 12 | AF24: Leodegario Junior | AG24: 210 | AH24: =AG5-AG24 -> 270 | AI24: =AG9-AG24 -> 226 | AJ24: =AG23-AG24 -> 9
B25: Gustavo Mourão | C25: 21 | D25: Jarbas Reis | E25: 20 | F25: Jorge Prado | G25: 44 | H25: Roberto Veloso | I25: 53 | J25: Roberto Veloso | K25: 53 | L25: Caetano | M25: 86 | N25: Leodegario Junior | O25: 109 | P25: Maurílio Carmo | Q25: 144 | R25: Marcelo Santiago | S25: 168 | T25: Ivan Renault | U25: 177 | V25: Ivan Renault | W25: 177 | X25: =W5-W25 -> 197 | Y25: =W9-W25 -> 169 | Z25: =W24-W25 -> 1 | AA25: Ivan Renault | AB25: 177 | AC25: =AB5-AB25 -> 257 | AD25: =AB9-AB25 -> 203 | AE25: =AB24-AB25 -> 40 | AF25: Michel Abouud | AG25: 207 | AH25: =AG5-AG25 -> 273 | AI25: =AG9-AG25 -> 229 | AJ25: =AG24-AG25 -> 3
B26: Henrique Castilho | C26: 22 | D26: Gijo | E26: 19 | F26: Marcelo Clemente | G26: 42 | H26: Léo Marx | I26: 52 | J26: Caetano | K26: 52 | L26: Morvan | M26: 85 | N26: Michel Abouud | O26: 109 | P26: Cláudio Dumont | Q26: 141 | R26: Leodegario Junior | S26: 152 | T26: Ricardo Vidigal | U26: 170 | V26: Ricardo Vidigal | W26: 170 | X26: =W5-W26 -> 204 | Y26: =W9-W26 -> 176 | Z26: =W25-W26 -> 7 | AA26: Leodegario Junior | AB26: 174 | AC26: =AB5-AB26 -> 260 | AD26: =AB9-AB26 -> 206 | AE26: =AB25-AB26 -> 3 | AF26: Ivan Renault | AG26: 177 | AH26: =AG5-AG26 -> 303 | AI26: =AG9-AG26 -> 259 | AJ26: =AG25-AG26 -> 30
B27: Ivan Renault | C27: 23 | D27: Léo Marx | E27: 18 | F27: Anderson Lopes | G27: 40 | H27: Maurílio Carmo | I27: 51 | J27: Léo Marx | K27: 52 | L27: Michel Abouud | M27: 85 | N27: Maurílio Carmo | O27: 106 | P27: Caetano | Q27: 141 | R27: Rodrigo Rotheia | S27: 150 | T27: Roberto Veloso | U27: 159 | V27: Leodegario Junior | W27: 168 | X27: =W5-W27 -> 206 | Y27: =W9-W27 -> 178 | Z27: =W26-W27 -> 2 | AA27: Ricardo Vidigal | AB27: 170 | AC27: =AB5-AB27 -> 264 | AD27: =AB9-AB27 -> 210 | AE27: =AB26-AB27 -> 4 | AF27: Ricardo Vidigal | AG27: 170 | AH27: =AG5-AG27 -> 310 | AI27: =AG9-AG27 -> 266 | AJ27: =AG26-AG27 -> 7
B28: Jader Abreu | C28: 24 | D28: Marcelo Surerus | E28: 17 | F28: Morvan | G28: 40 | H28: Gijo | I28: 49 | J28: Maurílio Carmo | K28: 51 | L28: Maurílio Carmo | M28: 83 | N28: Marcelo Santiago | O28: 100 | P28: Leodegario Junior | Q28: 130 | R28: Edson Ribeiro | S28: 135 | T28: Edson Ribeiro | U28: 156 | V28: Edson Ribeiro | W28: 164 | X28: =W5-W28 -> 210 | Y28: =W9-W28 -> 182 | Z28: =W27-W28 -> 4 | AA28: Edson Ribeiro | AB28: 154 | AC28: =AB5-AB28 -> 280 | AD28: =AB9-AB28 -> 226 | AE28: =AB27-AB28 -> 16 | AF28: Edson Ribeiro | AG28: 144 | AH28: =AG5-AG28 -> 336 | AI28: =AG9-AG28 -> 292 | AJ28: =AG27-AG28 -> 26
B29: Jarbas Reis | C29: 25 | D29: Carlos Sampaio | E29: 16 | F29: Aldo Silvestre | G29: 38 | H29: Marcelo Santiago | I29: 46 | J29: Gijo | K29: 51 | L29: Jorge Prado | M29: 72 | N29: Roberto Veloso | O29: 89 | P29: Roberto Veloso | Q29: 125 | R29: Cláudio Dumont | S29: 131 | T29: Rodrigo Rotheia | U29: 150 | V29: Roberto Veloso | W29: 149 | X29: =W5-W29 -> 225 | Y29: =W9-W29 -> 197 | Z29: =W28-W29 -> 15 | AA29: Roberto Veloso | AB29: 139 | AC29: =AB5-AB29 -> 295 | AD29: =AB9-AB29 -> 241 | AE29: =AB28-AB29 -> 15 | AF29: Carlos Filizolla | AG29: 132 | AH29: =AG5-AG29 -> 348 | AI29: =AG9-AG29 -> 304 | AJ29: =AG28-AG29 -> 12
B30: Jorge Prado | C30: 26 | D30: Leodegario Junior | E30: 15 | F30: Gustavo Mourão | G30: 37 | H30: Anderson Lopes | I30: 41 | J30: Marcelo Santiago | K30: 50 | L30: Marcelo Santiago | M30: 72 | N30: Edson Ribeiro | O30: 74 | P30: Edson Ribeiro | Q30: 97 | R30: Roberto Veloso | S30: 125 | T30: Cláudio Dumont | U30: 121 | V30: Carlos Filizolla | W30: 112 | X30: =W5-W30 -> 262 | Y30: =W9-W30 -> 234 | Z30: =W29-W30 -> 37 | AA30: Carlos Filizolla | AB30: 102 | AC30: =AB5-AB30 -> 332 | AD30: =AB9-AB30 -> 278 | AE30: =AB29-AB30 -> 37 | AF30: Roberto Veloso | AG30: 129 | AH30: =AG5-AG30 -> 351 | AI30: =AG9-AG30 -> 307 | AJ30: =AG29-AG30 -> 3
B31: Léo Marx | C31: 27 | D31: Jorge Prado | E31: 14 | F31: Caetano | G31: 32 | H31: Michel Abouud | I31: 38 | J31: Michel Abouud | K31: 49 | L31: Edson Ribeiro | M31: 60 | N31: Jorge Prado | O31: 72 | P31: Carlos Filizolla | Q31: 83 | R31: Carlos Filizolla | S31: 86 | T31: Carlos Filizolla | U31: 109 | V31: Cláudio Dumont | W31: 111 | X31: =W5-W31 -> 263 | Y31: =W9-W31 -> 235 | Z31: =W30-W31 -> 1 | AA31: Cláudio Dumont | AB31: 101 | AC31: =AB5-AB31 -> 333 | AD31: =AB9-AB31 -> 279 | AE31: =AB30-AB31 -> 1 | AF31: Cláudio Dumont | AG31: 91 | AH31: =AG5-AG31 -> 389 | AI31: =AG9-AG31 -> 345 | AJ31: =AG30-AG31 -> 38
B32: Leodegario Junior | C32: 28 | D32: Alberto Branco | E32: 13 | F32: Michel Abouud | G32: 32 | H32: Claudio Junqueira | I32: 37 | J32: Ricardo Araújo | K32: 45 | L32: Reinaldo Paoli | M32: 56 | N32: Carlos Filizolla | O32: 59 | P32: Henrique Castilho | Q32: 77 | R32: Henrique Castilho | S32: 77 | T32: Jader Abreu | U32: 82 | V32: Jader Abreu | W32: 82 | X32: =W5-W32 -> 292 | Y32: =W9-W32 -> 264 | Z32: =W31-W32 -> 29 | AA32: Jader Abreu | AB32: 82 | AC32: =AB5-AB32 -> 352 | AD32: =AB9-AB32 -> 298 | AE32: =AB31-AB32 -> 19 | AF32: Jader Abreu | AG32: 72 | AH32: =AG5-AG32 -> 408 | AI32: =AG9-AG32 -> 364 | AJ32: =AG31-AG32 -> 19
A33: X | B33: Marcelo Mizrahy | C33: 29 | D33: Adriano Morato | E33: 12 | F33: Gijo | G33: 30 | H33: Jader Abreu | I33: 35 | J33: Jader Abreu | K33: 41 | L33: Jader Abreu | M33: 55 | N33: Henrique Castilho | O33: 59 | P33: Jorge Prado | Q33: 72 | R33: Jorge Prado | S33: 72 | T33: Reinaldo Paoli | U33: 72 | V33: Reinaldo Paoli | W33: 62 | X33: =W5-W33 -> 312 | Y33: =W9-W33 -> 284 | Z33: =W32-W33 -> 20 | AA33: Henrique Castilho | AB33: 57 | AC33: =AB5-AB33 -> 377 | AD33: =AB9-AB33 -> 323 | AE33: =AB32-AB33 -> 25 | AF33: Henrique Castilho | AG33: 47 | AH33: =AG5-AG33 -> 433 | AI33: =AG9-AG33 -> 389 | AJ33: =AG32-AG33 -> 25
B34: Marcelo Pinheiro | C34: 30 | D34: Euclides Almeida | E34: 11 | F34: Cláudio Carvalho | G34: 26 | H34: Ricardo Araújo | I34: 34 | J34: Claudio Junqueira | K34: 37 | L34: Henrique Castilho | M34: 53 | N34: Léo Marx | O34: 52 | P34: Claudio Junqueira | Q34: 67 | R34: Jader Abreu | S34: 71 | T34: Henrique Castilho | U34: 67 | V34: Henrique Castilho | W34: 57 | X34: =W5-W34 -> 317 | Y34: =W9-W34 -> 289 | Z34: =W33-W34 -> 5 | AA34: Reinaldo Paoli | AB34: 52 | AC34: =AB5-AB34 -> 382 | AD34: =AB9-AB34 -> 328 | AE34: =AB33-AB34 -> 5 | AF34: Reinaldo Paoli | AG34: 42 | AH34: =AG5-AG34 -> 438 | AI34: =AG9-AG34 -> 394 | AJ34: =AG33-AG34 -> 5
A35: X | B35: Marcelo Sant'anna | C35: 31 | D35: Marcelo Pinheiro | E35: 10 | F35: Leodegario Junior | G35: 25 | H35: Aldo Silvestre | I35: 28 | J35: Carlos Filizolla | K35: 31 | L35: Léo Marx | M35: 52 | N35: Ederson Lopes | O35: 52 | P35: Alberto Branco | Q35: 54 | R35: Claudio Junqueira | S35: 67 | T35: Jorge Prado | U35: 62 | V35: Jorge Prado | W35: 52 | X35: =W5-W35 -> 322 | Y35: =W9-W35 -> 294 | Z35: =W34-W35 -> 5 | AA35: Léo Marx | AB35: 42 | AC35: =AB5-AB35 -> 392 | AD35: =AB9-AB35 -> 338 | AE35: =AB34-AB35 -> 10 | AF35: Jorge Prado | AG35: 42 | AH35: =AG5-AG35 -> 438 | AI35: =AG9-AG35 -> 394 | AJ35: =AG34-AG35 -> 0
B36: Marcelo Santiago | C36: 32 | D36: Ederson Lopes | E36: 9 | F36: Ricardo Vidigal | G36: 22 | H36: Cláudio Carvalho | I36: 28 | J36: Cláudio Carvalho | K36: 28 | L36: Carlos Filizolla | M36: 47 | N36: Alberto Branco | O36: 50 | P36: Léo Marx | Q36: 52 | R36: Reinaldo Paoli | S36: 59 | T36: Claudio Junqueira | U36: 57 | V36: Claudio Junqueira | W36: 47 | X36: =W5-W36 -> 327 | Y36: =W9-W36 -> 299 | Z36: =W35-W36 -> 5 | AA36: Jorge Prado | AB36: 42 | AC36: =AB5-AB36 -> 392 | AD36: =AB9-AB36 -> 338 | AE36: =AB35-AB36 -> 0 | AF36: Alberto Branco | AG36: 34 | AH36: =AG5-AG36 -> 446 | AI36: =AG9-AG36 -> 402 | AJ36: =AG35-AG36 -> 8
A37: X | B37: Marcelo Surerus | C37: 33 | D37: Roberto Veloso | E37: 8 | F37: Fernando Santos | G37: 21 | H37: Henrique Castilho | I37: 25 | J37: Henrique Castilho | K37: 25 | L37: Ederson Lopes | M37: 43 | N37: Reinaldo Paoli | O37: 46 | P37: Jader Abreu | Q37: 45 | R37: Alberto Branco | S37: 54 | T37: Léo Marx | U37: 52 | V37: Alberto Branco | W37: 44 | X37: =W5-W37 -> 330 | Y37: =W9-W37 -> 302 | Z37: =W36-W37 -> 3 | AA37: Claudio Junqueira | AB37: 37 | AC37: =AB5-AB37 -> 397 | AD37: =AB9-AB37 -> 343 | AE37: =AB36-AB37 -> 5 | AF37: Léo Marx | AG37: 32 | AH37: =AG5-AG37 -> 448 | AI37: =AG9-AG37 -> 404 | AJ37: =AG36-AG37 -> 2
B38: Maurílio Carmo | C38: 34 | D38: Ivan Renault | E38: 7 | F38: Ricardo Araújo | G38: 21 | H38: Leodegario Junior | I38: 25 | J38: Alberto Branco | K38: 25 | L38: Alberto Branco | M38: 42 | N38: Jader Abreu | O38: 45 | P38: Ederson Lopes | Q38: 42 | R38: Léo Marx | S38: 52 | T38: Alberto Branco | U38: 44 | V38: Léo Marx | W38: 42 | X38: =W5-W38 -> 332 | Y38: =W9-W38 -> 304 | Z38: =W37-W38 -> 2 | AA38: Alberto Branco | AB38: 34 | AC38: =AB5-AB38 -> 400 | AD38: =AB9-AB38 -> 346 | AE38: =AB37-AB38 -> 3 | AF38: Claudio Junqueira | AG38: 27 | AH38: =AG5-AG38 -> 453 | AI38: =AG9-AG38 -> 409 | AJ38: =AG37-AG38 -> 5
B39: Michel Abouud | C39: 35 | D39: Henrique Castilho | E39: 6 | F39: Henrique Castilho | G39: 21 | H39: Alberto Branco | I39: 21 | J39: Ederson Lopes | K39: 23 | L39: Marcelo Pinheiro | M39: 35 | N39: Marcelo Pinheiro | O39: 25 | P39: Gustavo Mourão | Q39: 37 | R39: Ederson Lopes | S39: 32 | T39: Ederson Lopes | U39: 22 | V39: Marcelo Pinheiro | W39: 20 | X39: =W5-W39 -> 354 | Y39: =W9-W39 -> 326 | Z39: =W38-W39 -> 22 | AA39: Marcelo Pinheiro | AB39: 10 | AC39: =AB5-AB39 -> 424 | AD39: =AB9-AB39 -> 370 | AE39: =AB38-AB39 -> 24 | AF39: Aldo Silvestre | AG39: 0 | AH39: =AG5-AG39 -> 480 | AI39: =AG9-AG39 -> 436 | AJ39: =AG38-AG39 -> 27
B40: Morvan | C40: 36 | D40: Carlos Filizolla | E40: 1 | F40: Ederson Lopes | G40: 18 | H40: Gustavo Mourão | I40: 20 | J40: Anderson Lopes | K40: 22 | L40: Claudio Junqueira | M40: 27 | N40: Claudio Junqueira | O40: 17 | P40: Reinaldo Paoli | Q40: 36 | R40: Gustavo Mourão | S40: 27 | T40: Gustavo Mourão | U40: 17 | V40: Ederson Lopes | W40: 12 | X40: =W5-W40 -> 362 | Y40: =W9-W40 -> 334 | Z40: =W39-W40 -> 8 | AA40: Ederson Lopes | AB40: 2 | AC40: =AB5-AB40 -> 432 | AD40: =AB9-AB40 -> 378 | AE40: =AB39-AB40 -> 8 | AF40: Anderson Lopes | AG40: 0 | AH40: =AG5-AG40 -> 480 | AI40: =AG9-AG40 -> 436 | AJ40: =AG39-AG40 -> 0
B41: Paulo Feitosa | C41: 37 | D41: Aldo Silvestre | E41: 0 | F41: Alberto Branco | G41: 17 | H41: Ederson Lopes | I41: 18 | J41: Gustavo Mourão | K41: 20 | L41: Cláudio Carvalho | M41: 18 | N41: Gustavo Mourão | O41: 17 | P41: Marcelo Pinheiro | Q41: 35 | R41: Marcelo Pinheiro | S41: 25 | T41: Marcelo Pinheiro | U41: 15 | V41: Gustavo Mourão | W41: 7 | X41: =W5-W41 -> 367 | Y41: =W9-W41 -> 339 | Z41: =W40-W41 -> 5 | AA41: Aldo Silvestre | AB41: 0 | AC41: =AB5-AB41 -> 434 | AD41: =AB9-AB41 -> 380 | AE41: =AB40-AB41 -> 2 | AF41: Gustavo Mourão | AG41: 0 | AH41: =AG5-AG41 -> 480 | AI41: =AG9-AG41 -> 436 | AJ41: =AG40-AG41 -> 0
B42: Rafael Cançado | C42: 38 | D42: Edson Ribeiro | E42: 0 | F42: Marcelo Pinheiro | G42: 15 | H42: Carlos Filizolla | I42: 17 | J42: Marcelo Pinheiro | K42: 17 | L42: Anderson Lopes | M42: 12 | N42: Fernando Santos | O42: 11 | P42: Cláudio Carvalho | Q42: 11 | R42: Cláudio Carvalho | S42: 11 | T42: Cláudio Carvalho | U42: 1 | V42: Aldo Silvestre | W42: 0 | X42: =W5-W42 -> 374 | Y42: =W9-W42 -> 346 | Z42: =W41-W42 -> 7 | AA42: Anderson Lopes | AB42: 0 | AC42: =AB5-AB42 -> 434 | AD42: =AB9-AB42 -> 380 | AE42: =AB41-AB42 -> 0 | AF42: Cláudio Carvalho | AG42: 0 | AH42: =AG5-AG42 -> 480 | AI42: =AG9-AG42 -> 436 | AJ42: =AG41-AG42 -> 0
B43: Reinaldo Paoli | C43: 39 | D43: Emerson Lopes | E43: 0 | F43: Jader Abreu | G43: 14 | H43: Edson Ribeiro | I43: 12 | J43: Edson Ribeiro | K43: 12 | L43: Fernando Santos | M43: 11 | N43: Cláudio Carvalho | O43: 8 | P43: Fernando Santos | Q43: 11 | R43: Fernando Santos | S43: 1 | T43: Aldo Silvestre | U43: 0 | V43: Anderson Lopes | W43: 0 | X43: =W5-W43 -> 374 | Y43: =W9-W43 -> 346 | Z43: =W42-W43 -> 0 | AA43: Gustavo Mourão | AB43: 0 | AC43: =AB5-AB43 -> 434 | AD43: =AB9-AB43 -> 380 | AE43: =AB42-AB43 -> 0 | AF43: Fernando Santos | AG43: 0 | AH43: =AG5-AG43 -> 480 | AI43: =AG9-AG43 -> 436 | AJ43: =AG42-AG43 -> 0
B44: Roberto Veloso | C44: 40 | D44: Jader Abreu | E44: 0 | F44: Carlos Filizolla | G44: 13 | H44: Fernando Santos | I44: 11 | J44: Fernando Santos | K44: 11 | L44: Gustavo Mourão | M44: 10 | N44: Anderson Lopes | O44: 2 | P44: Aldo Silvestre | Q44: 0 | R44: Aldo Silvestre | S44: 0 | T44: Anderson Lopes | U44: 0 | V44: Cláudio Carvalho | W44: 0 | X44: =W5-W44 -> 374 | Y44: =W9-W44 -> 346 | Z44: =W43-W44 -> 0 | AA44: Cláudio Carvalho | AB44: 0 | AC44: =AB5-AB44 -> 434 | AD44: =AB9-AB44 -> 380 | AE44: =AB43-AB44 -> 0 | AF44: Ederson Lopes | AG44: 0 | AH44: =AG5-AG44 -> 480 | AI44: =AG9-AG44 -> 436 | AJ44: =AG43-AG44 -> 0
B45: Rodrigo Mercadante | C45: 41 | D45: Paulo Feitosa | E45: 0 | F45: Edson Ribeiro | G45: 9 | H45: Marcelo Pinheiro | I45: 11 | J45: Aldo Silvestre | K45: 0 | L45: Aldo Silvestre | M45: 0 | N45: Aldo Silvestre | O45: 0 | P45: Anderson Lopes | Q45: 0 | R45: Anderson Lopes | S45: 0 | T45: Fernando Santos | U45: 0 | V45: Fernando Santos | W45: 0 | X45: =W5-W45 -> 374 | Y45: =W9-W45 -> 346 | Z45: =W44-W45 -> 0 | AA45: Fernando Santos | AB45: 0 | AC45: =AB5-AB45 -> 434 | AD45: =AB9-AB45 -> 380 | AE45: =AB44-AB45 -> 0 | AF45: Marcelo Pinheiro | AG45: 0 | AH45: =AG5-AG45 -> 480 | AI45: =AG9-AG45 -> 436 | AJ45: =AG44-AG45 -> 0
B46: Rodrigo Rotheia | C46: 42 | D46: Rafael Cançado | E46: 0 | F46: Adriano Morato | G46: 2 | H46: Adriano Morato | I46: 0 | J46: Adriano Morato | K46: 0 | L46: Adriano Morato | M46: 0 | N46: Adriano Morato | O46: 0 | P46: Adriano Morato | Q46: 0 | R46: Adriano Morato | S46: 0 | T46: Adriano Morato | U46: 0 | V46: Adriano Morato | W46: 0 | X46: =W5-W46 -> 374 | Y46: =W9-W46 -> 346 | Z46: =W45-W46 -> 0 | AA46: Adriano Morato | AB46: 0 | AC46: =AB5-AB46 -> 434 | AD46: =AB9-AB46 -> 380 | AE46: =AB45-AB46 -> 0 | AF46: Adriano Morato | AG46: 0 | AH46: =AG5-AG46 -> 480 | AI46: =AG9-AG46 -> 436 | AJ46: =AG45-AG46 -> 0
B47: Ricardo Araújo | C47: 43 | D47: Ricardo Araújo | E47: 0 | F47: Emerson Lopes | G47: 0 | H47: Emerson Lopes | I47: 0 | J47: Emerson Lopes | K47: 0 | L47: Emerson Lopes | M47: 0 | N47: Emerson Lopes | O47: 0 | P47: Emerson Lopes | Q47: 0 | R47: Emerson Lopes | S47: 0 | T47: Emerson Lopes | U47: 0 | V47: Emerson Lopes | W47: 0 | X47: =W5-W47 -> 374 | Y47: =W9-W47 -> 346 | Z47: =W46-W47 -> 0 | AA47: Emerson Lopes | AB47: 0 | AC47: =AB5-AB47 -> 434 | AD47: =AB9-AB47 -> 380 | AE47: =AB46-AB47 -> 0 | AF47: Emerson Lopes | AG47: 0 | AH47: =AG5-AG47 -> 480 | AI47: =AG9-AG47 -> 436 | AJ47: =AG46-AG47 -> 0
B48: Ricardo Vidigal | C48: 44 | D48: Ricardo Vidigal | E48: 0 | F48: Paulo Feitosa | G48: 0 | H48: Paulo Feitosa | I48: 0 | J48: Paulo Feitosa | K48: 0 | L48: Paulo Feitosa | M48: 0 | N48: Paulo Feitosa | O48: 0 | P48: Paulo Feitosa | Q48: 0 | R48: Paulo Feitosa | S48: 0 | T48: Paulo Feitosa | U48: 0 | V48: Paulo Feitosa | W48: 0 | X48: =W5-W48 -> 374 | Y48: =W9-W48 -> 346 | Z48: =W47-W48 -> 0 | AA48: Paulo Feitosa | AB48: 0 | AC48: =AB5-AB48 -> 434 | AD48: =AB9-AB48 -> 380 | AE48: =AB47-AB48 -> 0 | AF48: Paulo Feitosa | AG48: 0 | AH48: =AG5-AG48 -> 480 | AI48: =AG9-AG48 -> 436 | AJ48: =AG47-AG48 -> 0
B49: Caetano | C49: 45 | D49: Caetano | E49: 0 | F49: Rafael Cançado | G49: 0 | H49: Rafael Cançado | I49: 0 | J49: Rafael Cançado | K49: 0 | L49: Rafael Cançado | M49: 0 | N49: Rafael Cançado | O49: 0 | P49: Rafael Cançado | Q49: 0 | R49: Rafael Cançado | S49: 0 | T49: Rafael Cançado | U49: 0 | V49: Rafael Cançado | W49: 0 | X49: =W6-W49 -> 363 | Y49: =W10-W49 -> 342 | Z49: =W48-W49 -> 0 | AA49: Rafael Cançado | AB49: 0 | AC49: =AB6-AB49 -> 413 | AD49: =AB10-AB49 -> 378 | AE49: =AB48-AB49 -> 0 | AF49: Rafael Cançado | AG49: 0 | AH49: =AG6-AG49 -> 463 | AI49: =AG10-AG49 -> 426 | AJ49: =AG48-AG49 -> 0

Sheet CAMP EQUIPE EVOL
A1: 2021 | B1: OK | D1: OK | F1: OK | H1: OK | J1: OK | L1: OK | N1: OK | P1: OK | R1: OK | T1: OK | X1: DIF. LIDER | Y1: DIF. 3º | Z1: DIF. PRÓXIMO | AC1: DIF. LIDER | AD1: DIF. 3º | AE1: DIF. PRÓXIMO
B2: Etapa 1 11/02/2021 - 20:30 | D2: Etapa 2 27/05/2021 - 21:15 | F2: Etapa 3 17/06/2021 - 20:30 | H2: Etapa 4 01/07/2021 - 20:30 | J2: Etapa 5 15/07/2021 - 20:30 | L2: Etapa 6 22/07/2021 - 20:30 | N2: Etapa 7 12/08/2021 - 20:30 | P2: Etapa 8 26/08/2021 - 21:15 | R2: 9ª etapa | T2: 10ª etapa | V2: 11ª etapa | AA2: 12ª etapa
R3: 00:00:00 | T3: 00:00:00 | V3: 00:00:00 | AA3: 00:00:00
A4: EQUIPES | B4: EQUIPES | C4: Pontuação Geral | D4: EQUIPES | E4: Pontuação Geral | F4: EQUIPES | G4: Pontuação Geral | H4: EQUIPES | I4: Pontuação Geral | J4: EQUIPES | K4: Pontuação Geral | L4: EQUIPES | M4: Pontuação Geral | N4: Posição | O4: Pontos | P4: Posição | Q4: Pontos | R4: Posição | S4: Pontos | T4: Posição | U4: Pontos | V4: Posição | W4: Pontos | AA4: Posição | AB4: Pontos
A5: 1º | B5: AST ESTRUTURAS | C5: 118 | D5: TIRA GRILOS | E5: 212 | F5: LQN1 | G5: 241 | H5: TIRA GRILOS | I5: 277 | J5: TIRA GRILOS | K5: 373 | L5: LQN1 | M5: 491 | N5: VIAKART | O5: 612 | P5: VIAKART | Q5: 728 | R5: VIAKART | S5: 834 | T5: VIAKART | U5: 926 | V5: VIAKART | W5: 1016 | X5: - | Y5: - | Z5: - | AA5: VIAKART | AB5: 1108 | AC5: - | AD5: - | AE5: -
B6: Cláudio Dumont | C6: 60 | D6: Léo Marx | E6: 52 | F6: Ricardo Araújo | G6: 0 | H6: Léo Marx | I6: 34 | J6: Léo Marx | K6: 34 | L6: Ricardo Araújo | M6: 76 | N6: Jarbas Reis | O6: 228 | P6: Jarbas Reis | Q6: 272 | R6: Jarbas Reis | S6: 302 | T6: Jarbas Reis | U6: 302 | V6: Jarbas Reis | W6: 322 | X6: - | Y6: - | Z6: - | AA6: Jarbas Reis | AB6: 370 | AC6: - | AD6: - | AE6: -
B7: Marcelo Mizrahy | C7: 52 | D7: Ivan Renault | E7: 60 | F7: Roberto Veloso | G7: 101 | H7: Ivan Renault | I7: 110 | J7: Ivan Renault | K7: 170 | L7: Roberto Veloso | M7: 101 | N7: Guilherme Janot | O7: 200 | P7: Guilherme Janot | Q7: 232 | R7: Guilherme Janot | S7: 272 | T7: Guilherme Janot | U7: 296 | V7: Guilherme Janot | W7: 342 | X7: - | Y7: - | Z7: - | AA7: Guilherme Janot | AB7: 342 | AC7: - | AD7: - | AE7: -
B8: Carlos Filizolla | C8: 0 | D8: Carlos Sampaio | E8: 56 | F8: Ricardo Vidigal | G8: 56 | H8: Carlos Sampaio | I8: 95 | J8: Carlos Sampaio | K8: 112 | L8: Ricardo Vidigal | M8: 144 | N8: Morvan | O8: 77 | P8: Morvan | Q8: 77 | R8: Morvan | S8: 77 | T8: Morvan | U8: 115 | V8: Morvan | W8: 139 | X8: - | Y8: - | Z8: - | AA8: Morvan | AB8: 183 | AC8: - | AD8: - | AE8: -
B9: Henrique Castilho | C9: 6 | D9: Enio Júnior | E9: 44 | F9: Caetano | G9: 84 | H9: Enio Júnior | I9: 38 | J9: Enio Júnior | K9: 57 | L9: Caetano | M9: 170 | N9: Gijo | O9: 107 | P9: Gijo | Q9: 147 | R9: Gijo | S9: 183 | T9: Gijo | U9: 213 | V9: Gijo | W9: 213 | X9: - | Y9: - | Z9: - | AA9: Gijo | AB9: 213 | AC9: - | AD9: - | AE9: -
B10: XXXXXXXX | C10: 0 | D10: XXXXXXXX | E10: 0 | F10: XXXXXXXX | G10: 0 | H10: XXXXXXXX | I10: 0 | J10: XXXXXXXX | K10: 0 | L10: XXXXXXXX | M10: 0 | N10: XXXXXXXX | O10: 0 | P10: XXXXXXXX | Q10: 0 | R10: XXXXXXXX | S10: 0 | T10: XXXXXXXX | U10: 0 | V10: XXXXXXXX | W10: 0 | X10: - | Y10: - | Z10: - | AA10: XXXXXXXX | AB10: 0 | AC10: - | AD10: - | AE10: -
A11: 2º | B11: SANTIAGO | C11: 116 | D11: VIAKART | E11: 204 | F11: TIRA GRILOS | G11: 232 | H11: LQN1 | I11: 241 | J11: LQN1 | K11: 363 | L11: VIAKART | M11: 472 | N11: LQN1 | O11: 577 | P11: LQN1 | Q11: 667 | R11: LQN1 | S11: 813 | T11: LQN1 | U11: 875 | V11: LQN1 | W11: 953 | X11: =W$5-W11 -> 63 | Y11: - | Z11: =W5-W11 -> 63 | AA11: LQN1 | AB11: 988 | AC11: =AB$5-AB11 -> 120 | AD11: - | AE11: =AB5-AB11 -> 120
B12: Alexandre Melillo | C12: 36 | D12: Jarbas Reis | E12: 70 | F12: Léo Marx | G12: 34 | H12: Ricardo Araújo | I12: 0 | J12: Ricardo Araújo | K12: 46 | L12: Jarbas Reis | M12: 188 | N12: Ricardo Araújo | O12: 100 | P12: Ricardo Araújo | Q12: 130 | R12: Ricardo Araújo | S12: 190 | T12: Ricardo Araújo | U12: 204 | V12: Ricardo Araújo | W12: 230 | X12: - | Y12: - | Z12: - | AA12: Ricardo Araújo | AB12: 262 | AC12: - | AD12: - | AE12: -
B13: Claudio Junqueira | C13: 52 | D13: Guilherme Janot | E13: 94 | F13: Ivan Renault | G13: 122 | H13: Roberto Veloso | I13: 101 | J13: Roberto Veloso | K13: 101 | L13: Guilherme Janot | M13: 148 | N13: Roberto Veloso | O13: 137 | P13: Roberto Veloso | Q13: 137 | R13: Roberto Veloso | S13: 171 | T13: Roberto Veloso | U13: 171 | V13: Roberto Veloso | W13: 171 | X13: - | Y13: - | Z13: - | AA13: Roberto Veloso | AB13: 171 | AC13: - | AD13: - | AE13: -
B14: Marcelo Santiago | C14: 28 | D14: Morvan | E14: 40 | F14: Carlos Sampaio | G14: 57 | H14: Ricardo Vidigal | I14: 56 | J14: Ricardo Vidigal | K14: 98 | L14: Morvan | M14: 77 | N14: Ricardo Vidigal | O14: 170 | P14: Ricardo Vidigal | Q14: 170 | R14: Ricardo Vidigal | S14: 170 | T14: Ricardo Vidigal | U14: 170 | V14: Ricardo Vidigal | W14: 170 | X14: - | Y14: - | Z14: - | AA14: Ricardo Vidigal | AB14: 170 | AC14: - | AD14: - | AE14: -
B15: Emerson Lopes | C15: 0 | D15: Gijo | E15: 0 | F15: Enio Júnior | G15: 19 | H15: Caetano | I15: 84 | J15: Caetano | K15: 118 | L15: Gijo | M15: 59 | N15: Caetano | O15: 170 | P15: Caetano | Q15: 230 | R15: Caetano | S15: 282 | T15: Caetano | U15: 330 | V15: Caetano | W15: 382 | X15: - | Y15: - | Z15: - | AA15: Caetano | AB15: 385 | AC15: - | AD15: - | AE15: -
B16: XXXXXXXX | C16: 0 | D16: XXXXXXXX | E16: 0 | F16: XXXXXXXX | G16: 0 | H16: XXXXXXXX | I16: 0 | J16: XXXXXXXX | K16: 0 | L16: XXXXXXXX | M16: 0 | N16: XXXXXXXX | O16: 0 | P16: XXXXXXXX | Q16: 0 | R16: XXXXXXXX | S16: 0 | T16: XXXXXXXX | U16: 0 | V16: XXXXXXXX | W16: 0 | X16: - | Y16: - | Z16: - | AA16: XXXXXXXX | AB16: 0 | AC16: - | AD16: - | AE16: -
A17: 3º | B17: GUI FIGUEIREDO | C17: 109 | D17: SANTIAGO | E17: 202 | F17: AST ESTRUTURAS | G17: 207 | H17: AST ESTRUTURAS | I17: 238 | J17: AST ESTRUTURAS | K17: 337 | L17: TIRA GRILOS | M17: 451 | N17: TIRA GRILOS | O17: 527 | P17: GUI FIGUEIREDO | Q17: 596 | R17: GUI FIGUEIREDO | S17: 689 | T17: GUI FIGUEIREDO | U17: 749 | V17: TIRA GRILOS | W17: 812 | X17: =W$5-W17 -> 204 | Y17: - | Z17: =W11-W17 -> 141 | AA17: TIRA GRILOS | AB17: 888 | AC17: =AB$5-AB17 -> 220 | AD17: - | AE17: =AB11-AB17 -> 100
B18: Rodrigo Mercadante | C18: 48 | D18: Alexandre Melillo | E18: 84 | F18: Cláudio Dumont | G18: 115 | H18: Cláudio Dumont | I18: 106 | J18: Cláudio Dumont | K18: 125 | L18: Léo Marx | M18: 52 | N18: Léo Marx | O18: 52 | P18: Rodrigo Mercadante | Q18: 250 | R18: Rodrigo Mercadante | S18: 302 | T18: Rodrigo Mercadante | U18: 330 | V18: Léo Marx | W18: 52 | X18: - | Y18: - | Z18: - | AA18: Léo Marx | AB18: 52 | AC18: - | AD18: - | AE18: -
B19: Maurílio Carmo | C19: 38 | D19: Claudio Junqueira | E19: 72 | F19: Marcelo Mizrahy | G19: 70 | H19: Marcelo Mizrahy | I19: 96 | J19: Marcelo Mizrahy | K19: 148 | L19: Ivan Renault | M19: 170 | N19: Ivan Renault | O19: 170 | P19: Maurílio Carmo | Q19: 182 | R19: Maurílio Carmo | S19: 202 | T19: Maurílio Carmo | U19: 215 | V19: Ivan Renault | W19: 170 | X19: - | Y19: - | Z19: - | AA19: Ivan Renault | AB19: 170 | AC19: - | AD19: - | AE19: -
B20: Cláudio Carvalho | C20: 23 | D20: Marcelo Santiago | E20: 46 | F20: Carlos Filizolla | G20: 16 | H20: Carlos Filizolla | I20: 30 | J20: Carlos Filizolla | K20: 30 | L20: Carlos Sampaio | M20: 128 | N20: Carlos Sampaio | O20: 170 | P20: Cláudio Carvalho | Q20: 23 | R20: Cláudio Carvalho | S20: 23 | T20: Cláudio Carvalho | U20: 23 | V20: Carlos Sampaio | W20: 312 | X20: - | Y20: - | Z20: - | AA20: Carlos Sampaio | AB20: 354 | AC20: - | AD20: - | AE20: -
B21: Edson Ribeiro | C21: 0 | D21: Emerson Lopes | E21: 0 | F21: Henrique Castilho | G21: 6 | H21: Henrique Castilho | I21: 6 | J21: Henrique Castilho | K21: 34 | L21: Enio Júnior | M21: 101 | N21: Enio Júnior | O21: 135 | P21: Edson Ribeiro | Q21: 141 | R21: Edson Ribeiro | S21: 162 | T21: Edson Ribeiro | U21: 181 | V21: Enio Júnior | W21: 278 | X21: - | Y21: - | Z21: - | AA21: Enio Júnior | AB21: 312 | AC21: - | AD21: - | AE21: -
B22: XXXXXXXX | C22: 0 | D22: XXXXXXXX | E22: 0 | F22: XXXXXXXX | G22: 0 | H22: XXXXXXXX | I22: 0 | J22: XXXXXXXX | K22: 0 | L22: XXXXXXXX | M22: 0 | N22: XXXXXXXX | O22: 0 | P22: XXXXXXXX | Q22: 0 | R22: XXXXXXXX | S22: 0 | T22: XXXXXXXX | U22: 0 | V22: XXXXXXXX | W22: 0 | X22: - | Y22: - | Z22: - | AA22: XXXXXXXX | AB22: 0 | AC22: - | AD22: - | AE22: -
A23: 4º | B23: CLEMENTE CAR | C23: 100 | D23: DELCAR | E23: 192 | F23: VIAKART | G23: 206 | H23: VIAKART | I23: 219 | J23: VIAKART | K23: 324 | L23: AST ESTRUTURAS | M23: 426 | N23: AST ESTRUTURAS | O23: 523 | P23: AST ESTRUTURAS | Q23: 594 | R23: TIRA GRILOS | S23: 654 | T23: TIRA GRILOS | U23: 736 | V23: GUI FIGUEIREDO | W23: 808 | X23: =W$5-W23 -> 208 | Y23: =W$17-W23 -> 4 | Z23: =W17-W23 -> 4 | AA23: ALPHA ENGENHARIA | AB23: 867 | AC23: =AB$5-AB23 -> 241 | AD23: =AB$17-AB23 -> 21 | AE23: =AB17-AB23 -> 21
B24: Marcelo Clemente | C24: 42 | D24: Rodrigo Rotheia | E24: 91 | F24: Jarbas Reis | G24: 50 | H24: Jarbas Reis | I24: 84 | J24: Jarbas Reis | K24: 128 | L24: Cláudio Dumont | M24: 180 | N24: Cláudio Dumont | O24: 180 | P24: Cláudio Dumont | Q24: 180 | R24: Léo Marx | S24: 52 | T24: Léo Marx | U24: 52 | V24: Rodrigo Mercadante | W24: 353 | X24: - | Y24: - | Z24: - | AA24: Marcelo Sant'anna | AB24: 462 | AC24: - | AD24: - | AE24: -
B25: Jader Abreu | C25: 0 | D25: Adriano Morato | E25: 0 | F25: Guilherme Janot | G25: 72 | H25: Guilherme Janot | I25: 98 | J25: Guilherme Janot | K25: 98 | L25: Marcelo Mizrahy | M25: 166 | N25: Marcelo Mizrahy | O25: 221 | P25: Marcelo Mizrahy | Q25: 265 | R25: Ivan Renault | S25: 170 | T25: Ivan Renault | U25: 170 | V25: Maurílio Carmo | W25: 229 | X25: - | Y25: - | Z25: - | AA25: Reinaldo Paoli | AB25: 102 | AC25: - | AD25: - | AE25: -
B26: Anderson Lopes | C26: 32 | D26: Leodegario Junior | E26: 25 | F26: Morvan | G26: 54 | H26: Morvan | I26: 16 | J26: Morvan | K26: 39 | L26: Carlos Filizolla | M26: 46 | N26: Carlos Filizolla | O26: 70 | P26: Carlos Filizolla | Q26: 82 | R26: Carlos Sampaio | S26: 240 | T26: Carlos Sampaio | U26: 272 | V26: Cláudio Carvalho | W26: 23 | X26: - | Y26: - | Z26: - | AA26: Ederson Lopes | AB26: 34 | AC26: - | AD26: - | AE26: -
B27: Michel Abouud | C27: 26 | D27: Fernando Santos | E27: 21 | F27: Gijo | G27: 30 | H27: Gijo | I27: 21 | J27: Gijo | K27: 59 | L27: Henrique Castilho | M27: 34 | N27: Henrique Castilho | O27: 52 | P27: Henrique Castilho | Q27: 67 | R27: Enio Júnior | S27: 192 | T27: Enio Júnior | U27: 242 | V27: Edson Ribeiro | W27: 203 | X27: - | Y27: - | Z27: - | AA27: Euclides Almeida | AB27: 269 | AC27: - | AD27: - | AE27: -
B28: XXXXXXXX | C28: 0 | D28: Roberto Veloso | E28: 55 | F28: XXXXXXXX | G28: 0 | H28: XXXXXXXX | I28: 0 | J28: XXXXXXXX | K28: 0 | L28: XXXXXXXX | M28: 0 | N28: XXXXXXXX | O28: 0 | P28: XXXXXXXX | Q28: 0 | R28: XXXXXXXX | S28: 0 | T28: XXXXXXXX | U28: 0 | V28: XXXXXXXX | W28: 0 | X28: - | Y28: - | Z28: - | AA28: XXXXXXXX | AB28: 0 | AC28: - | AD28: - | AE28: -
A29: 5º | B29: DELCAR | C29: 91 | D29: AST ESTRUTURAS | E29: 189 | F29: SANTIAGO | G29: 202 | H29: DELCAR | I29: 208 | J29: DELCAR | K29: 308 | L29: DELCAR | M29: 399 | N29: GUI FIGUEIREDO | O29: 472 | P29: TIRA GRILOS | Q29: 592 | R29: AST ESTRUTURAS | S29: 643 | T29: AST ESTRUTURAS | U29: 708 | V29: ALPHA ENGENHARIA | W29: 781 | X29: =W$5-W29 -> 235 | Y29: =W$17-W29 -> 31 | Z29: =W23-W29 -> 27 | AA29: GUI FIGUEIREDO | AB29: 850 | AC29: =AB$5-AB29 -> 258 | AD29: =AB$17-AB29 -> 38 | AE29: =AB23-AB29 -> 17
B30: Rodrigo Rotheia | C30: 55 | D30: Cláudio Dumont | E30: 60 | F30: Alexandre Melillo | G30: 84 | H30: Rodrigo Rotheia | I30: 47 | J30: Rodrigo Rotheia | K30: 95 | L30: Rodrigo Rotheia | M30: 150 | N30: Rodrigo Mercadante | O30: 200 | P30: Léo Marx | Q30: 52 | R30: Cláudio Dumont | S30: 180 | T30: Cláudio Dumont | U30: 180 | V30: Marcelo Sant'anna | W30: 416 | X30: - | Y30: - | Z30: - | AA30: Rodrigo Mercadante | AB30: 387 | AC30: - | AD30: - | AE30: -
B31: Adriano Morato | C31: 0 | D31: Marcelo Mizrahy | E31: 96 | F31: Claudio Junqueira | G31: 72 | H31: Adriano Morato | I31: 0 | J31: Adriano Morato | K31: 0 | L31: Adriano Morato | M31: 0 | N31: Maurílio Carmo | O31: 146 | P31: Ivan Renault | Q31: 170 | R31: Marcelo Mizrahy | S31: 311 | T31: Marcelo Mizrahy | U31: 373 | V31: Reinaldo Paoli | W31: 102 | X31: - | Y31: - | Z31: - | AA31: Maurílio Carmo | AB31: 229 | AC31: - | AD31: - | AE31: -
B32: Leodegario Junior | C32: 15 | D32: Carlos Filizolla | E32: 12 | F32: Marcelo Santiago | G32: 46 | H32: Leodegario Junior | I32: 70 | J32: Leodegario Junior | K32: 76 | L32: Leodegario Junior | M32: 91 | N32: Cláudio Carvalho | O32: 23 | P32: Carlos Sampaio | Q32: 216 | R32: Carlos Filizolla | S32: 85 | T32: Carlos Filizolla | U32: 88 | V32: Ederson Lopes | W32: 34 | X32: - | Y32: - | Z32: - | AA32: Cláudio Carvalho | AB32: 23 | AC32: - | AD32: - | AE32: -
B33: Fernando Santos | C33: 21 | D33: Henrique Castilho | E33: 21 | F33: Emerson Lopes | G33: 0 | H33: Fernando Santos | I33: 0 | J33: Fernando Santos | K33: 0 | L33: Fernando Santos | M33: 21 | N33: Edson Ribeiro | O33: 103 | P33: Enio Júnior | Q33: 154 | R33: Henrique Castilho | S33: 67 | T33: Henrique Castilho | U33: 67 | V33: Euclides Almeida | W33: 229 | X33: - | Y33: - | Z33: - | AA33: Edson Ribeiro | AB33: 211 | AC33: - | AD33: - | AE33: -
B34: Roberto Veloso | C34: 0 | D34: XXXXXXXX | E34: 0 | F34: XXXXXXXX | G34: 0 | H34: Roberto Veloso | I34: 91 | J34: Roberto Veloso | K34: 137 | L34: Roberto Veloso | M34: 137 | N34: XXXXXXXX | O34: 0 | P34: XXXXXXXX | Q34: 0 | R34: XXXXXXXX | S34: 0 | T34: XXXXXXXX | U34: 0 | V34: XXXXXXXX | W34: 0 | X34: - | Y34: - | Z34: - | AA34: XXXXXXXX | AB34: 0 | AC34: - | AD34: - | AE34: -
A35: 6º | B35: VIAKART | C35: 90 | D35: GUI FIGUEIREDO | E35: 169 | F35: DELCAR | G35: 201 | H35: SANTIAGO | I35: 202 | J35: GUI FIGUEIREDO | K35: 292 | L35: GUI FIGUEIREDO | M35: 377 | N35: ALPHA ENGENHARIA | O35: 437 | P35: ALPHA ENGENHARIA | Q35: 520 | R35: CLEMENTE CAR | S35: 600 | T35: ALPHA ENGENHARIA | U35: 691 | V35: AST ESTRUTURAS | W35: 756 | X35: =W$5-W35 -> 260 | Y35: =W$17-W35 -> 56 | Z35: =W29-W35 -> 25 | AA35: AST ESTRUTURAS | AB35: 838 | AC35: =AB$5-AB35 -> 270 | AD35: =AB$17-AB35 -> 50 | AE35: =AB29-AB35 -> 12
B36: Jarbas Reis | C36: 20 | D36: Rodrigo Mercadante | E36: 76 | F36: Rodrigo Rotheia | G36: 84 | H36: Alexandre Melillo | I36: 84 | J36: Rodrigo Mercadante | K36: 118 | L36: Rodrigo Mercadante | M36: 166 | N36: Marcelo Sant'anna | O36: 196 | P36: Marcelo Sant'anna | Q36: 251 | R36: Marcelo Clemente | S36: 291 | T36: Marcelo Sant'anna | U36: 356 | V36: Cláudio Dumont | W36: 180 | X36: - | Y36: - | Z36: - | AA36: Cláudio Dumont | AB36: 180 | AC36: - | AD36: - | AE36: -
B37: Guilherme Janot | C37: 46 | D37: Maurílio Carmo | E37: 51 | F37: Adriano Morato | G37: 0 | H37: Claudio Junqueira | I37: 72 | J37: Maurílio Carmo | K37: 85 | L37: Maurílio Carmo | M37: 108 | N37: Reinaldo Paoli | O37: 102 | P37: Reinaldo Paoli | Q37: 102 | R37: Jader Abreu | S37: 78 | T37: Reinaldo Paoli | U37: 102 | V37: Marcelo Mizrahy | W37: 421 | X37: - | Y37: - | Z37: - | AA37: Marcelo Mizrahy | AB37: 473 | AC37: - | AD37: - | AE37: -
B38: Morvan | C38: 24 | D38: Cláudio Carvalho | E38: 23 | F38: Leodegario Junior | G38: 16 | H38: Marcelo Santiago | I38: 46 | J38: Cláudio Carvalho | K38: 23 | L38: Cláudio Carvalho | M38: 23 | N38: Ederson Lopes | O38: 14 | P38: Ederson Lopes | Q38: 14 | R38: Anderson Lopes | S38: 32 | T38: Ederson Lopes | U38: 34 | V38: Carlos Filizolla | W38: 88 | X38: - | Y38: - | Z38: - | AA38: Carlos Filizolla | AB38: 118 | AC38: - | AD38: - | AE38: -
B39: Gijo | C39: 0 | D39: Edson Ribeiro | E39: 19 | F39: Fernando Santos | G39: 0 | H39: Emerson Lopes | I39: 0 | J39: Edson Ribeiro | K39: 66 | L39: Edson Ribeiro | M39: 80 | N39: Euclides Almeida | O39: 125 | P39: Euclides Almeida | Q39: 153 | R39: Michel Abouud | S39: 199 | T39: Euclides Almeida | U39: 199 | V39: Henrique Castilho | W39: 67 | X39: - | Y39: - | Z39: - | AA39: Henrique Castilho | AB39: 67 | AC39: - | AD39: - | AE39: -
B40: XXXXXXXX | C40: 0 | D40: XXXXXXXX | E40: 0 | F40: Roberto Veloso | G40: 101 | H40: XXXXXXXX | I40: 0 | J40: XXXXXXXX | K40: 0 | L40: XXXXXXXX | M40: 0 | N40: XXXXXXXX | O40: 0 | P40: XXXXXXXX | Q40: 0 | R40: XXXXXXXX | S40: 0 | T40: XXXXXXXX | U40: 0 | V40: XXXXXXXX | W40: 0 | X40: - | Y40: - | Z40: - | AA40: XXXXXXXX | AB40: 0 | AC40: - | AD40: - | AE40: -
A41: 7º | B41: TIRA GRILOS | C41: 78 | D41: ALPHA ENGENHARIA | E41: 162 | F41: ALPHA ENGENHARIA | G41: 201 | H41: ALPHA ENGENHARIA | I41: 201 | J41: ALPHA ENGENHARIA | K41: 280 | L41: SANTIAGO | M41: 355 | N41: SANTIAGO | O41: 435 | P41: CLEMENTE CAR | Q41: 509 | R41: ALPHA ENGENHARIA | S41: 590 | T41: CLEMENTE CAR | U41: 652 | V41: SANTIAGO | W41: 734 | X41: =W$5-W41 -> 282 | Y41: =W$17-W41 -> 78 | Z41: =W35-W41 -> 22 | AA41: SANTIAGO | AB41: 789 | AC41: =AB$5-AB41 -> 319 | AD41: =AB$17-AB41 -> 99 | AE41: =AB35-AB41 -> 49
B42: Léo Marx | C42: 18 | D42: Marcelo Sant'anna | E42: 46 | F42: Marcelo Sant'anna | G42: 60 | H42: Marcelo Sant'anna | I42: 60 | J42: Marcelo Sant'anna | K42: 112 | L42: Alexandre Melillo | M42: 183 | N42: Alexandre Melillo | O42: 213 | P42: Marcelo Clemente | Q42: 243 | R42: Marcelo Sant'anna | S42: 301 | T42: Marcelo Clemente | U42: 327 | V42: Alexandre Melillo | W42: 396 | X42: - | Y42: - | Z42: - | AA42: Alexandre Melillo | AB42: 451 | AC42: - | AD42: - | AE42: -
B43: Ivan Renault | C43: 0 | D43: Reinaldo Paoli | E43: 63 | F43: Reinaldo Paoli | G43: 49 | H43: Reinaldo Paoli | I43: 49 | J43: Reinaldo Paoli | K43: 62 | L43: Claudio Junqueira | M43: 87 | N43: Claudio Junqueira | O43: 87 | P43: Jader Abreu | Q43: 67 | R43: Reinaldo Paoli | S43: 102 | T43: Jader Abreu | U43: 78 | V43: Claudio Junqueira | W43: 87 | X43: - | Y43: - | Z43: - | AA43: Claudio Junqueira | AB43: 87 | AC43: - | AD43: - | AE43: -
B44: Carlos Sampaio | C44: 16 | D44: Ederson Lopes | E44: 0 | F44: Ederson Lopes | G44: 0 | H44: Ederson Lopes | I44: 0 | J44: Ederson Lopes | K44: 14 | L44: Marcelo Santiago | M44: 85 | N44: Marcelo Santiago | O44: 135 | P44: Anderson Lopes | Q44: 32 | R44: Ederson Lopes | S44: 34 | T44: Anderson Lopes | U44: 32 | V44: Marcelo Santiago | W44: 251 | X44: - | Y44: - | Z44: - | AA44: Marcelo Santiago | AB44: 251 | AC44: - | AD44: - | AE44: -
B45: Enio Júnior | C45: 44 | D45: Euclides Almeida | E45: 53 | F45: Euclides Almeida | G45: 92 | H45: Euclides Almeida | I45: 92 | J45: Euclides Almeida | K45: 92 | L45: Emerson Lopes | M45: 0 | N45: Emerson Lopes | O45: 0 | P45: Michel Abouud | Q45: 167 | R45: Euclides Almeida | S45: 153 | T45: Michel Abouud | U45: 215 | V45: Emerson Lopes | W45: 0 | X45: - | Y45: - | Z45: - | AA45: Emerson Lopes | AB45: 0 | AC45: - | AD45: - | AE45: -
B46: XXXXXXXX | C46: 0 | D46: XXXXXXXX | E46: 0 | F46: XXXXXXXX | G46: 0 | H46: XXXXXXXX | I46: 0 | J46: XXXXXXXX | K46: 0 | L46: XXXXXXXX | M46: 0 | N46: XXXXXXXX | O46: 0 | P46: XXXXXXXX | Q46: 0 | R46: XXXXXXXX | S46: 0 | T46: XXXXXXXX | U46: 0 | V46: XXXXXXXX | W46: 0 | X46: - | Y46: - | Z46: - | AA46: XXXXXXXX | AB46: 0 | AC46: - | AD46: - | AE46: -
A47: 8º | B47: ALPHA ENGENHARIA | C47: 73 | D47: RBC | E47: 150 | F47: GUI FIGUEIREDO | G47: 169 | H47: GUI FIGUEIREDO | I47: 170 | J47: SANTIAGO | K47: 270 | L47: ALPHA ENGENHARIA | M47: 353 | N47: DELCAR | O47: 423 | P47: SANTIAGO | Q47: 497 | R47: LQN | S47: 574 | T47: SANTIAGO | U47: 646 | V47: CLEMENTE CAR | W47: 698 | X47: =W$5-W47 -> 318 | Y47: =W$17-W47 -> 114 | Z47: =W41-W47 -> 36 | AA47: LQN | AB47: 767 | AC47: =AB$5-AB47 -> 341 | AD47: =AB$17-AB47 -> 121 | AE47: =AB41-AB47 -> 22
B48: Marcelo Sant'anna | C48: 22 | D48: Marcelo Surerus | E48: 69 | F48: Rodrigo Mercadante | G48: 76 | H48: Rodrigo Mercadante | I48: 76 | J48: Alexandre Melillo | K48: 126 | L48: Marcelo Sant'anna | M48: 134 | N48: Rodrigo Rotheia | O48: 150 | P48: Alexandre Melillo | Q48: 253 | R48: Carlos Eduardo | S48: 268 | T48: Alexandre Melillo | U48: 350 | V48: Marcelo Clemente | W48: 349 | X48: - | Y48: - | Z48: - | AA48: Carlos Eduardo | AB48: 392 | AC48: - | AD48: - | AE48: -
B49: Reinaldo Paoli | C49: 40 | D49: Paulo Feitosa | E49: 0 | F49: Maurílio Carmo | G49: 51 | H49: Maurílio Carmo | I49: 53 | J49: Claudio Junqueira | K49: 87 | L49: Reinaldo Paoli | M49: 102 | N49: Adriano Morato | O49: 0 | P49: Claudio Junqueira | Q49: 87 | R49: Aldo Silvestre | S49: 38 | T49: Claudio Junqueira | U49: 87 | V49: Jader Abreu | W49: 78 | X49: - | Y49: - | Z49: - | AA49: Aldo Silvestre | AB49: 38 | AC49: - | AD49: - | AE49: -
B50: Ederson Lopes | C50: 0 | D50: Gustavo Mourão | E50: 37 | F50: Cláudio Carvalho | G50: 23 | H50: Cláudio Carvalho | I50: 23 | J50: Marcelo Santiago | K50: 57 | L50: Ederson Lopes | M50: 14 | N50: Leodegario Junior | O50: 115 | P50: Marcelo Santiago | Q50: 157 | R50: Alberto Branco | S50: 8 | T50: Marcelo Santiago | U50: 209 | V50: Anderson Lopes | W50: 32 | X50: - | Y50: - | Z50: - | AA50: Alberto Branco | AB50: 21 | AC50: - | AD50: - | AE50: -
B51: Euclides Almeida | C51: 11 | D51: Rafael Cançado | E51: 0 | F51: Edson Ribeiro | G51: 19 | H51: Edson Ribeiro | I51: 18 | J51: Emerson Lopes | K51: 0 | L51: Euclides Almeida | M51: 103 | N51: Fernando Santos | O51: 21 | P51: Emerson Lopes | Q51: 0 | R51: Marcelo Pinheiro | S51: 34 | T51: Emerson Lopes | U51: 0 | V51: Michel Abouud | W51: 239 | X51: - | Y51: - | Z51: - | AA51: Marcelo Pinheiro | AB51: 44 | AC51: - | AD51: - | AE51: -
B52: XXXXXXXX | C52: 0 | D52: Jorge Prado | E52: 44 | F52: XXXXXXXX | G52: 0 | H52: XXXXXXXX | I52: 0 | J52: XXXXXXXX | K52: 0 | L52: XXXXXXXX | M52: 0 | N52: Roberto Veloso | O52: 137 | P52: XXXXXXXX | Q52: 0 | R52: Ricardo Araújo | S52: 226 | T52: XXXXXXXX | U52: 0 | V52: XXXXXXXX | W52: 0 | X52: - | Y52: - | Z52: - | AA52: Ricardo Araújo | AB52: 272 | AC52: - | AD52: - | AE52: -
A53: 9º | B53: RBC | C53: 61 | D53: LQN | E53: 142 | F53: CLEMENTE CAR | G53: 165 | H53: LQN | I53: 167 | J53: CLEMENTE CAR | K53: 261 | L53: LQN | M53: 331 | N53: LQN | O53: 407 | P53: LQN | Q53: 468 | R53: SANTIAGO | S53: 574 | T53: LQN | U53: 640 | V53: LQN | W53: 697 | X53: =W$5-W53 -> 319 | Y53: =W$17-W53 -> 115 | Z53: =W47-W53 -> 1 | AA53: CLEMENTE CAR | AB53: 760 | AC53: =AB$5-AB53 -> 348 | AD53: =AB$17-AB53 -> 128 | AE53: =AB47-AB53 -> 7
B54: Marcelo Surerus | C54: 17 | D54: Carlos Eduardo | E54: 60 | F54: Marcelo Clemente | G54: 74 | H54: Carlos Eduardo | I54: 68 | J54: Marcelo Clemente | K54: 134 | L54: Carlos Eduardo | M54: 138 | N54: Carlos Eduardo | O54: 182 | P54: Carlos Eduardo | Q54: 222 | R54: Alexandre Melillo | S54: 308 | T54: Carlos Eduardo | U54: 320 | V54: Carlos Eduardo | W54: 354 | X54: - | Y54: - | Z54: - | AA54: Marcelo Clemente | AB54: 411 | AC54: - | AD54: - | AE54: -
B55: Paulo Feitosa | C55: 0 | D55: Aldo Silvestre | E55: 38 | F55: Jader Abreu | G55: 21 | H55: Aldo Silvestre | I55: 38 | J55: Jader Abreu | K55: 21 | L55: Aldo Silvestre | M55: 38 | N55: Aldo Silvestre | O55: 38 | P55: Aldo Silvestre | Q55: 38 | R55: Claudio Junqueira | S55: 87 | T55: Aldo Silvestre | U55: 38 | V55: Aldo Silvestre | W55: 38 | X55: - | Y55: - | Z55: - | AA55: Jader Abreu | AB55: 78 | AC55: - | AD55: - | AE55: -
B56: Gustavo Mourão | C56: 30 | D56: Alberto Branco | E56: 13 | F56: Anderson Lopes | G56: 32 | H56: Alberto Branco | I56: 0 | J56: Anderson Lopes | K56: 32 | L56: Alberto Branco | M56: 0 | N56: Alberto Branco | O56: 0 | P56: Alberto Branco | Q56: 8 | R56: Marcelo Santiago | S56: 179 | T56: Alberto Branco | U56: 8 | V56: Alberto Branco | W56: 21 | X56: - | Y56: - | Z56: - | AA56: Anderson Lopes | AB56: 32 | AC56: - | AD56: - | AE56: -
B57: Rafael Cançado | C57: 0 | D57: Marcelo Pinheiro | E57: 10 | F57: Michel Abouud | G57: 38 | H57: Marcelo Pinheiro | I57: 16 | J57: Michel Abouud | K57: 74 | L57: Marcelo Pinheiro | M57: 34 | N57: Marcelo Pinheiro | O57: 34 | P57: Marcelo Pinheiro | Q57: 34 | R57: Emerson Lopes | S57: 0 | T57: Marcelo Pinheiro | U57: 34 | V57: Marcelo Pinheiro | W57: 44 | X57: - | Y57: - | Z57: - | AA57: Michel Abouud | AB57: 239 | AC57: - | AD57: - | AE57: -
B58: Jorge Prado | C58: 14 | D58: Ricardo Araújo | E58: 21 | F58: XXXXXXXX | G58: 0 | H58: Ricardo Araújo | I58: 45 | J58: XXXXXXXX | K58: 0 | L58: Ricardo Araújo | M58: 121 | N58: Ricardo Araújo | O58: 153 | P58: Ricardo Araújo | Q58: 166 | R58: XXXXXXXX | S58: 0 | T58: Ricardo Araújo | U58: 240 | V58: Ricardo Araújo | W58: 240 | X58: - | Y58: - | Z58: - | AA58: XXXXXXXX | AB58: 0 | AC58: - | AD58: - | AE58: -
A59: 10º | B59: LQN | C59: 57 | D59: CLEMENTE CAR | E59: 128 | F59: RBC | G59: 161 | H59: CLEMENTE CAR | I59: 165 | J59: LQN | K59: 261 | L59: CLEMENTE CAR | M59: 323 | N59: CLEMENTE CAR | O59: 401 | P59: DELCAR | Q59: 445 | R59: DELCAR | S59: 505 | T59: DELCAR | U59: 533 | V59: DELCAR | W59: 588 | X59: =W$5-W59 -> 428 | Y59: =W$17-W59 -> 224 | Z59: =W53-W59 -> 109 | AA59: DELCAR | AB59: 650 | AC59: =AB$5-AB59 -> 458 | AD59: =AB$17-AB59 -> 238 | AE59: =AB53-AB59 -> 110
B60: Carlos Eduardo | C60: 34 | D60: Marcelo Clemente | E60: 42 | F60: Marcelo Surerus | G60: 96 | H60: Marcelo Clemente | I60: 74 | J60: Carlos Eduardo | K60: 98 | L60: Marcelo Clemente | M60: 153 | N60: Marcelo Clemente | O60: 195 | P60: Rodrigo Rotheia | Q60: 150 | R60: Rodrigo Rotheia | S60: 150 | T60: Rodrigo Rotheia | U60: 178 | V60: Rodrigo Rotheia | W60: 233 | X60: - | Y60: - | Z60: - | AA60: Rodrigo Rotheia | AB60: 259 | AC60: - | AD60: - | AE60: -
B61: Aldo Silvestre | C61: 0 | D61: Jader Abreu | E61: 14 | F61: Paulo Feitosa | G61: 0 | H61: Jader Abreu | I61: 21 | J61: Aldo Silvestre | K61: 38 | L61: Jader Abreu | M61: 41 | N61: Jader Abreu | O61: 41 | P61: Adriano Morato | Q61: 0 | R61: Adriano Morato | S61: 0 | T61: Adriano Morato | U61: 0 | V61: Adriano Morato | W61: 0 | X61: - | Y61: - | Z61: - | AA61: Adriano Morato | AB61: 0 | AC61: - | AD61: - | AE61: -
B62: Alberto Branco | C62: 13 | D62: Anderson Lopes | E62: 40 | F62: Gustavo Mourão | G62: 7 | H62: Anderson Lopes | I62: 32 | J62: Alberto Branco | K62: 0 | L62: Anderson Lopes | M62: 32 | N62: Anderson Lopes | O62: 32 | P62: Leodegario Junior | Q62: 137 | R62: Leodegario Junior | S62: 163 | T62: Leodegario Junior | U62: 163 | V62: Leodegario Junior | W62: 163 | X62: - | Y62: - | Z62: - | AA62: Leodegario Junior | AB62: 199 | AC62: - | AD62: - | AE62: -
B63: Marcelo Pinheiro | C63: 10 | D63: Michel Abouud | E63: 32 | F63: Rafael Cançado | G63: 0 | H63: Michel Abouud | I63: 38 | J63: Marcelo Pinheiro | K63: 34 | L63: Michel Abouud | M63: 97 | N63: Michel Abouud | O63: 133 | P63: Fernando Santos | Q63: 21 | R63: Fernando Santos | S63: 21 | T63: Fernando Santos | U63: 21 | V63: Fernando Santos | W63: 21 | X63: - | Y63: - | Z63: - | AA63: Fernando Santos | AB63: 21 | AC63: - | AD63: - | AE63: -
B64: Ricardo Araújo | C64: 0 | D64: XXXXXXXX | E64: 0 | F64: Jorge Prado | G64: 58 | H64: XXXXXXXX | I64: 0 | J64: Ricardo Araújo | K64: 91 | L64: XXXXXXXX | M64: 0 | N64: XXXXXXXX | O64: 0 | P64: Roberto Veloso | Q64: 137 | R64: Roberto Veloso | S64: 171 | T64: Roberto Veloso | U64: 171 | V64: Roberto Veloso | W64: 171 | X64: - | Y64: - | Z64: - | AA64: Roberto Veloso | AB64: 171 | AC64: - | AD64: - | AE64: -
A65: 11º | B65: LQN1 | C65: 8 | D65: LQN1 | E65: 117 | F65: LQN | G65: 146 | H65: RBC | I65: 163 | J65: RBC | K65: 224 | L65: RBC | M65: 279 | N65: RBC | O65: 325 | P65: RBC | Q65: 377 | R65: RBC | S65: 421 | T65: RBC | U65: 465 | V65: RBC | W65: 515 | X65: =W$5-W65 -> 501 | Y65: =W$17-W65 -> 297 | Z65: =W59-W65 -> 73 | AA65: RBC | AB65: 565 | AC65: =AB$5-AB65 -> 543 | AD65: =AB$17-AB65 -> 323 | AE65: =AB59-AB65 -> 85
B66: Ricardo Araújo | C66: 0 | D66: Ricardo Araújo | E66: 0 | F66: Carlos Eduardo | G66: 66 | H66: Marcelo Surerus | I66: 98 | J66: Marcelo Surerus | K66: 115 | L66: Marcelo Surerus | M66: 170 | N66: Marcelo Surerus | O66: 196 | P66: Marcelo Surerus | Q66: 248 | R66: Marcelo Surerus | S66: 292 | T66: Marcelo Surerus | U66: 336 | V66: Marcelo Surerus | W66: 386 | X66: - | Y66: - | Z66: - | AA66: Marcelo Surerus | AB66: 436 | AC66: - | AD66: - | AE66: -
B67: Roberto Veloso | C67: 8 | D67: Roberto Veloso | E67: 63 | F67: Aldo Silvestre | G67: 38 | H67: Paulo Feitosa | I67: 0 | J67: Paulo Feitosa | K67: 0 | L67: Paulo Feitosa | M67: 0 | N67: Paulo Feitosa | O67: 0 | P67: Paulo Feitosa | Q67: 0 | R67: Paulo Feitosa | S67: 0 | T67: Paulo Feitosa | U67: 0 | V67: Paulo Feitosa | W67: 0 | X67: - | Y67: - | Z67: - | AA67: Paulo Feitosa | AB67: 0 | AC67: - | AD67: - | AE67: -
B68: Ricardo Vidigal | C68: 0 | D68: Ricardo Vidigal | E68: 22 | F68: Alberto Branco | G68: 8 | H68: Gustavo Mourão | I68: 7 | J68: Gustavo Mourão | K68: 37 | L68: Gustavo Mourão | M68: 37 | N68: Gustavo Mourão | O68: 57 | P68: Gustavo Mourão | Q68: 57 | R68: Gustavo Mourão | S68: 57 | T68: Gustavo Mourão | U68: 57 | V68: Gustavo Mourão | W68: 57 | X68: - | Y68: - | Z68: - | AA68: Gustavo Mourão | AB68: 57 | AC68: - | AD68: - | AE68: -
B69: Caetano | C69: 0 | D69: Caetano | E69: 32 | F69: Marcelo Pinheiro | G69: 0 | H69: Rafael Cançado | I69: 0 | J69: Rafael Cançado | K69: 0 | L69: Rafael Cançado | M69: 0 | N69: Rafael Cançado | O69: 0 | P69: Rafael Cançado | Q69: 0 | R69: Rafael Cançado | S69: 0 | T69: Rafael Cançado | U69: 0 | V69: Rafael Cançado | W69: 0 | X69: - | Y69: - | Z69: - | AA69: Rafael Cançado | AB69: 0 | AC69: - | AD69: - | AE69: -
B70: XXXXXXXX | C70: 0 | D70: XXXXXXXX | E70: 0 | F70: Ricardo Araújo | G70: 34 | H70: Jorge Prado | I70: 58 | J70: Jorge Prado | K70: 72 | L70: Jorge Prado | M70: 72 | N70: Jorge Prado | O70: 72 | P70: Jorge Prado | Q70: 72 | R70: Jorge Prado | S70: 72 | T70: Jorge Prado | U70: 72 | V70: Jorge Prado | W70: 72 | X70: - | Y70: - | Z70: - | AA70: Jorge Prado | AB70: 72 | AC70: - | AD70: - | AE70: -

Sheet TABELA
A1: 2021 | E1: OK | I1: OK | M1: OK | Q1: OK | U1: OK | Y1: OK | AC1: OK | AG1: OK | AK1: OK | AO1: OK | AS1: OK | AW1: OK
D2: 1ª etapa | H2: 2ª etapa | L2: 3ª etapa | P2: 4ª etapa | T2: 5ª etapa | X2: Etapa 6 22/07/2021 - 20:30 - Quinta-Feira RBC RACING | AB2: Etapa 7 12/08/2021 - 20:30 - Quinta-Feira RBC RACING | AF2: Etapa 8 26/08/2021 - 21:15 | AJ2: Etapa 9 16/09/2021 - 20:30 | AN2: Etapa 10 14/10/2021 - 20:30 | AR2: Etapa 11 11/11/2021 - 20:30 | AV2: 12ª etapa
B4: Nome do (a) Piloto (a) | C4: Pontuação Geral | D4: Posição | E4: Pontos | F4: Bônus | G4: Penalidade | H4: Posição | I4: Pontos | J4: Bônus | K4: Penalidade | L4: Posição | M4: Pontos | N4: Bônus | O4: Penalidade | P4: Posição | Q4: Pontos | R4: Bônus | S4: Penalidade | T4: Posição | U4: Pontos | V4: Bônus | W4: Penalidade | X4: Posição | Y4: Pontos | Z4: Bônus | AA4: Penalidade | AB4: Posição | AC4: Pontos | AD4: Bônus | AE4: Penalidade | AF4: Posição | AG4: Pontos | AH4: Bônus | AI4: Penalidade | AJ4: Posição | AK4: Pontos | AL4: Bônus | AM4: Penalidade | AN4: Posição | AO4: Pontos | AP4: Bônus | AQ4: Penalidade | AR4: Posição | AS4: Pontos | AT4: Bônus | AU4: Penalidade | AV4: Posição | AW4: Pontos | AX4: Bônus | AY4: Penalidade | AZ4: 1º LUGAR | BA4: 2º LUGAR | BB4: 3º LUGAR | BC4: 4º LUGAR | BD4: 5º LUGAR | BE4: 6º LUGAR | BF4: 7º LUGAR | BG4: 8º LUGAR | BH4: 9º LUGAR | BI4: 10º LUGAR | BJ4: 11º LUGAR | BK4: 12º LUGAR | BL4: 13º LUGAR | BM4: 14º LUGAR | BN4: 15º LUGAR | BO4: 16º LUGAR | BP4: 17º LUGAR | BQ4: 18º LUGAR | BR4: 19º LUGAR | BS4: 20º LUGAR | BT4: 21º LUGAR | BU4: 22º LUGAR | BV4: 23º LUGAR | BW4: 24º LUGAR | BX4: 25º LUGAR | BY4: 26º LUGAR | BZ4: 27º LUGAR | CA4: 28º LUGAR | CB4: 29º LUGAR | CC4: 30º LUGAR | CD4: 31º LUGAR | CE4: 32º LUGAR | CF4: 33º LUGAR | CG4: 34º LUGAR | CH4: 35º LUGAR | CI4: 36º LUGAR | CJ4: 37º LUGAR | CK4: 38º LUGAR | CL4: 39º LUGAR | CM4: 40º LUGAR | CN4: 41º LUGAR
A5: 1 | B5: Adriano Morato | C5: 0 | D5: 29 | E5: 12 | I5: 0 | K5: -10 | M5: 0 | O5: -10 | Q5: 0 | S5: -10 | U5: 0 | Y5: 0 | AC5: 0 | AG5: 0 | AI5: -10 | AK5: 0 | AM5: -10 | AO5: 0 | AQ5: -10 | AS5: 0 | AU5: -10 | AW5: 0 | AY5: -10 | AZ5: 0 | BA5: 0 | BB5: 0 | BC5: 0 | BD5: 0 | BE5: 0 | BF5: 0 | BG5: 0 | BH5: 0 | BI5: 0 | BJ5: 0 | BK5: 0 | BL5: 0 | BM5: 0 | BN5: 0 | BO5: 0 | BP5: 0 | BQ5: 0 | BR5: 0 | BS5: 0 | BT5: 0 | BU5: 0 | BV5: 0 | BW5: 0 | BX5: 0 | BY5: 0 | BZ5: 0 | CA5: 0 | CB5: 1 | CC5: 0 | CD5: 0 | CE5: 0 | CF5: 0 | CG5: 0 | CH5: 0 | CI5: 0 | CJ5: 0 | CK5: 0 | CL5: 0 | CM5: 0 | CN5: 0
A6: 2 | B6: Alberto Branco | C6: 34 | D6: 28 | E6: 13 | H6: 37 | I6: 4 | L6: 33 | M6: 8 | P6: 29 | Q6: 12 | T6: 24 | U6: 17 | Y6: 0 | AC6: 0 | AG6: 0 | AK6: 0 | AM6: -10 | AO6: 0 | AS6: 0 | AU6: -10 | AW6: 0 | AZ6: 0 | BA6: 0 | BB6: 0 | BC6: 0 | BD6: 0 | BE6: 0 | BF6: 0 | BG6: 0 | BH6: 0 | BI6: 0 | BJ6: 0 | BK6: 0 | BL6: 0 | BM6: 0 | BN6: 0 | BO6: 0 | BP6: 0 | BQ6: 0 | BR6: 0 | BS6: 0 | BT6: 0 | BU6: 0 | BV6: 0 | BW6: 1 | BX6: 0 | BY6: 0 | BZ6: 0 | CA6: 1 | CB6: 1 | CC6: 0 | CD6: 0 | CE6: 0 | CF6: 1 | CG6: 0 | CH6: 0 | CI6: 0 | CJ6: 1 | CK6: 0 | CL6: 0 | CM6: 0 | CN6: 0
A7: 3 | B7: Aldo Silvestre | C7: 0 | E7: 0 | H7: 10 | I7: 38 | M7: 0 | O7: -10 | Q7: 0 | S7: -10 | U7: 0 | W7: -10 | Y7: 0 | AA7: -10 | AC7: 0 | AE7: -10 | AG7: 0 | AK7: 0 | AO7: 0 | AQ7: -10 | AS7: 0 | AU7: -10 | AW7: 0 | AY7: -10 | AZ7: 0 | BA7: 0 | BB7: 0 | BC7: 0 | BD7: 0 | BE7: 0 | BF7: 0 | BG7: 0 | BH7: 0 | BI7: 1 | BJ7: 0 | BK7: 0 | BL7: 0 | BM7: 0 | BN7: 0 | BO7: 0 | BP7: 0 | BQ7: 0 | BR7: 0 | BS7: 0 | BT7: 0 | BU7: 0 | BV7: 0 | BW7: 0 | BX7: 0 | BY7: 0 | BZ7: 0 | CA7: 0 | CB7: 0 | CC7: 0 | CD7: 0 | CE7: 0 | CF7: 0 | CG7: 0 | CH7: 0 | CI7: 0 | CJ7: 0 | CK7: 0 | CL7: 0 | CM7: 0 | CN7: 0
A8: 4 | B8: Alexandre Melillo | C8: 493 | D8: 11 | E8: 36 | H8: 5 | I8: 48 | L8: 8 | M8: 42 | P8: 9 | Q8: 40 | U8: 0 | X8: 2 | Y8: 55 | Z8: 2 | AB8: 14 | AC8: 30 | AE8: SIM | AF8: 8 | AG8: 42 | AJ8: 2 | AK8: 55 | AN8: 8 | AO8: 42 | AR8: 6 | AS8: 46 | AV8: 2 | AW8: 55 | AZ8: 0 | BA8: 3 | BB8: 0 | BC8: 0 | BD8: 1 | BE8: 1 | BF8: 0 | BG8: 3 | BH8: 1 | BI8: 0 | BJ8: 1 | BK8: 0 | BL8: 0 | BM8: 1 | BN8: 0 | BO8: 0 | BP8: 0 | BQ8: 0 | BR8: 0 | BS8: 0 | BT8: 0 | BU8: 0 | BV8: 0 | BW8: 0 | BX8: 0 | BY8: 0 | BZ8: 0 | CA8: 0 | CB8: 0 | CC8: 0 | CD8: 0 | CE8: 0 | CF8: 0 | CG8: 0 | CH8: 0 | CI8: 0 | CJ8: 0 | CK8: 0 | CL8: 0 | CM8: 0 | CN8: 0
A9: 5 | B9: Anderson Lopes | C9: 0 | D9: 13 | E9: 32 | H9: 33 | I9: 8 | L9: 32 | M9: 9 | Q9: 0 | S9: -10 | U9: 0 | W9: -10 | Y9: 0 | AA9: -10 | AC9: 0 | AE9: -10 | AG9: 0 | AI9: -10 | AK9: 0 | AM9: -10 | AO9: 0 | AQ9: -10 | AS9: 0 | AU9: -10 | AW9: 0 | AY9: -10 | AZ9: 0 | BA9: 0 | BB9: 0 | BC9: 0 | BD9: 0 | BE9: 0 | BF9: 0 | BG9: 0 | BH9: 0 | BI9: 0 | BJ9: 0 | BK9: 0 | BL9: 1 | BM9: 0 | BN9: 0 | BO9: 0 | BP9: 0 | BQ9: 0 | BR9: 0 | BS9: 0 | BT9: 0 | BU9: 0 | BV9: 0 | BW9: 0 | BX9: 0 | BY9: 0 | BZ9: 0 | CA9: 0 | CB9: 0 | CC9: 0 | CD9: 0 | CE9: 1 | CF9: 1 | CG9: 0 | CH9: 0 | CI9: 0 | CJ9: 0 | CK9: 0 | CL9: 0 | CM9: 0 | CN9: 0
A10: 6 | B10: Carlos Eduardo | C10: 420 | D10: 12 | E10: 34 | H10: 16 | I10: 26 | L10: 9 | M10: 40 | P10: 8 | Q10: 42 | T10: 14 | U10: 30 | X10: 9 | Y10: 40 | AB10: 7 | AC10: 44 | AG10: 0 | AJ10: 6 | AK10: 46 | AN10: 3 | AO10: 52 | AR10: 15 | AS10: 28 | AV10: 10 | AW10: 38 | AZ10: 0 | BA10: 0 | BB10: 1 | BC10: 0 | BD10: 0 | BE10: 1 | BF10: 1 | BG10: 1 | BH10: 2 | BI10: 1 | BJ10: 0 | BK10: 1 | BL10: 0 | BM10: 1 | BN10: 1 | BO10: 1 | BP10: 0 | BQ10: 0 | BR10: 0 | BS10: 0 | BT10: 0 | BU10: 0 | BV10: 0 | BW10: 0 | BX10: 0 | BY10: 0 | BZ10: 0 | CA10: 0 | CB10: 0 | CC10: 0 | CD10: 0 | CE10: 0 | CF10: 0 | CG10: 0 | CH10: 0 | CI10: 0 | CJ10: 0 | CK10: 0 | CL10: 0 | CM10: 0 | CN10: 0
A11: 7 | B11: Carlos Filizolla | C11: 132 | D11: 40 | E11: 1 | G11: SIM | H11: 29 | I11: 12 | L11: 25 | M11: 16 | P11: 14 | Q11: 30 | U11: 0 | Y11: 0 | AB11: 17 | AC11: 24 | AF11: 38 | AG11: 3 | AI11: SIM | AJ11: 18 | AK11: 23 | AN11: 38 | AO11: 3 | AQ11: SIM | AS11: 0 | AU11: -10 | AV11: 14 | AW11: 30 | AZ11: 0 | BA11: 0 | BB11: 0 | BC11: 0 | BD11: 0 | BE11: 0 | BF11: 0 | BG11: 0 | BH11: 0 | BI11: 0 | BJ11: 0 | BK11: 0 | BL11: 0 | BM11: 2 | BN11: 0 | BO11: 0 | BP11: 1 | BQ11: 1 | BR11: 0 | BS11: 0 | BT11: 0 | BU11: 0 | BV11: 0 | BW11: 0 | BX11: 1 | BY11: 0 | BZ11: 0 | CA11: 0 | CB11: 1 | CC11: 0 | CD11: 0 | CE11: 0 | CF11: 0 | CG11: 0 | CH11: 0 | CI11: 0 | CJ11: 0 | CK11: 2 | CL11: 0 | CM11: 1 | CN11: 0
A12: 8 | B12: Carlos Sampaio | C12: 404 | D12: 25 | E12: 16 | H12: 9 | I12: 40 | L12: 24 | M12: 17 | P12: 2 | Q12: 55 | T12: 16 | U12: 26 | X12: 8 | Y12: 42 | AB12: 6 | AC12: 46 | AF12: 17 | AG12: 24 | AJ12: 17 | AK12: 24 | AN12: 13 | AO12: 32 | AR12: 9 | AS12: 40 | AV12: 8 | AW12: 42 | AZ12: 0 | BA12: 1 | BB12: 0 | BC12: 0 | BD12: 0 | BE12: 1 | BF12: 0 | BG12: 2 | BH12: 2 | BI12: 0 | BJ12: 0 | BK12: 0 | BL12: 1 | BM12: 0 | BN12: 0 | BO12: 1 | BP12: 2 | BQ12: 0 | BR12: 0 | BS12: 0 | BT12: 0 | BU12: 0 | BV12: 0 | BW12: 1 | BX12: 1 | BY12: 0 | BZ12: 0 | CA12: 0 | CB12: 0 | CC12: 0 | CD12: 0 | CE12: 0 | CF12: 0 | CG12: 0 | CH12: 0 | CI12: 0 | CJ12: 0 | CK12: 0 | CL12: 0 | CM12: 0 | CN12: 0
A13: 9 | B13: Cláudio Carvalho | C13: 0 | D13: 18 | E13: 23 | H13: 38 | I13: 3 | L13: 36 | M13: 5 | Q13: 0 | U13: 0 | W13: -10 | Y13: 0 | AA13: -10 | AC13: 0 | AG13: 0 | AK13: 0 | AM13: -10 | AO13: 0 | AQ13: -10 | AS13: 0 | AU13: -10 | AW13: 0 | AY13: -10 | AZ13: 0 | BA13: 0 | BB13: 0 | BC13: 0 | BD13: 0 | BE13: 0 | BF13: 0 | BG13: 0 | BH13: 0 | BI13: 0 | BJ13: 0 | BK13: 0 | BL13: 0 | BM13: 0 | BN13: 0 | BO13: 0 | BP13: 0 | BQ13: 1 | BR13: 0 | BS13: 0 | BT13: 0 | BU13: 0 | BV13: 0 | BW13: 0 | BX13: 0 | BY13: 0 | BZ13: 0 | CA13: 0 | CB13: 0 | CC13: 0 | CD13: 0 | CE13: 0 | CF13: 0 | CG13: 0 | CH13: 0 | CI13: 1 | CJ13: 0 | CK13: 1 | CL13: 0 | CM13: 0 | CN13: 0
A14: 10 | B14: Cláudio Dumont | C14: 110 | D14: 1 | E14: 60 | I14: 0 | L14: 2 | M14: 55 | P14: 6 | Q14: 46 | T14: 22 | U14: 19 | Y14: 0 | AA14: -10 | AC14: 0 | AE14: -10 | AG14: 0 | AI14: -10 | AK14: 0 | AM14: -10 | AO14: 0 | AQ14: -10 | AS14: 0 | AU14: -10 | AW14: 0 | AY14: -10 | AZ14: 1 | BA14: 1 | BB14: 0 | BC14: 0 | BD14: 0 | BE14: 1 | BF14: 0 | BG14: 0 | BH14: 0 | BI14: 0 | BJ14: 0 | BK14: 0 | BL14: 0 | BM14: 0 | BN14: 0 | BO14: 0 | BP14: 0 | BQ14: 0 | BR14: 0 | BS14: 0 | BT14: 0 | BU14: 1 | BV14: 0 | BW14: 0 | BX14: 0 | BY14: 0 | BZ14: 0 | CA14: 0 | CB14: 0 | CC14: 0 | CD14: 0 | CE14: 0 | CF14: 0 | CG14: 0 | CH14: 0 | CI14: 0 | CJ14: 0 | CK14: 0 | CL14: 0 | CM14: 0 | CN14: 0
A15: 11 | B15: Claudio Junqueira | C15: 27 | D15: 4 | E15: 50 | F15: 2 | H15: 21 | I15: 20 | K15: SIM | L15: 26 | M15: 15 | O15: SIM | Q15: 0 | U15: 0 | W15: -10 | Y15: 0 | AA15: -10 | AC15: 0 | AG15: 0 | AK15: 0 | AM15: -10 | AO15: 0 | AQ15: -10 | AS15: 0 | AU15: -10 | AW15: 0 | AY15: -10 | AZ15: 0 | BA15: 0 | BB15: 0 | BC15: 1 | BD15: 0 | BE15: 0 | BF15: 0 | BG15: 0 | BH15: 0 | BI15: 0 | BJ15: 0 | BK15: 0 | BL15: 0 | BM15: 0 | BN15: 0 | BO15: 0 | BP15: 0 | BQ15: 0 | BR15: 0 | BS15: 0 | BT15: 1 | BU15: 0 | BV15: 0 | BW15: 0 | BX15: 0 | BY15: 1 | BZ15: 0 | CA15: 0 | CB15: 0 | CC15: 0 | CD15: 0 | CE15: 0 | CF15: 0 | CG15: 0 | CH15: 0 | CI15: 0 | CJ15: 0 | CK15: 0 | CL15: 0 | CM15: 0 | CN15: 0
A16: 12 | B16: Marcelo Clemente | C16: 455 | D16: 8 | E16: 42 | I16: 0 | L16: 13 | M16: 32 | P16: 22 | Q16: 19 | T16: 1 | U16: 60 | X16: 19 | Y16: 22 | AB16: 8 | AC16: 42 | AF16: 5 | AG16: 48 | AJ16: 5 | AK16: 48 | AN16: 11 | AO16: 36 | AR16: 7 | AS16: 44 | AV16: 1 | AW16: 60 | AX16: 2 | AZ16: 2 | BA16: 0 | BB16: 0 | BC16: 0 | BD16: 2 | BE16: 0 | BF16: 1 | BG16: 2 | BH16: 0 | BI16: 0 | BJ16: 1 | BK16: 0 | BL16: 1 | BM16: 0 | BN16: 0 | BO16: 0 | BP16: 0 | BQ16: 0 | BR16: 1 | BS16: 0 | BT16: 0 | BU16: 1 | BV16: 0 | BW16: 0 | BX16: 0 | BY16: 0 | BZ16: 0 | CA16: 0 | CB16: 0 | CC16: 0 | CD16: 0 | CE16: 0 | CF16: 0 | CG16: 0 | CH16: 0 | CI16: 0 | CJ16: 0 | CK16: 0 | CL16: 0 | CM16: 0 | CN16: 0
A17: 13 | B17: Ederson Lopes | C17: 0 | D17: 32 | E17: 9 | H17: 32 | I17: 9 | L17: 34 | M17: 7 | P17: 27 | Q17: 14 | T17: 21 | U17: 20 | Y17: 0 | AC17: 0 | AE17: -10 | AG17: 0 | AI17: -10 | AK17: 0 | AM17: -10 | AO17: 0 | AQ17: -10 | AS17: 0 | AU17: -10 | AW17: 0 | AY17: -10 | AZ17: 0 | BA17: 0 | BB17: 0 | BC17: 0 | BD17: 0 | BE17: 0 | BF17: 0 | BG17: 0 | BH17: 0 | BI17: 0 | BJ17: 0 | BK17: 0 | BL17: 0 | BM17: 0 | BN17: 0 | BO17: 0 | BP17: 0 | BQ17: 0 | BR17: 0 | BS17: 0 | BT17: 1 | BU17: 0 | BV17: 0 | BW17: 0 | BX17: 0 | BY17: 0 | BZ17: 1 | CA17: 0 | CB17: 0 | CC17: 0 | CD17: 0 | CE17: 2 | CF17: 0 | CG17: 1 | CH17: 0 | CI17: 0 | CJ17: 0 | CK17: 0 | CL17: 0 | CM17: 0 | CN17: 0
A18: 14 | B18: Edson Ribeiro | C18: 181 | E18: 0 | G18: -10 | H18: 22 | I18: 19 | L18: 19 | M18: 22 | P18: 23 | Q18: 18 | T18: 5 | U18: 48 | X18: 27 | Y18: 14 | AA18: SIM | AB18: 18 | AC18: 23 | AF18: 10 | AG18: 38 | AJ18: 20 | AK18: 21 | AN18: 33 | AO18: 8 | AQ18: SIM | AS18: 0 | AU18: -10 | AW18: 0 | AY18: -10 | AZ18: 0 | BA18: 0 | BB18: 0 | BC18: 0 | BD18: 1 | BE18: 0 | BF18: 0 | BG18: 0 | BH18: 0 | BI18: 1 | BJ18: 0 | BK18: 0 | BL18: 0 | BM18: 0 | BN18: 0 | BO18: 0 | BP18: 0 | BQ18: 1 | BR18: 1 | BS18: 1 | BT18: 0 | BU18: 1 | BV18: 1 | BW18: 0 | BX18: 0 | BY18: 0 | BZ18: 1 | CA18: 0 | CB18: 0 | CC18: 0 | CD18: 0 | CE18: 0 | CF18: 1 | CG18: 0 | CH18: 0 | CI18: 0 | CJ18: 0 | CK18: 0 | CL18: 0 | CM18: 0 | CN18: 0
A19: 15 | B19: Emerson Lopes | C19: 0 | E19: 0 | G19: -10 | I19: 0 | K19: -10 | M19: 0 | O19: -10 | Q19: 0 | S19: -10 | U19: 0 | W19: -10 | Y19: 0 | AA19: -10 | AC19: 0 | AE19: -10 | AG19: 0 | AI19: -10 | AK19: 0 | AM19: -10 | AO19: 0 | AQ19: -10 | AS19: 0 | AU19: -10 | AW19: 0 | AY19: -10 | AZ19: 0 | BA19: 0 | BB19: 0 | BC19: 0 | BD19: 0 | BE19: 0 | BF19: 0 | BG19: 0 | BH19: 0 | BI19: 0 | BJ19: 0 | BK19: 0 | BL19: 0 | BM19: 0 | BN19: 0 | BO19: 0 | BP19: 0 | BQ19: 0 | BR19: 0 | BS19: 0 | BT19: 0 | BU19: 0 | BV19: 0 | BW19: 0 | BX19: 0 | BY19: 0 | BZ19: 0 | CA19: 0 | CB19: 0 | CC19: 0 | CD19: 0 | CE19: 0 | CF19: 0 | CG19: 0 | CH19: 0 | CI19: 0 | CJ19: 0 | CK19: 0 | CL19: 0 | CM19: 0 | CN19: 0
A20: 16 | B20: Enio Júnior | C20: 329 | D20: 7 | E20: 44 | H20: 24 | I20: 17 | L20: 22 | M20: 19 | P20: 10 | Q20: 38 | U20: 0 | X20: 12 | Y20: 34 | AB20: 22 | AC20: 19 | AE20: SIM | AG20: 0 | AJ20: 10 | AK20: 38 | AN20: 4 | AO20: 50 | AR20: 11 | AS20: 36 | AV20: 12 | AW20: 34 | AZ20: 0 | BA20: 0 | BB20: 0 | BC20: 1 | BD20: 0 | BE20: 0 | BF20: 1 | BG20: 0 | BH20: 0 | BI20: 2 | BJ20: 1 | BK20: 2 | BL20: 0 | BM20: 0 | BN20: 0 | BO20: 0 | BP20: 0 | BQ20: 0 | BR20: 0 | BS20: 0 | BT20: 0 | BU20: 2 | BV20: 0 | BW20: 1 | BX20: 0 | BY20: 0 | BZ20: 0 | CA20: 0 | CB20: 0 | CC20: 0 | CD20: 0 | CE20: 0 | CF20: 0 | CG20: 0 | CH20: 0 | CI20: 0 | CJ20: 0 | CK20: 0 | CL20: 0 | CM20: 0 | CN20: 0
A21: 17 | B21: Euclides Almeida | C21: 315 | D21: 30 | E21: 11 | H21: 8 | I21: 42 | L21: 4 | M21: 50 | P21: 31 | Q21: 10 | U21: 0 | X21: 11 | Y21: 36 | AB21: 19 | AC21: 22 | AF21: 15 | AG21: 28 | AK21: 0 | AN21: 6 | AO21: 46 | AR21: 14 | AS21: 30 | AV21: 9 | AW21: 40 | AZ21: 0 | BA21: 0 | BB21: 0 | BC21: 1 | BD21: 0 | BE21: 1 | BF21: 0 | BG21: 1 | BH21: 1 | BI21: 0 | BJ21: 1 | BK21: 0 | BL21: 0 | BM21: 1 | BN21: 1 | BO21: 0 | BP21: 0 | BQ21: 0 | BR21: 1 | BS21: 0 | BT21: 0 | BU21: 0 | BV21: 0 | BW21: 0 | BX21: 0 | BY21: 0 | BZ21: 0 | CA21: 0 | CB21: 0 | CC21: 1 | CD21: 1 | CE21: 0 | CF21: 0 | CG21: 0 | CH21: 0 | CI21: 0 | CJ21: 0 | CK21: 0 | CL21: 0 | CM21: 0 | CN21: 0
A22: 18 | B22: Fernando Santos | C22: 0 | D22: 20 | E22: 21 | I22: 0 | M22: 0 | O22: -10 | Q22: 0 | U22: 0 | Y22: 0 | AC22: 0 | AG22: 0 | AI22: -10 | AK22: 0 | AM22: -10 | AO22: 0 | AS22: 0 | AU22: -10 | AW22: 0 | AZ22: 0 | BA22: 0 | BB22: 0 | BC22: 0 | BD22: 0 | BE22: 0 | BF22: 0 | BG22: 0 | BH22: 0 | BI22: 0 | BJ22: 0 | BK22: 0 | BL22: 0 | BM22: 0 | BN22: 0 | BO22: 0 | BP22: 0 | BQ22: 0 | BR22: 0 | BS22: 1 | BT22: 0 | BU22: 0 | BV22: 0 | BW22: 0 | BX22: 0 | BY22: 0 | BZ22: 0 | CA22: 0 | CB22: 0 | CC22: 0 | CD22: 0 | CE22: 0 | CF22: 0 | CG22: 0 | CH22: 0 | CI22: 0 | CJ22: 0 | CK22: 0 | CL22: 0 | CM22: 0 | CN22: 0
A23: 19 | B23: Gijo | C23: 284 | D23: 22 | E23: 19 | H23: 30 | I23: 11 | L23: 14 | M23: 30 | P23: 20 | Q23: 21 | T23: 10 | U23: 38 | X23: 20 | Y23: 21 | AB23: 5 | AC23: 48 | AF23: 9 | AG23: 40 | AJ23: 11 | AK23: 36 | AN23: 9 | AO23: 40 | AS23: 0 | AU23: -10 | AW23: 0 | AY23: -10 | AZ23: 0 | BA23: 0 | BB23: 0 | BC23: 0 | BD23: 1 | BE23: 0 | BF23: 0 | BG23: 0 | BH23: 2 | BI23: 1 | BJ23: 1 | BK23: 0 | BL23: 0 | BM23: 1 | BN23: 0 | BO23: 0 | BP23: 0 | BQ23: 0 | BR23: 0 | BS23: 2 | BT23: 0 | BU23: 1 | BV23: 0 | BW23: 0 | BX23: 0 | BY23: 0 | BZ23: 0 | CA23: 0 | CB23: 0 | CC23: 1 | CD23: 0 | CE23: 0 | CF23: 0 | CG23: 0 | CH23: 0 | CI23: 0 | CJ23: 0 | CK23: 0 | CL23: 0 | CM23: 0 | CN23: 0
A24: 20 | B24: Guilherme Janot | C24: 391 | D24: 6 | E24: 46 | H24: 6 | I24: 46 | J24: 2 | L24: 17 | M24: 24 | P24: 4 | Q24: 50 | T24: 20 | U24: 21 | X24: 4 | Y24: 50 | AB24: 3 | AC24: 52 | AF24: 13 | AG24: 32 | AI24: SIM | AJ24: 9 | AK24: 40 | AO24: 0 | AR24: 10 | AS24: 38 | AW24: 0 | AY24: -10 | AZ24: 0 | BA24: 0 | BB24: 1 | BC24: 2 | BD24: 0 | BE24: 2 | BF24: 0 | BG24: 0 | BH24: 1 | BI24: 1 | BJ24: 0 | BK24: 0 | BL24: 1 | BM24: 0 | BN24: 0 | BO24: 0 | BP24: 1 | BQ24: 0 | BR24: 0 | BS24: 1 | BT24: 0 | BU24: 0 | BV24: 0 | BW24: 0 | BX24: 0 | BY24: 0 | BZ24: 0 | CA24: 0 | CB24: 0 | CC24: 0 | CD24: 0 | CE24: 0 | CF24: 0 | CG24: 0 | CH24: 0 | CI24: 0 | CJ24: 0 | CK24: 0 | CL24: 0 | CM24: 0 | CN24: 0
A25: 21 | B25: Gustavo Mourão | C25: 0 | D25: 14 | E25: 30 | H25: 34 | I25: 7 | M25: 0 | O25: -10 | Q25: 0 | U25: 0 | W25: -10 | Y25: 0 | AB25: 21 | AC25: 20 | AG25: 0 | AI25: -10 | AK25: 0 | AM25: -10 | AO25: 0 | AQ25: -10 | AS25: 0 | AU25: -10 | AW25: 0 | AY25: -10 | AZ25: 0 | BA25: 0 | BB25: 0 | BC25: 0 | BD25: 0 | BE25: 0 | BF25: 0 | BG25: 0 | BH25: 0 | BI25: 0 | BJ25: 0 | BK25: 0 | BL25: 0 | BM25: 1 | BN25: 0 | BO25: 0 | BP25: 0 | BQ25: 0 | BR25: 0 | BS25: 0 | BT25: 1 | BU25: 0 | BV25: 0 | BW25: 0 | BX25: 0 | BY25: 0 | BZ25: 0 | CA25: 0 | CB25: 0 | CC25: 0 | CD25: 0 | CE25: 0 | CF25: 0 | CG25: 1 | CH25: 0 | CI25: 0 | CJ25: 0 | CK25: 0 | CL25: 0 | CM25: 0 | CN25: 0
A26: 22 | B26: Henrique Castilho | C26: 47 | D26: 35 | E26: 6 | H26: 26 | I26: 15 | L26: 31 | M26: 10 | Q26: 0 | T26: 15 | U26: 28 | Y26: 0 | AB26: 23 | AC26: 18 | AG26: 0 | AK26: 0 | AM26: -10 | AO26: 0 | AQ26: -10 | AS26: 0 | AW26: 0 | AY26: -10 | AZ26: 0 | BA26: 0 | BB26: 0 | BC26: 0 | BD26: 0 | BE26: 0 | BF26: 0 | BG26: 0 | BH26: 0 | BI26: 0 | BJ26: 0 | BK26: 0 | BL26: 0 | BM26: 0 | BN26: 1 | BO26: 0 | BP26: 0 | BQ26: 0 | BR26: 0 | BS26: 0 | BT26: 0 | BU26: 0 | BV26: 1 | BW26: 0 | BX26: 0 | BY26: 1 | BZ26: 0 | CA26: 0 | CB26: 0 | CC26: 0 | CD26: 1 | CE26: 0 | CF26: 0 | CG26: 0 | CH26: 1 | CI26: 0 | CJ26: 0 | CK26: 0 | CL26: 0 | CM26: 0 | CN26: 0
A27: 23 | B27: Ivan Renault | C27: 177 | D27: 34 | E27: 7 | H27: 1 | I27: 60 | L27: 1 | M27: 60 | N27: 2 | P27: 5 | Q27: 48 | U27: 0 | Y27: 0 | AC27: 0 | AG27: 0 | AK27: 0 | AO27: 0 | AS27: 0 | AW27: 0 | AZ27: 2 | BA27: 0 | BB27: 0 | BC27: 0 | BD27: 1 | BE27: 0 | BF27: 0 | BG27: 0 | BH27: 0 | BI27: 0 | BJ27: 0 | BK27: 0 | BL27: 0 | BM27: 0 | BN27: 0 | BO27: 0 | BP27: 0 | BQ27: 0 | BR27: 0 | BS27: 0 | BT27: 0 | BU27: 0 | BV27: 0 | BW27: 0 | BX27: 0 | BY27: 0 | BZ27: 0 | CA27: 0 | CB27: 0 | CC27: 0 | CD27: 0 | CE27: 0 | CF27: 0 | CG27: 1 | CH27: 0 | CI27: 0 | CJ27: 0 | CK27: 0 | CL27: 0 | CM27: 0 | CN27: 0
A28: 24 | B28: Jader Abreu | C28: 72 | E28: 0 | H28: 27 | I28: 14 | L28: 20 | M28: 21 | P28: 21 | Q28: 20 | U28: 0 | Y28: 0 | AA28: -10 | AC28: 0 | AF28: 16 | AG28: 26 | AJ28: 30 | AK28: 11 | AM28: SIM | AO28: 0 | AS28: 0 | AW28: 0 | AY28: -10 | AZ28: 0 | BA28: 0 | BB28: 0 | BC28: 0 | BD28: 0 | BE28: 0 | BF28: 0 | BG28: 0 | BH28: 0 | BI28: 0 | BJ28: 0 | BK28: 0 | BL28: 0 | BM28: 0 | BN28: 0 | BO28: 1 | BP28: 0 | BQ28: 0 | BR28: 0 | BS28: 1 | BT28: 1 | BU28: 0 | BV28: 0 | BW28: 0 | BX28: 0 | BY28: 0 | BZ28: 1 | CA28: 0 | CB28: 0 | CC28: 1 | CD28: 0 | CE28: 0 | CF28: 0 | CG28: 0 | CH28: 0 | CI28: 0 | CJ28: 0 | CK28: 0 | CL28: 0 | CM28: 0 | CN28: 0
A29: 25 | B29: Jarbas Reis | C29: 466 | D29: 21 | E29: 20 | H29: 4 | I29: 50 | L29: 21 | M29: 20 | P29: 12 | Q29: 34 | T29: 7 | U29: 44 | X29: 1 | Y29: 60 | AB29: 9 | AC29: 40 | AF29: 7 | AG29: 44 | AJ29: 14 | AK29: 30 | AN29: 7 | AO29: 44 | AR29: 13 | AS29: 32 | AV29: 5 | AW29: 48 | AZ29: 1 | BA29: 0 | BB29: 0 | BC29: 1 | BD29: 1 | BE29: 0 | BF29: 3 | BG29: 0 | BH29: 1 | BI29: 0 | BJ29: 0 | BK29: 1 | BL29: 1 | BM29: 1 | BN29: 0 | BO29: 0 | BP29: 0 | BQ29: 0 | BR29: 0 | BS29: 0 | BT29: 2 | BU29: 0 | BV29: 0 | BW29: 0 | BX29: 0 | BY29: 0 | BZ29: 0 | CA29: 0 | CB29: 0 | CC29: 0 | CD29: 0 | CE29: 0 | CF29: 0 | CG29: 0 | CH29: 0 | CI29: 0 | CJ29: 0 | CK29: 0 | CL29: 0 | CM29: 0 | CN29: 0
A30: 26 | B30: Jorge Prado | C30: 42 | D30: 27 | E30: 14 | H30: 14 | I30: 30 | L30: 15 | M30: 28 | Q30: 0 | U30: 0 | Y30: 0 | AC30: 0 | AG30: 0 | AK30: 0 | AM30: -10 | AO30: 0 | AQ30: -10 | AS30: 0 | AU30: -10 | AW30: 0 | AZ30: 0 | BA30: 0 | BB30: 0 | BC30: 0 | BD30: 0 | BE30: 0 | BF30: 0 | BG30: 0 | BH30: 0 | BI30: 0 | BJ30: 0 | BK30: 0 | BL30: 0 | BM30: 1 | BN30: 1 | BO30: 0 | BP30: 0 | BQ30: 0 | BR30: 0 | BS30: 0 | BT30: 0 | BU30: 0 | BV30: 0 | BW30: 0 | BX30: 0 | BY30: 0 | BZ30: 1 | CA30: 0 | CB30: 0 | CC30: 0 | CD30: 0 | CE30: 0 | CF30: 0 | CG30: 0 | CH30: 0 | CI30: 0 | CJ30: 0 | CK30: 0 | CL30: 0 | CM30: 0 | CN30: 0
A31: 27 | B31: Léo Marx | C31: 32 | D31: 23 | E31: 18 | H31: 12 | I31: 34 | M31: 0 | Q31: 0 | U31: 0 | Y31: 0 | AC31: 0 | AG31: 0 | AK31: 0 | AO31: 0 | AQ31: -10 | AS31: 0 | AW31: 0 | AY31: -10 | AZ31: 0 | BA31: 0 | BB31: 0 | BC31: 0 | BD31: 0 | BE31: 0 | BF31: 0 | BG31: 0 | BH31: 0 | BI31: 0 | BJ31: 0 | BK31: 1 | BL31: 0 | BM31: 0 | BN31: 0 | BO31: 0 | BP31: 0 | BQ31: 0 | BR31: 0 | BS31: 0 | BT31: 0 | BU31: 0 | BV31: 1 | BW31: 0 | BX31: 0 | BY31: 0 | BZ31: 0 | CA31: 0 | CB31: 0 | CC31: 0 | CD31: 0 | CE31: 0 | CF31: 0 | CG31: 0 | CH31: 0 | CI31: 0 | CJ31: 0 | CK31: 0 | CL31: 0 | CM31: 0 | CN31: 0
A32: 28 | B32: Leodegario Junior | C32: 210 | D32: 26 | E32: 15 | H32: 31 | I32: 10 | K32: SIM | L32: 35 | M32: 6 | P32: 1 | Q32: 60 | T32: 17 | U32: 24 | Y32: 0 | AB32: 20 | AC32: 21 | AF32: 19 | AG32: 22 | AJ32: 16 | AK32: 26 | AO32: 0 | AQ32: -10 | AS32: 0 | AV32: 11 | AW32: 36 | AZ32: 1 | BA32: 0 | BB32: 0 | BC32: 0 | BD32: 0 | BE32: 0 | BF32: 0 | BG32: 0 | BH32: 0 | BI32: 0 | BJ32: 1 | BK32: 0 | BL32: 0 | BM32: 0 | BN32: 0 | BO32: 1 | BP32: 1 | BQ32: 0 | BR32: 1 | BS32: 1 | BT32: 0 | BU32: 0 | BV32: 0 | BW32: 0 | BX32: 0 | BY32: 1 | BZ32: 0 | CA32: 0 | CB32: 0 | CC32: 0 | CD32: 1 | CE32: 0 | CF32: 0 | CG32: 0 | CH32: 1 | CI32: 0 | CJ32: 0 | CK32: 0 | CL32: 0 | CM32: 0 | CN32: 0
A33: 29 | B33: Marcelo Mizrahy | C33: 510 | D33: 3 | E33: 52 | H33: 7 | I33: 44 | L33: 23 | M33: 18 | P33: 7 | Q33: 44 | T33: 3 | U33: 52 | X33: 16 | Y33: 26 | AA33: SIM | AB33: 2 | AC33: 55 | AF33: 6 | AG33: 46 | AJ33: 30 | AK33: 11 | AM33: SIM | AN33: 1 | AO33: 60 | AP33: 2 | AR33: 5 | AS33: 48 | AV33: 3 | AW33: 52 | AZ33: 1 | BA33: 1 | BB33: 3 | BC33: 0 | BD33: 1 | BE33: 1 | BF33: 2 | BG33: 0 | BH33: 0 | BI33: 0 | BJ33: 0 | BK33: 0 | BL33: 0 | BM33: 0 | BN33: 0 | BO33: 1 | BP33: 0 | BQ33: 0 | BR33: 0 | BS33: 0 | BT33: 0 | BU33: 0 | BV33: 1 | BW33: 0 | BX33: 0 | BY33: 0 | BZ33: 0 | CA33: 0 | CB33: 0 | CC33: 1 | CD33: 0 | CE33: 0 | CF33: 0 | CG33: 0 | CH33: 0 | CI33: 0 | CJ33: 0 | CK33: 0 | CL33: 0 | CM33: 0 | CN33: 0
A34: 30 | B34: Marcelo Pinheiro | C34: 0 | D34: 31 | E34: 10 | H34: 36 | I34: 5 | L34: 45 | M34: 1 | O34: SIM | P34: 25 | Q34: 16 | T34: 23 | U34: 18 | Y34: 0 | AA34: -10 | AC34: 0 | AG34: 0 | AI34: -10 | AK34: 0 | AM34: -10 | AO34: 0 | AS34: 0 | AU34: -10 | AW34: 0 | AY34: -10 | AZ34: 0 | BA34: 0 | BB34: 0 | BC34: 0 | BD34: 0 | BE34: 0 | BF34: 0 | BG34: 0 | BH34: 0 | BI34: 0 | BJ34: 0 | BK34: 0 | BL34: 0 | BM34: 0 | BN34: 0 | BO34: 0 | BP34: 0 | BQ34: 0 | BR34: 0 | BS34: 0 | BT34: 0 | BU34: 0 | BV34: 1 | BW34: 0 | BX34: 1 | BY34: 0 | BZ34: 0 | CA34: 0 | CB34: 0 | CC34: 0 | CD34: 1 | CE34: 0 | CF34: 0 | CG34: 0 | CH34: 0 | CI34: 1 | CJ34: 0 | CK34: 0 | CL34: 0 | CM34: 0 | CN34: 0
A35: 31 | B35: Marcelo Sant'anna | C35: 536 | D35: 19 | E35: 22 | G35: SIM | H35: 17 | I35: 24 | L35: 11 | M35: 36 | P35: 3 | Q35: 52 | T35: 4 | U35: 50 | X35: 13 | Y35: 32 | AB35: 1 | AC35: 60 | AD35: 2 | AF35: 2 | AG35: 55 | AJ35: 8 | AK35: 42 | AN35: 2 | AO35: 55 | AR35: 1 | AS35: 60 | AV35: 6 | AW35: 46 | AZ35: 2 | BA35: 2 | BB35: 1 | BC35: 1 | BD35: 0 | BE35: 1 | BF35: 0 | BG35: 1 | BH35: 0 | BI35: 0 | BJ35: 1 | BK35: 0 | BL35: 1 | BM35: 0 | BN35: 0 | BO35: 0 | BP35: 1 | BQ35: 0 | BR35: 1 | BS35: 0 | BT35: 0 | BU35: 0 | BV35: 0 | BW35: 0 | BX35: 0 | BY35: 0 | BZ35: 0 | CA35: 0 | CB35: 0 | CC35: 0 | CD35: 0 | CE35: 0 | CF35: 0 | CG35: 0 | CH35: 0 | CI35: 0 | CJ35: 0 | CK35: 0 | CL35: 0 | CM35: 0 | CN35: 0
A36: 32 | B36: Marcelo Santiago | C36: 273 | D36: 15 | E36: 28 | H36: 23 | I36: 18 | L36: 30 | M36: 11 | P36: 19 | Q36: 22 | T36: 19 | U36: 22 | X36: 15 | Y36: 28 | AB36: 4 | AC36: 50 | AG36: 0 | AJ36: 19 | AK36: 22 | AN36: 14 | AO36: 30 | AR36: 8 | AS36: 42 | AW36: 0 | AZ36: 0 | BA36: 0 | BB36: 0 | BC36: 1 | BD36: 0 | BE36: 0 | BF36: 0 | BG36: 1 | BH36: 0 | BI36: 0 | BJ36: 0 | BK36: 0 | BL36: 0 | BM36: 1 | BN36: 2 | BO36: 0 | BP36: 0 | BQ36: 0 | BR36: 3 | BS36: 0 | BT36: 0 | BU36: 0 | BV36: 1 | BW36: 0 | BX36: 0 | BY36: 0 | BZ36: 0 | CA36: 0 | CB36: 0 | CC36: 1 | CD36: 0 | CE36: 0 | CF36: 0 | CG36: 0 | CH36: 0 | CI36: 0 | CJ36: 0 | CK36: 0 | CL36: 0 | CM36: 0 | CN36: 0
A37: 33 | B37: Marcelo Surerus | C37: 506 | D37: 24 | E37: 17 | H37: 3 | I37: 52 | L37: 7 | M37: 44 | P37: 13 | Q37: 32 | R37: 2 | T37: 2 | U37: 55 | X37: 7 | Y37: 44 | AB37: 16 | AC37: 26 | AF37: 3 | AG37: 52 | AJ37: 7 | AK37: 44 | AN37: 10 | AO37: 38 | AR37: 4 | AS37: 50 | AV37: 4 | AW37: 50 | AZ37: 0 | BA37: 1 | BB37: 2 | BC37: 2 | BD37: 0 | BE37: 0 | BF37: 3 | BG37: 0 | BH37: 0 | BI37: 1 | BJ37: 0 | BK37: 0 | BL37: 1 | BM37: 0 | BN37: 0 | BO37: 1 | BP37: 0 | BQ37: 0 | BR37: 0 | BS37: 0 | BT37: 0 | BU37: 0 | BV37: 0 | BW37: 1 | BX37: 0 | BY37: 0 | BZ37: 0 | CA37: 0 | CB37: 0 | CC37: 0 | CD37: 0 | CE37: 0 | CF37: 0 | CG37: 0 | CH37: 0 | CI37: 0 | CJ37: 0 | CK37: 0 | CL37: 0 | CM37: 0 | CN37: 0
A38: 34 | B38: Maurílio Carmo | C38: 219 | D38: 10 | E38: 38 | H38: 28 | I38: 13 | K38: SIM | L38: 27 | M38: 14 | P38: 26 | Q38: 15 | T38: 13 | U38: 32 | X38: 18 | Y38: 23 | AB38: 10 | AC38: 38 | AF38: 11 | AG38: 36 | AJ38: 21 | AK38: 20 | AO38: 0 | AS38: 0 | AW38: 0 | AY38: -10 | AZ38: 0 | BA38: 0 | BB38: 0 | BC38: 0 | BD38: 0 | BE38: 0 | BF38: 0 | BG38: 0 | BH38: 0 | BI38: 2 | BJ38: 1 | BK38: 0 | BL38: 1 | BM38: 0 | BN38: 0 | BO38: 0 | BP38: 0 | BQ38: 1 | BR38: 0 | BS38: 0 | BT38: 1 | BU38: 0 | BV38: 0 | BW38: 0 | BX38: 0 | BY38: 1 | BZ38: 1 | CA38: 1 | CB38: 0 | CC38: 0 | CD38: 0 | CE38: 0 | CF38: 0 | CG38: 0 | CH38: 0 | CI38: 0 | CJ38: 0 | CK38: 0 | CL38: 0 | CM38: 0 | CN38: 0
A39: 35 | B39: Michel Abouud | C39: 225 | D39: 16 | E39: 26 | H39: 35 | I39: 6 | L39: 29 | M39: 12 | P39: 18 | Q39: 23 | T39: 11 | U39: 36 | X39: 17 | Y39: 24 | AB39: 11 | AC39: 36 | AF39: 12 | AG39: 34 | AJ39: 13 | AK39: 32 | AN39: 25 | AO39: 16 | AQ39: SIM | AS39: 0 | AU39: -10 | AW39: 0 | AY39: -10 | AZ39: 0 | BA39: 0 | BB39: 0 | BC39: 0 | BD39: 0 | BE39: 0 | BF39: 0 | BG39: 0 | BH39: 0 | BI39: 0 | BJ39: 2 | BK39: 1 | BL39: 1 | BM39: 0 | BN39: 0 | BO39: 1 | BP39: 1 | BQ39: 1 | BR39: 0 | BS39: 0 | BT39: 0 | BU39: 0 | BV39: 0 | BW39: 0 | BX39: 1 | BY39: 0 | BZ39: 0 | CA39: 0 | CB39: 1 | CC39: 0 | CD39: 0 | CE39: 0 | CF39: 0 | CG39: 0 | CH39: 1 | CI39: 0 | CJ39: 0 | CK39: 0 | CL39: 0 | CM39: 0 | CN39: 0
A40: 36 | B40: Morvan | C40: 293 | D40: 17 | E40: 24 | H40: 25 | I40: 16 | L40: 10 | M40: 38 | P40: 24 | Q40: 17 | T40: 18 | U40: 23 | X40: 10 | Y40: 38 | AB40: 15 | AC40: 28 | AF40: 18 | AG40: 23 | AJ40: 15 | AK40: 28 | AO40: 0 | AR40: 27 | AS40: 14 | AU40: SIM | AV40: 7 | AW40: 44 | AZ40: 0 | BA40: 0 | BB40: 0 | BC40: 0 | BD40: 0 | BE40: 0 | BF40: 1 | BG40: 0 | BH40: 0 | BI40: 2 | BJ40: 0 | BK40: 0 | BL40: 0 | BM40: 0 | BN40: 2 | BO40: 0 | BP40: 1 | BQ40: 2 | BR40: 0 | BS40: 0 | BT40: 0 | BU40: 0 | BV40: 0 | BW40: 1 | BX40: 1 | BY40: 0 | BZ40: 1 | CA40: 0 | CB40: 0 | CC40: 0 | CD40: 0 | CE40: 0 | CF40: 0 | CG40: 0 | CH40: 0 | CI40: 0 | CJ40: 0 | CK40: 0 | CL40: 0 | CM40: 0 | CN40: 0
A41: 37 | B41: Paulo Feitosa | C41: 0 | E41: 0 | I41: 0 | M41: 0 | Q41: 0 | S41: -10 | U41: 0 | Y41: 0 | AC41: 0 | AG41: 0 | AK41: 0 | AO41: 0 | AQ41: -10 | AS41: 0 | AU41: -10 | AW41: 0 | AY41: -10 | AZ41: 0 | BA41: 0 | BB41: 0 | BC41: 0 | BD41: 0 | BE41: 0 | BF41: 0 | BG41: 0 | BH41: 0 | BI41: 0 | BJ41: 0 | BK41: 0 | BL41: 0 | BM41: 0 | BN41: 0 | BO41: 0 | BP41: 0 | BQ41: 0 | BR41: 0 | BS41: 0 | BT41: 0 | BU41: 0 | BV41: 0 | BW41: 0 | BX41: 0 | BY41: 0 | BZ41: 0 | CA41: 0 | CB41: 0 | CC41: 0 | CD41: 0 | CE41: 0 | CF41: 0 | CG41: 0 | CH41: 0 | CI41: 0 | CJ41: 0 | CK41: 0 | CL41: 0 | CM41: 0 | CN41: 0
A42: 38 | B42: Rafael Cançado | C42: 0 | E42: 0 | I42: 0 | M42: 0 | O42: -10 | Q42: 0 | U42: 0 | Y42: 0 | AA42: -10 | AC42: 0 | AE42: -10 | AG42: 0 | AI42: -10 | AK42: 0 | AM42: -10 | AO42: 0 | AS42: 0 | AU42: -10 | AW42: 0 | AY42: -10 | AZ42: 0 | BA42: 0 | BB42: 0 | BC42: 0 | BD42: 0 | BE42: 0 | BF42: 0 | BG42: 0 | BH42: 0 | BI42: 0 | BJ42: 0 | BK42: 0 | BL42: 0 | BM42: 0 | BN42: 0 | BO42: 0 | BP42: 0 | BQ42: 0 | BR42: 0 | BS42: 0 | BT42: 0 | BU42: 0 | BV42: 0 | BW42: 0 | BX42: 0 | BY42: 0 | BZ42: 0 | CA42: 0 | CB42: 0 | CC42: 0 | CD42: 0 | CE42: 0 | CF42: 0 | CG42: 0 | CH42: 0 | CI42: 0 | CJ42: 0 | CK42: 0 | CL42: 0 | CM42: 0 | CN42: 0
A43: 39 | B43: Reinaldo Paoli | C43: 42 | D43: 9 | E43: 40 | H43: 18 | I43: 23 | L43: 16 | M43: 26 | P43: 28 | Q43: 13 | U43: 0 | W43: -10 | Y43: 0 | AA43: -10 | AC43: 0 | AE43: -10 | AG43: 0 | AK43: 0 | AO43: 0 | AQ43: -10 | AS43: 0 | AU43: -10 | AW43: 0 | AY43: -10 | AZ43: 0 | BA43: 0 | BB43: 0 | BC43: 0 | BD43: 0 | BE43: 0 | BF43: 0 | BG43: 0 | BH43: 1 | BI43: 0 | BJ43: 0 | BK43: 0 | BL43: 0 | BM43: 0 | BN43: 0 | BO43: 1 | BP43: 0 | BQ43: 1 | BR43: 0 | BS43: 0 | BT43: 0 | BU43: 0 | BV43: 0 | BW43: 0 | BX43: 0 | BY43: 0 | BZ43: 0 | CA43: 1 | CB43: 0 | CC43: 0 | CD43: 0 | CE43: 0 | CF43: 0 | CG43: 0 | CH43: 0 | CI43: 0 | CJ43: 0 | CK43: 0 | CL43: 0 | CM43: 0 | CN43: 0
A44: 40 | B44: Roberto Veloso | C44: 129 | D44: 33 | E44: 8 | G44: -10 | H44: 2 | I44: 55 | L44: 6 | M44: 46 | P44: 11 | Q44: 36 | U44: 0 | Y44: 0 | AA44: -10 | AC44: 0 | AG44: 0 | AJ44: 12 | AK44: 34 | AO44: 0 | AQ44: -10 | AS44: 0 | AU44: -10 | AW44: 0 | AY44: -10 | AZ44: 0 | BA44: 1 | BB44: 0 | BC44: 0 | BD44: 0 | BE44: 1 | BF44: 0 | BG44: 0 | BH44: 0 | BI44: 0 | BJ44: 1 | BK44: 1 | BL44: 0 | BM44: 0 | BN44: 0 | BO44: 0 | BP44: 0 | BQ44: 0 | BR44: 0 | BS44: 0 | BT44: 0 | BU44: 0 | BV44: 0 | BW44: 0 | BX44: 0 | BY44: 0 | BZ44: 0 | CA44: 0 | CB44: 0 | CC44: 0 | CD44: 0 | CE44: 0 | CF44: 1 | CG44: 0 | CH44: 0 | CI44: 0 | CJ44: 0 | CK44: 0 | CL44: 0 | CM44: 0 | CN44: 0
A45: 41 | B45: Rodrigo Mercadante | C45: 449 | D45: 5 | E45: 48 | H45: 15 | I45: 28 | L45: 18 | M45: 23 | P45: 15 | Q45: 28 | T45: 9 | U45: 40 | V45: 2 | X45: 5 | Y45: 48 | AB45: 12 | AC45: 34 | AF45: 4 | AG45: 50 | AJ45: 4 | AK45: 50 | AL45: 2 | AN45: 12 | AO45: 34 | AR45: 12 | AS45: 34 | AV45: 15 | AW45: 28 | AZ45: 0 | BA45: 0 | BB45: 0 | BC45: 2 | BD45: 2 | BE45: 0 | BF45: 0 | BG45: 0 | BH45: 1 | BI45: 0 | BJ45: 0 | BK45: 3 | BL45: 0 | BM45: 0 | BN45: 3 | BO45: 0 | BP45: 0 | BQ45: 1 | BR45: 0 | BS45: 0 | BT45: 0 | BU45: 0 | BV45: 0 | BW45: 0 | BX45: 0 | BY45: 0 | BZ45: 0 | CA45: 0 | CB45: 0 | CC45: 0 | CD45: 0 | CE45: 0 | CF45: 0 | CG45: 0 | CH45: 0 | CI45: 0 | CJ45: 0 | CK45: 0 | CL45: 0 | CM45: 0 | CN45: 0
A46: 42 | B46: Rodrigo Rotheia | C46: 259 | D46: 2 | E46: 55 | H46: 11 | I46: 36 | L46: 5 | M46: 48 | P46: 30 | Q46: 11 | U46: 0 | Y46: 0 | AC46: 0 | AG46: 0 | AK46: 0 | AN46: 15 | AO46: 28 | AR46: 2 | AS46: 55 | AV46: 16 | AW46: 26 | AZ46: 0 | BA46: 2 | BB46: 0 | BC46: 0 | BD46: 1 | BE46: 0 | BF46: 0 | BG46: 0 | BH46: 0 | BI46: 0 | BJ46: 1 | BK46: 0 | BL46: 0 | BM46: 0 | BN46: 1 | BO46: 1 | BP46: 0 | BQ46: 0 | BR46: 0 | BS46: 0 | BT46: 0 | BU46: 0 | BV46: 0 | BW46: 0 | BX46: 0 | BY46: 0 | BZ46: 0 | CA46: 0 | CB46: 0 | CC46: 1 | CD46: 0 | CE46: 0 | CF46: 0 | CG46: 0 | CH46: 0 | CI46: 0 | CJ46: 0 | CK46: 0 | CL46: 0 | CM46: 0 | CN46: 0
A47: 43 | B47: Ricardo Araújo | C47: 328 | E47: 0 | H47: 20 | I47: 21 | L47: 28 | M47: 13 | P47: 17 | Q47: 24 | T47: 6 | U47: 46 | X47: 14 | Y47: 30 | AB47: 13 | AC47: 32 | AF47: 14 | AG47: 30 | AJ47: 1 | AK47: 60 | AN47: 27 | AO47: 14 | AQ47: SIM | AR47: 16 | AS47: 26 | AV47: 13 | AW47: 32 | AZ47: 1 | BA47: 0 | BB47: 0 | BC47: 0 | BD47: 0 | BE47: 1 | BF47: 0 | BG47: 0 | BH47: 0 | BI47: 0 | BJ47: 0 | BK47: 0 | BL47: 2 | BM47: 2 | BN47: 0 | BO47: 1 | BP47: 1 | BQ47: 0 | BR47: 0 | BS47: 1 | BT47: 0 | BU47: 0 | BV47: 0 | BW47: 0 | BX47: 0 | BY47: 0 | BZ47: 1 | CA47: 1 | CB47: 0 | CC47: 0 | CD47: 0 | CE47: 0 | CF47: 0 | CG47: 0 | CH47: 0 | CI47: 0 | CJ47: 0 | CK47: 0 | CL47: 0 | CM47: 0 | CN47: 0
A48: 44 | B48: Ricardo Vidigal | C48: 170 | E48: 0 | H48: 19 | I48: 22 | L48: 12 | M48: 34 | P48: 16 | Q48: 26 | T48: 8 | U48: 42 | X48: 6 | Y48: 46 | AC48: 0 | AG48: 0 | AK48: 0 | AO48: 0 | AS48: 0 | AW48: 0 | AZ48: 0 | BA48: 0 | BB48: 0 | BC48: 0 | BD48: 0 | BE48: 1 | BF48: 0 | BG48: 1 | BH48: 0 | BI48: 0 | BJ48: 0 | BK48: 1 | BL48: 0 | BM48: 0 | BN48: 0 | BO48: 1 | BP48: 0 | BQ48: 0 | BR48: 1 | BS48: 0 | BT48: 0 | BU48: 0 | BV48: 0 | BW48: 0 | BX48: 0 | BY48: 0 | BZ48: 0 | CA48: 0 | CB48: 0 | CC48: 0 | CD48: 0 | CE48: 0 | CF48: 0 | CG48: 0 | CH48: 0 | CI48: 0 | CJ48: 0 | CK48: 0 | CL48: 0 | CM48: 0 | CN48: 0
A49: 45 | B49: Caetano | C49: 385 | E49: 0 | H49: 13 | I49: 32 | L49: 3 | M49: 52 | P49: 0 | Q49: 0 | S49: SIM | T49: 12 | U49: 34 | X49: 3 | Y49: 52 | AB49: 38 | AC49: 3 | AE49: SIM | AF49: 1 | AG49: 60 | AJ49: 3 | AK49: 52 | AN49: 5 | AO49: 48 | AR49: 3 | AS49: 52 | AW49: 0 | AZ49: 1 | BA49: 0 | BB49: 4 | BC49: 0 | BD49: 1 | BE49: 0 | BF49: 0 | BG49: 0 | BH49: 0 | BI49: 0 | BJ49: 0 | BK49: 1 | BL49: 1 | BM49: 0 | BN49: 0 | BO49: 0 | BP49: 0 | BQ49: 0 | BR49: 0 | BS49: 0 | BT49: 0 | BU49: 0 | BV49: 0 | BW49: 0 | BX49: 0 | BY49: 0 | BZ49: 0 | CA49: 0 | CB49: 0 | CC49: 0 | CD49: 0 | CE49: 0 | CF49: 0 | CG49: 0 | CH49: 0 | CI49: 0 | CJ49: 0 | CK49: 1 | CL49: 0 | CM49: 0 | CN49: 0

Sheet Classificação Geral
A1: 2021 | E1: OK | I1: OK | M1: OK | Q1: OK | U1: OK | Y1: OK | AC1: OK | AG1: OK | AK1: OK | AO1: OK | AS1: OK | AW1: OK
D2: 1ª etapa | H2: 2ª etapa | L2: 3ª etapa | P2: 4ª etapa | T2: 5ª etapa | X2: Etapa 6 22/07/2021 - 20:30 - Quinta-Feira RBC RACING | AB2: Etapa 7 12/08/2021 - 20:30 - Quinta-Feira RBC RACING | AF2: Etapa 8 26/08/2021 - 21:15 | AJ2: Etapa 9 16/09/2021 - 20:30 | AN2: Etapa 10 14/10/2021 - 20:30 | AR2: Etapa 11 11/11/2021 - 20:30 | AV2: 12ª etapa
B4: Nome do (a) Piloto (a) | C4: Pontuação Geral | D4: Posição | E4: Pontos | F4: Bônus | G4: Penalidade | H4: Posição | I4: Pontos | J4: Bônus | K4: Penalidade | L4: Posição | M4: Pontos | N4: Bônus | O4: Penalidade | P4: Posição | Q4: Pontos | R4: Bônus | S4: Penalidade | T4: Posição | U4: Pontos | V4: Bônus | W4: Penalidade | X4: Posição | Y4: Pontos | Z4: Bônus | AA4: Penalidade | AB4: Posição | AC4: Pontos | AD4: Bônus | AE4: Penalidade | AF4: Posição | AG4: Pontos | AH4: Bônus | AI4: Penalidade | AJ4: Posição | AK4: Pontos | AL4: Bônus | AM4: Penalidade | AN4: Posição | AO4: Pontos | AP4: Bônus | AQ4: Penalidade | AR4: Posição | AS4: Pontos | AT4: Bônus | AU4: Penalidade | AV4: Posição | AW4: Pontos | AX4: Bônus | AY4: Penalidade | AZ4: 1º LUGAR | BA4: 2º LUGAR | BB4: 3º LUGAR | BC4: 4º LUGAR | BD4: 5º LUGAR | BE4: 6º LUGAR | BF4: 7º LUGAR | BG4: 8º LUGAR | BH4: 9º LUGAR | BI4: 10º LUGAR | BJ4: 11º LUGAR | BK4: 12º LUGAR | BL4: 13º LUGAR | BM4: 14º LUGAR | BN4: 15º LUGAR | BO4: 16º LUGAR | BP4: 17º LUGAR | BQ4: 18º LUGAR | BR4: 19º LUGAR | BS4: 20º LUGAR | BT4: 21º LUGAR | BU4: 22º LUGAR | BV4: 23º LUGAR | BW4: 24º LUGAR | BX4: 25º LUGAR | BY4: 26º LUGAR | BZ4: 27º LUGAR | CA4: 28º LUGAR | CB4: 29º LUGAR | CC4: 30º LUGAR | CD4: 31º LUGAR | CE4: 32º LUGAR | CF4: 33º LUGAR | CG4: 34º LUGAR | CH4: 35º LUGAR | CI4: 36º LUGAR | CJ4: 37º LUGAR | CK4: 38º LUGAR | CL4: 39º LUGAR | CM4: 40º LUGAR | CN4: 41º LUGAR
A5: 1 | B5: Marcelo Sant'anna | C5: 536 | D5: 19 | E5: 22 | G5: SIM | H5: 17 | I5: 24 | L5: 11 | M5: 36 | P5: 3 | Q5: 52 | T5: 4 | U5: 50 | X5: 13 | Y5: 32 | AB5: 1 | AC5: 60 | AD5: 2 | AF5: 2 | AG5: 55 | AJ5: 8 | AK5: 42 | AN5: 2 | AO5: 55 | AR5: 1 | AS5: 60 | AV5: 6 | AW5: 46 | AZ5: 2 | BA5: 2 | BB5: 1 | BC5: 1 | BD5: 0 | BE5: 1 | BF5: 0 | BG5: 1 | BH5: 0 | BI5: 0 | BJ5: 1 | BK5: 0 | BL5: 1 | BM5: 0 | BN5: 0 | BO5: 0 | BP5: 1 | BQ5: 0 | BR5: 1 | BS5: 0 | BT5: 0 | BU5: 0 | BV5: 0 | BW5: 0 | BX5: 0 | BY5: 0 | BZ5: 0 | CA5: 0 | CB5: 0 | CC5: 0 | CD5: 0 | CE5: 0 | CF5: 0 | CG5: 0 | CH5: 0 | CI5: 0 | CJ5: 0 | CK5: 0 | CL5: 0 | CM5: 0 | CN5: 0
A6: 2 | B6: Marcelo Mizrahy | C6: 510 | D6: 3 | E6: 52 | H6: 7 | I6: 44 | L6: 23 | M6: 18 | P6: 7 | Q6: 44 | T6: 3 | U6: 52 | X6: 16 | Y6: 26 | AA6: SIM | AB6: 2 | AC6: 55 | AF6: 6 | AG6: 46 | AJ6: 30 | AK6: 11 | AM6: SIM | AN6: 1 | AO6: 60 | AP6: 2 | AR6: 5 | AS6: 48 | AV6: 3 | AW6: 52 | AZ6: 1 | BA6: 1 | BB6: 3 | BC6: 0 | BD6: 1 | BE6: 1 | BF6: 2 | BG6: 0 | BH6: 0 | BI6: 0 | BJ6: 0 | BK6: 0 | BL6: 0 | BM6: 0 | BN6: 0 | BO6: 1 | BP6: 0 | BQ6: 0 | BR6: 0 | BS6: 0 | BT6: 0 | BU6: 0 | BV6: 1 | BW6: 0 | BX6: 0 | BY6: 0 | BZ6: 0 | CA6: 0 | CB6: 0 | CC6: 1 | CD6: 0 | CE6: 0 | CF6: 0 | CG6: 0 | CH6: 0 | CI6: 0 | CJ6: 0 | CK6: 0 | CL6: 0 | CM6: 0 | CN6: 0
A7: 3 | B7: Marcelo Surerus | C7: 506 | D7: 24 | E7: 17 | H7: 3 | I7: 52 | L7: 7 | M7: 44 | P7: 13 | Q7: 32 | R7: 2 | T7: 2 | U7: 55 | X7: 7 | Y7: 44 | AB7: 16 | AC7: 26 | AF7: 3 | AG7: 52 | AJ7: 7 | AK7: 44 | AN7: 10 | AO7: 38 | AR7: 4 | AS7: 50 | AV7: 4 | AW7: 50 | AZ7: 0 | BA7: 1 | BB7: 2 | BC7: 2 | BD7: 0 | BE7: 0 | BF7: 3 | BG7: 0 | BH7: 0 | BI7: 1 | BJ7: 0 | BK7: 0 | BL7: 1 | BM7: 0 | BN7: 0 | BO7: 1 | BP7: 0 | BQ7: 0 | BR7: 0 | BS7: 0 | BT7: 0 | BU7: 0 | BV7: 0 | BW7: 1 | BX7: 0 | BY7: 0 | BZ7: 0 | CA7: 0 | CB7: 0 | CC7: 0 | CD7: 0 | CE7: 0 | CF7: 0 | CG7: 0 | CH7: 0 | CI7: 0 | CJ7: 0 | CK7: 0 | CL7: 0 | CM7: 0 | CN7: 0
A8: 4 | B8: Alexandre Melillo | C8: 493 | D8: 11 | E8: 36 | H8: 5 | I8: 48 | L8: 8 | M8: 42 | P8: 9 | Q8: 40 | U8: 0 | X8: 2 | Y8: 55 | Z8: 2 | AB8: 14 | AC8: 30 | AE8: SIM | AF8: 8 | AG8: 42 | AJ8: 2 | AK8: 55 | AN8: 8 | AO8: 42 | AR8: 6 | AS8: 46 | AV8: 2 | AW8: 55 | AZ8: 0 | BA8: 3 | BB8: 0 | BC8: 0 | BD8: 1 | BE8: 1 | BF8: 0 | BG8: 3 | BH8: 1 | BI8: 0 | BJ8: 1 | BK8: 0 | BL8: 0 | BM8: 1 | BN8: 0 | BO8: 0 | BP8: 0 | BQ8: 0 | BR8: 0 | BS8: 0 | BT8: 0 | BU8: 0 | BV8: 0 | BW8: 0 | BX8: 0 | BY8: 0 | BZ8: 0 | CA8: 0 | CB8: 0 | CC8: 0 | CD8: 0 | CE8: 0 | CF8: 0 | CG8: 0 | CH8: 0 | CI8: 0 | CJ8: 0 | CK8: 0 | CL8: 0 | CM8: 0 | CN8: 0
A9: 5 | B9: Jarbas Reis | C9: 466 | D9: 21 | E9: 20 | H9: 4 | I9: 50 | L9: 21 | M9: 20 | P9: 12 | Q9: 34 | T9: 7 | U9: 44 | X9: 1 | Y9: 60 | AB9: 9 | AC9: 40 | AF9: 7 | AG9: 44 | AJ9: 14 | AK9: 30 | AN9: 7 | AO9: 44 | AR9: 13 | AS9: 32 | AV9: 5 | AW9: 48 | AZ9: 1 | BA9: 0 | BB9: 0 | BC9: 1 | BD9: 1 | BE9: 0 | BF9: 3 | BG9: 0 | BH9: 1 | BI9: 0 | BJ9: 0 | BK9: 1 | BL9: 1 | BM9: 1 | BN9: 0 | BO9: 0 | BP9: 0 | BQ9: 0 | BR9: 0 | BS9: 0 | BT9: 2 | BU9: 0 | BV9: 0 | BW9: 0 | BX9: 0 | BY9: 0 | BZ9: 0 | CA9: 0 | CB9: 0 | CC9: 0 | CD9: 0 | CE9: 0 | CF9: 0 | CG9: 0 | CH9: 0 | CI9: 0 | CJ9: 0 | CK9: 0 | CL9: 0 | CM9: 0 | CN9: 0
A10: 6 | B10: Marcelo Clemente | C10: 455 | D10: 8 | E10: 42 | I10: 0 | L10: 13 | M10: 32 | P10: 22 | Q10: 19 | T10: 1 | U10: 60 | X10: 19 | Y10: 22 | AB10: 8 | AC10: 42 | AF10: 5 | AG10: 48 | AJ10: 5 | AK10: 48 | AN10: 11 | AO10: 36 | AR10: 7 | AS10: 44 | AV10: 1 | AW10: 60 | AX10: 2 | AZ10: 2 | BA10: 0 | BB10: 0 | BC10: 0 | BD10: 2 | BE10: 0 | BF10: 1 | BG10: 2 | BH10: 0 | BI10: 0 | BJ10: 1 | BK10: 0 | BL10: 1 | BM10: 0 | BN10: 0 | BO10: 0 | BP10: 0 | BQ10: 0 | BR10: 1 | BS10: 0 | BT10: 0 | BU10: 1 | BV10: 0 | BW10: 0 | BX10: 0 | BY10: 0 | BZ10: 0 | CA10: 0 | CB10: 0 | CC10: 0 | CD10: 0 | CE10: 0 | CF10: 0 | CG10: 0 | CH10: 0 | CI10: 0 | CJ10: 0 | CK10: 0 | CL10: 0 | CM10: 0 | CN10: 0
A11: 7 | B11: Rodrigo Mercadante | C11: 449 | D11: 5 | E11: 48 | H11: 15 | I11: 28 | L11: 18 | M11: 23 | P11: 15 | Q11: 28 | T11: 9 | U11: 40 | V11: 2 | X11: 5 | Y11: 48 | AB11: 12 | AC11: 34 | AF11: 4 | AG11: 50 | AJ11: 4 | AK11: 50 | AL11: 2 | AN11: 12 | AO11: 34 | AR11: 12 | AS11: 34 | AV11: 15 | AW11: 28 | AZ11: 0 | BA11: 0 | BB11: 0 | BC11: 2 | BD11: 2 | BE11: 0 | BF11: 0 | BG11: 0 | BH11: 1 | BI11: 0 | BJ11: 0 | BK11: 3 | BL11: 0 | BM11: 0 | BN11: 3 | BO11: 0 | BP11: 0 | BQ11: 1 | BR11: 0 | BS11: 0 | BT11: 0 | BU11: 0 | BV11: 0 | BW11: 0 | BX11: 0 | BY11: 0 | BZ11: 0 | CA11: 0 | CB11: 0 | CC11: 0 | CD11: 0 | CE11: 0 | CF11: 0 | CG11: 0 | CH11: 0 | CI11: 0 | CJ11: 0 | CK11: 0 | CL11: 0 | CM11: 0 | CN11: 0
A12: 8 | B12: Carlos Eduardo | C12: 420 | D12: 12 | E12: 34 | H12: 16 | I12: 26 | L12: 9 | M12: 40 | P12: 8 | Q12: 42 | T12: 14 | U12: 30 | X12: 9 | Y12: 40 | AB12: 7 | AC12: 44 | AG12: 0 | AJ12: 6 | AK12: 46 | AN12: 3 | AO12: 52 | AR12: 15 | AS12: 28 | AV12: 10 | AW12: 38 | AZ12: 0 | BA12: 0 | BB12: 1 | BC12: 0 | BD12: 0 | BE12: 1 | BF12: 1 | BG12: 1 | BH12: 2 | BI12: 1 | BJ12: 0 | BK12: 1 | BL12: 0 | BM12: 1 | BN12: 1 | BO12: 1 | BP12: 0 | BQ12: 0 | BR12: 0 | BS12: 0 | BT12: 0 | BU12: 0 | BV12: 0 | BW12: 0 | BX12: 0 | BY12: 0 | BZ12: 0 | CA12: 0 | CB12: 0 | CC12: 0 | CD12: 0 | CE12: 0 | CF12: 0 | CG12: 0 | CH12: 0 | CI12: 0 | CJ12: 0 | CK12: 0 | CL12: 0 | CM12: 0 | CN12: 0
A13: 9 | B13: Carlos Sampaio | C13: 404 | D13: 25 | E13: 16 | H13: 9 | I13: 40 | L13: 24 | M13: 17 | P13: 2 | Q13: 55 | T13: 16 | U13: 26 | X13: 8 | Y13: 42 | AB13: 6 | AC13: 46 | AF13: 17 | AG13: 24 | AJ13: 17 | AK13: 24 | AN13: 13 | AO13: 32 | AR13: 9 | AS13: 40 | AV13: 8 | AW13: 42 | AZ13: 0 | BA13: 1 | BB13: 0 | BC13: 0 | BD13: 0 | BE13: 1 | BF13: 0 | BG13: 2 | BH13: 2 | BI13: 0 | BJ13: 0 | BK13: 0 | BL13: 1 | BM13: 0 | BN13: 0 | BO13: 1 | BP13: 2 | BQ13: 0 | BR13: 0 | BS13: 0 | BT13: 0 | BU13: 0 | BV13: 0 | BW13: 1 | BX13: 1 | BY13: 0 | BZ13: 0 | CA13: 0 | CB13: 0 | CC13: 0 | CD13: 0 | CE13: 0 | CF13: 0 | CG13: 0 | CH13: 0 | CI13: 0 | CJ13: 0 | CK13: 0 | CL13: 0 | CM13: 0 | CN13: 0
A14: 10 | B14: Guilherme Janot | C14: 391 | D14: 6 | E14: 46 | H14: 6 | I14: 46 | J14: 2 | L14: 17 | M14: 24 | P14: 4 | Q14: 50 | T14: 20 | U14: 21 | X14: 4 | Y14: 50 | AB14: 3 | AC14: 52 | AF14: 13 | AG14: 32 | AI14: SIM | AJ14: 9 | AK14: 40 | AO14: 0 | AR14: 10 | AS14: 38 | AW14: 0 | AY14: -10 | AZ14: 0 | BA14: 0 | BB14: 1 | BC14: 2 | BD14: 0 | BE14: 2 | BF14: 0 | BG14: 0 | BH14: 1 | BI14: 1 | BJ14: 0 | BK14: 0 | BL14: 1 | BM14: 0 | BN14: 0 | BO14: 0 | BP14: 1 | BQ14: 0 | BR14: 0 | BS14: 1 | BT14: 0 | BU14: 0 | BV14: 0 | BW14: 0 | BX14: 0 | BY14: 0 | BZ14: 0 | CA14: 0 | CB14: 0 | CC14: 0 | CD14: 0 | CE14: 0 | CF14: 0 | CG14: 0 | CH14: 0 | CI14: 0 | CJ14: 0 | CK14: 0 | CL14: 0 | CM14: 0 | CN14: 0
A15: 11 | B15: Caetano | C15: 385 | E15: 0 | H15: 13 | I15: 32 | L15: 3 | M15: 52 | P15: 0 | Q15: 0 | S15: SIM | T15: 12 | U15: 34 | X15: 3 | Y15: 52 | AB15: 38 | AC15: 3 | AE15: SIM | AF15: 1 | AG15: 60 | AJ15: 3 | AK15: 52 | AN15: 5 | AO15: 48 | AR15: 3 | AS15: 52 | AW15: 0 | AZ15: 1 | BA15: 0 | BB15: 4 | BC15: 0 | BD15: 1 | BE15: 0 | BF15: 0 | BG15: 0 | BH15: 0 | BI15: 0 | BJ15: 0 | BK15: 1 | BL15: 1 | BM15: 0 | BN15: 0 | BO15: 0 | BP15: 0 | BQ15: 0 | BR15: 0 | BS15: 0 | BT15: 0 | BU15: 0 | BV15: 0 | BW15: 0 | BX15: 0 | BY15: 0 | BZ15: 0 | CA15: 0 | CB15: 0 | CC15: 0 | CD15: 0 | CE15: 0 | CF15: 0 | CG15: 0 | CH15: 0 | CI15: 0 | CJ15: 0 | CK15: 1 | CL15: 0 | CM15: 0 | CN15: 0
A16: 12 | B16: Enio Júnior | C16: 329 | D16: 7 | E16: 44 | H16: 24 | I16: 17 | L16: 22 | M16: 19 | P16: 10 | Q16: 38 | U16: 0 | X16: 12 | Y16: 34 | AB16: 22 | AC16: 19 | AE16: SIM | AG16: 0 | AJ16: 10 | AK16: 38 | AN16: 4 | AO16: 50 | AR16: 11 | AS16: 36 | AV16: 12 | AW16: 34 | AZ16: 0 | BA16: 0 | BB16: 0 | BC16: 1 | BD16: 0 | BE16: 0 | BF16: 1 | BG16: 0 | BH16: 0 | BI16: 2 | BJ16: 1 | BK16: 2 | BL16: 0 | BM16: 0 | BN16: 0 | BO16: 0 | BP16: 0 | BQ16: 0 | BR16: 0 | BS16: 0 | BT16: 0 | BU16: 2 | BV16: 0 | BW16: 1 | BX16: 0 | BY16: 0 | BZ16: 0 | CA16: 0 | CB16: 0 | CC16: 0 | CD16: 0 | CE16: 0 | CF16: 0 | CG16: 0 | CH16: 0 | CI16: 0 | CJ16: 0 | CK16: 0 | CL16: 0 | CM16: 0 | CN16: 0
A17: 13 | B17: Ricardo Araújo | C17: 328 | E17: 0 | H17: 20 | I17: 21 | L17: 28 | M17: 13 | P17: 17 | Q17: 24 | T17: 6 | U17: 46 | X17: 14 | Y17: 30 | AB17: 13 | AC17: 32 | AF17: 14 | AG17: 30 | AJ17: 1 | AK17: 60 | AN17: 27 | AO17: 14 | AQ17: SIM | AR17: 16 | AS17: 26 | AV17: 13 | AW17: 32 | AZ17: 1 | BA17: 0 | BB17: 0 | BC17: 0 | BD17: 0 | BE17: 1 | BF17: 0 | BG17: 0 | BH17: 0 | BI17: 0 | BJ17: 0 | BK17: 0 | BL17: 2 | BM17: 2 | BN17: 0 | BO17: 1 | BP17: 1 | BQ17: 0 | BR17: 0 | BS17: 1 | BT17: 0 | BU17: 0 | BV17: 0 | BW17: 0 | BX17: 0 | BY17: 0 | BZ17: 1 | CA17: 1 | CB17: 0 | CC17: 0 | CD17: 0 | CE17: 0 | CF17: 0 | CG17: 0 | CH17: 0 | CI17: 0 | CJ17: 0 | CK17: 0 | CL17: 0 | CM17: 0 | CN17: 0
A18: 14 | B18: Euclides Almeida | C18: 315 | D18: 30 | E18: 11 | H18: 8 | I18: 42 | L18: 4 | M18: 50 | P18: 31 | Q18: 10 | U18: 0 | X18: 11 | Y18: 36 | AB18: 19 | AC18: 22 | AF18: 15 | AG18: 28 | AK18: 0 | AN18: 6 | AO18: 46 | AR18: 14 | AS18: 30 | AV18: 9 | AW18: 40 | AZ18: 0 | BA18: 0 | BB18: 0 | BC18: 1 | BD18: 0 | BE18: 1 | BF18: 0 | BG18: 1 | BH18: 1 | BI18: 0 | BJ18: 1 | BK18: 0 | BL18: 0 | BM18: 1 | BN18: 1 | BO18: 0 | BP18: 0 | BQ18: 0 | BR18: 1 | BS18: 0 | BT18: 0 | BU18: 0 | BV18: 0 | BW18: 0 | BX18: 0 | BY18: 0 | BZ18: 0 | CA18: 0 | CB18: 0 | CC18: 1 | CD18: 1 | CE18: 0 | CF18: 0 | CG18: 0 | CH18: 0 | CI18: 0 | CJ18: 0 | CK18: 0 | CL18: 0 | CM18: 0 | CN18: 0
A19: 15 | B19: Morvan | C19: 293 | D19: 17 | E19: 24 | H19: 25 | I19: 16 | L19: 10 | M19: 38 | P19: 24 | Q19: 17 | T19: 18 | U19: 23 | X19: 10 | Y19: 38 | AB19: 15 | AC19: 28 | AF19: 18 | AG19: 23 | AJ19: 15 | AK19: 28 | AO19: 0 | AR19: 27 | AS19: 14 | AU19: SIM | AV19: 7 | AW19: 44 | AZ19: 0 | BA19: 0 | BB19: 0 | BC19: 0 | BD19: 0 | BE19: 0 | BF19: 1 | BG19: 0 | BH19: 0 | BI19: 2 | BJ19: 0 | BK19: 0 | BL19: 0 | BM19: 0 | BN19: 2 | BO19: 0 | BP19: 1 | BQ19: 2 | BR19: 0 | BS19: 0 | BT19: 0 | BU19: 0 | BV19: 0 | BW19: 1 | BX19: 1 | BY19: 0 | BZ19: 1 | CA19: 0 | CB19: 0 | CC19: 0 | CD19: 0 | CE19: 0 | CF19: 0 | CG19: 0 | CH19: 0 | CI19: 0 | CJ19: 0 | CK19: 0 | CL19: 0 | CM19: 0 | CN19: 0
A20: 16 | B20: Gijo | C20: 284 | D20: 22 | E20: 19 | H20: 30 | I20: 11 | L20: 14 | M20: 30 | P20: 20 | Q20: 21 | T20: 10 | U20: 38 | X20: 20 | Y20: 21 | AB20: 5 | AC20: 48 | AF20: 9 | AG20: 40 | AJ20: 11 | AK20: 36 | AN20: 9 | AO20: 40 | AS20: 0 | AU20: -10 | AW20: 0 | AY20: -10 | AZ20: 0 | BA20: 0 | BB20: 0 | BC20: 0 | BD20: 1 | BE20: 0 | BF20: 0 | BG20: 0 | BH20: 2 | BI20: 1 | BJ20: 1 | BK20: 0 | BL20: 0 | BM20: 1 | BN20: 0 | BO20: 0 | BP20: 0 | BQ20: 0 | BR20: 0 | BS20: 2 | BT20: 0 | BU20: 1 | BV20: 0 | BW20: 0 | BX20: 0 | BY20: 0 | BZ20: 0 | CA20: 0 | CB20: 0 | CC20: 1 | CD20: 0 | CE20: 0 | CF20: 0 | CG20: 0 | CH20: 0 | CI20: 0 | CJ20: 0 | CK20: 0 | CL20: 0 | CM20: 0 | CN20: 0
A21: 17 | B21: Marcelo Santiago | C21: 273 | D21: 15 | E21: 28 | H21: 23 | I21: 18 | L21: 30 | M21: 11 | P21: 19 | Q21: 22 | T21: 19 | U21: 22 | X21: 15 | Y21: 28 | AB21: 4 | AC21: 50 | AG21: 0 | AJ21: 19 | AK21: 22 | AN21: 14 | AO21: 30 | AR21: 8 | AS21: 42 | AW21: 0 | AZ21: 0 | BA21: 0 | BB21: 0 | BC21: 1 | BD21: 0 | BE21: 0 | BF21: 0 | BG21: 1 | BH21: 0 | BI21: 0 | BJ21: 0 | BK21: 0 | BL21: 0 | BM21: 1 | BN21: 2 | BO21: 0 | BP21: 0 | BQ21: 0 | BR21: 3 | BS21: 0 | BT21: 0 | BU21: 0 | BV21: 1 | BW21: 0 | BX21: 0 | BY21: 0 | BZ21: 0 | CA21: 0 | CB21: 0 | CC21: 1 | CD21: 0 | CE21: 0 | CF21: 0 | CG21: 0 | CH21: 0 | CI21: 0 | CJ21: 0 | CK21: 0 | CL21: 0 | CM21: 0 | CN21: 0
A22: 18 | B22: Rodrigo Rotheia | C22: 259 | D22: 2 | E22: 55 | H22: 11 | I22: 36 | L22: 5 | M22: 48 | P22: 30 | Q22: 11 | U22: 0 | Y22: 0 | AC22: 0 | AG22: 0 | AK22: 0 | AN22: 15 | AO22: 28 | AR22: 2 | AS22: 55 | AV22: 16 | AW22: 26 | AZ22: 0 | BA22: 2 | BB22: 0 | BC22: 0 | BD22: 1 | BE22: 0 | BF22: 0 | BG22: 0 | BH22: 0 | BI22: 0 | BJ22: 1 | BK22: 0 | BL22: 0 | BM22: 0 | BN22: 1 | BO22: 1 | BP22: 0 | BQ22: 0 | BR22: 0 | BS22: 0 | BT22: 0 | BU22: 0 | BV22: 0 | BW22: 0 | BX22: 0 | BY22: 0 | BZ22: 0 | CA22: 0 | CB22: 0 | CC22: 1 | CD22: 0 | CE22: 0 | CF22: 0 | CG22: 0 | CH22: 0 | CI22: 0 | CJ22: 0 | CK22: 0 | CL22: 0 | CM22: 0 | CN22: 0
A23: 19 | B23: Michel Abouud | C23: 225 | D23: 16 | E23: 26 | H23: 35 | I23: 6 | L23: 29 | M23: 12 | P23: 18 | Q23: 23 | T23: 11 | U23: 36 | X23: 17 | Y23: 24 | AB23: 11 | AC23: 36 | AF23: 12 | AG23: 34 | AJ23: 13 | AK23: 32 | AN23: 25 | AO23: 16 | AQ23: SIM | AS23: 0 | AU23: -10 | AW23: 0 | AY23: -10 | AZ23: 0 | BA23: 0 | BB23: 0 | BC23: 0 | BD23: 0 | BE23: 0 | BF23: 0 | BG23: 0 | BH23: 0 | BI23: 0 | BJ23: 2 | BK23: 1 | BL23: 1 | BM23: 0 | BN23: 0 | BO23: 1 | BP23: 1 | BQ23: 1 | BR23: 0 | BS23: 0 | BT23: 0 | BU23: 0 | BV23: 0 | BW23: 0 | BX23: 1 | BY23: 0 | BZ23: 0 | CA23: 0 | CB23: 1 | CC23: 0 | CD23: 0 | CE23: 0 | CF23: 0 | CG23: 0 | CH23: 1 | CI23: 0 | CJ23: 0 | CK23: 0 | CL23: 0 | CM23: 0 | CN23: 0
A24: 20 | B24: Maurílio Carmo | C24: 219 | D24: 10 | E24: 38 | H24: 28 | I24: 13 | K24: SIM | L24: 27 | M24: 14 | P24: 26 | Q24: 15 | T24: 13 | U24: 32 | X24: 18 | Y24: 23 | AB24: 10 | AC24: 38 | AF24: 11 | AG24: 36 | AJ24: 21 | AK24: 20 | AO24: 0 | AS24: 0 | AW24: 0 | AY24: -10 | AZ24: 0 | BA24: 0 | BB24: 0 | BC24: 0 | BD24: 0 | BE24: 0 | BF24: 0 | BG24: 0 | BH24: 0 | BI24: 2 | BJ24: 1 | BK24: 0 | BL24: 1 | BM24: 0 | BN24: 0 | BO24: 0 | BP24: 0 | BQ24: 1 | BR24: 0 | BS24: 0 | BT24: 1 | BU24: 0 | BV24: 0 | BW24: 0 | BX24: 0 | BY24: 1 | BZ24: 1 | CA24: 1 | CB24: 0 | CC24: 0 | CD24: 0 | CE24: 0 | CF24: 0 | CG24: 0 | CH24: 0 | CI24: 0 | CJ24: 0 | CK24: 0 | CL24: 0 | CM24: 0 | CN24: 0
A25: 21 | B25: Leodegario Junior | C25: 210 | D25: 26 | E25: 15 | H25: 31 | I25: 10 | K25: SIM | L25: 35 | M25: 6 | P25: 1 | Q25: 60 | T25: 17 | U25: 24 | Y25: 0 | AB25: 20 | AC25: 21 | AF25: 19 | AG25: 22 | AJ25: 16 | AK25: 26 | AO25: 0 | AQ25: -10 | AS25: 0 | AV25: 11 | AW25: 36 | AZ25: 1 | BA25: 0 | BB25: 0 | BC25: 0 | BD25: 0 | BE25: 0 | BF25: 0 | BG25: 0 | BH25: 0 | BI25: 0 | BJ25: 1 | BK25: 0 | BL25: 0 | BM25: 0 | BN25: 0 | BO25: 1 | BP25: 1 | BQ25: 0 | BR25: 1 | BS25: 1 | BT25: 0 | BU25: 0 | BV25: 0 | BW25: 0 | BX25: 0 | BY25: 1 | BZ25: 0 | CA25: 0 | CB25: 0 | CC25: 0 | CD25: 1 | CE25: 0 | CF25: 0 | CG25: 0 | CH25: 1 | CI25: 0 | CJ25: 0 | CK25: 0 | CL25: 0 | CM25: 0 | CN25: 0
A26: 22 | B26: Edson Ribeiro | C26: 181 | E26: 0 | G26: -10 | H26: 22 | I26: 19 | L26: 19 | M26: 22 | P26: 23 | Q26: 18 | T26: 5 | U26: 48 | X26: 27 | Y26: 14 | AA26: SIM | AB26: 18 | AC26: 23 | AF26: 10 | AG26: 38 | AJ26: 20 | AK26: 21 | AN26: 33 | AO26: 8 | AQ26: SIM | AS26: 0 | AU26: -10 | AW26: 0 | AY26: -10 | AZ26: 0 | BA26: 0 | BB26: 0 | BC26: 0 | BD26: 1 | BE26: 0 | BF26: 0 | BG26: 0 | BH26: 0 | BI26: 1 | BJ26: 0 | BK26: 0 | BL26: 0 | BM26: 0 | BN26: 0 | BO26: 0 | BP26: 0 | BQ26: 1 | BR26: 1 | BS26: 1 | BT26: 0 | BU26: 1 | BV26: 1 | BW26: 0 | BX26: 0 | BY26: 0 | BZ26: 1 | CA26: 0 | CB26: 0 | CC26: 0 | CD26: 0 | CE26: 0 | CF26: 1 | CG26: 0 | CH26: 0 | CI26: 0 | CJ26: 0 | CK26: 0 | CL26: 0 | CM26: 0 | CN26: 0
A27: 23 | B27: Ivan Renault | C27: 177 | D27: 34 | E27: 7 | H27: 1 | I27: 60 | L27: 1 | M27: 60 | N27: 2 | P27: 5 | Q27: 48 | U27: 0 | Y27: 0 | AC27: 0 | AG27: 0 | AK27: 0 | AO27: 0 | AS27: 0 | AW27: 0 | AZ27: 2 | BA27: 0 | BB27: 0 | BC27: 0 | BD27: 1 | BE27: 0 | BF27: 0 | BG27: 0 | BH27: 0 | BI27: 0 | BJ27: 0 | BK27: 0 | BL27: 0 | BM27: 0 | BN27: 0 | BO27: 0 | BP27: 0 | BQ27: 0 | BR27: 0 | BS27: 0 | BT27: 0 | BU27: 0 | BV27: 0 | BW27: 0 | BX27: 0 | BY27: 0 | BZ27: 0 | CA27: 0 | CB27: 0 | CC27: 0 | CD27: 0 | CE27: 0 | CF27: 0 | CG27: 1 | CH27: 0 | CI27: 0 | CJ27: 0 | CK27: 0 | CL27: 0 | CM27: 0 | CN27: 0
A28: 24 | B28: Ricardo Vidigal | C28: 170 | E28: 0 | H28: 19 | I28: 22 | L28: 12 | M28: 34 | P28: 16 | Q28: 26 | T28: 8 | U28: 42 | X28: 6 | Y28: 46 | AC28: 0 | AG28: 0 | AK28: 0 | AO28: 0 | AS28: 0 | AW28: 0 | AZ28: 0 | BA28: 0 | BB28: 0 | BC28: 0 | BD28: 0 | BE28: 1 | BF28: 0 | BG28: 1 | BH28: 0 | BI28: 0 | BJ28: 0 | BK28: 1 | BL28: 0 | BM28: 0 | BN28: 0 | BO28: 1 | BP28: 0 | BQ28: 0 | BR28: 1 | BS28: 0 | BT28: 0 | BU28: 0 | BV28: 0 | BW28: 0 | BX28: 0 | BY28: 0 | BZ28: 0 | CA28: 0 | CB28: 0 | CC28: 0 | CD28: 0 | CE28: 0 | CF28: 0 | CG28: 0 | CH28: 0 | CI28: 0 | CJ28: 0 | CK28: 0 | CL28: 0 | CM28: 0 | CN28: 0
A29: 25 | B29: Carlos Filizolla | C29: 132 | D29: 40 | E29: 1 | G29: SIM | H29: 29 | I29: 12 | L29: 25 | M29: 16 | P29: 14 | Q29: 30 | U29: 0 | Y29: 0 | AB29: 17 | AC29: 24 | AF29: 38 | AG29: 3 | AI29: SIM | AJ29: 18 | AK29: 23 | AN29: 38 | AO29: 3 | AQ29: SIM | AS29: 0 | AU29: -10 | AV29: 14 | AW29: 30 | AZ29: 0 | BA29: 0 | BB29: 0 | BC29: 0 | BD29: 0 | BE29: 0 | BF29: 0 | BG29: 0 | BH29: 0 | BI29: 0 | BJ29: 0 | BK29: 0 | BL29: 0 | BM29: 2 | BN29: 0 | BO29: 0 | BP29: 1 | BQ29: 1 | BR29: 0 | BS29: 0 | BT29: 0 | BU29: 0 | BV29: 0 | BW29: 0 | BX29: 1 | BY29: 0 | BZ29: 0 | CA29: 0 | CB29: 1 | CC29: 0 | CD29: 0 | CE29: 0 | CF29: 0 | CG29: 0 | CH29: 0 | CI29: 0 | CJ29: 0 | CK29: 2 | CL29: 0 | CM29: 1 | CN29: 0
A30: 26 | B30: Roberto Veloso | C30: 129 | D30: 33 | E30: 8 | G30: -10 | H30: 2 | I30: 55 | L30: 6 | M30: 46 | P30: 11 | Q30: 36 | U30: 0 | Y30: 0 | AA30: -10 | AC30: 0 | AG30: 0 | AJ30: 12 | AK30: 34 | AO30: 0 | AQ30: -10 | AS30: 0 | AU30: -10 | AW30: 0 | AY30: -10 | AZ30: 0 | BA30: 1 | BB30: 0 | BC30: 0 | BD30: 0 | BE30: 1 | BF30: 0 | BG30: 0 | BH30: 0 | BI30: 0 | BJ30: 1 | BK30: 1 | BL30: 0 | BM30: 0 | BN30: 0 | BO30: 0 | BP30: 0 | BQ30: 0 | BR30: 0 | BS30: 0 | BT30: 0 | BU30: 0 | BV30: 0 | BW30: 0 | BX30: 0 | BY30: 0 | BZ30: 0 | CA30: 0 | CB30: 0 | CC30: 0 | CD30: 0 | CE30: 0 | CF30: 1 | CG30: 0 | CH30: 0 | CI30: 0 | CJ30: 0 | CK30: 0 | CL30: 0 | CM30: 0 | CN30: 0
A31: 27 | B31: Cláudio Dumont | C31: 110 | D31: 1 | E31: 60 | I31: 0 | L31: 2 | M31: 55 | P31: 6 | Q31: 46 | T31: 22 | U31: 19 | Y31: 0 | AA31: -10 | AC31: 0 | AE31: -10 | AG31: 0 | AI31: -10 | AK31: 0 | AM31: -10 | AO31: 0 | AQ31: -10 | AS31: 0 | AU31: -10 | AW31: 0 | AY31: -10 | AZ31: 1 | BA31: 1 | BB31: 0 | BC31: 0 | BD31: 0 | BE31: 1 | BF31: 0 | BG31: 0 | BH31: 0 | BI31: 0 | BJ31: 0 | BK31: 0 | BL31: 0 | BM31: 0 | BN31: 0 | BO31: 0 | BP31: 0 | BQ31: 0 | BR31: 0 | BS31: 0 | BT31: 0 | BU31: 1 | BV31: 0 | BW31: 0 | BX31: 0 | BY31: 0 | BZ31: 0 | CA31: 0 | CB31: 0 | CC31: 0 | CD31: 0 | CE31: 0 | CF31: 0 | CG31: 0 | CH31: 0 | CI31: 0 | CJ31: 0 | CK31: 0 | CL31: 0 | CM31: 0 | CN31: 0
A32: 28 | B32: Jader Abreu | C32: 72 | E32: 0 | H32: 27 | I32: 14 | L32: 20 | M32: 21 | P32: 21 | Q32: 20 | U32: 0 | Y32: 0 | AA32: -10 | AC32: 0 | AF32: 16 | AG32: 26 | AJ32: 30 | AK32: 11 | AM32: SIM | AO32: 0 | AS32: 0 | AW32: 0 | AY32: -10 | AZ32: 0 | BA32: 0 | BB32: 0 | BC32: 0 | BD32: 0 | BE32: 0 | BF32: 0 | BG32: 0 | BH32: 0 | BI32: 0 | BJ32: 0 | BK32: 0 | BL32: 0 | BM32: 0 | BN32: 0 | BO32: 1 | BP32: 0 | BQ32: 0 | BR32: 0 | BS32: 1 | BT32: 1 | BU32: 0 | BV32: 0 | BW32: 0 | BX32: 0 | BY32: 0 | BZ32: 1 | CA32: 0 | CB32: 0 | CC32: 1 | CD32: 0 | CE32: 0 | CF32: 0 | CG32: 0 | CH32: 0 | CI32: 0 | CJ32: 0 | CK32: 0 | CL32: 0 | CM32: 0 | CN32: 0
A33: 29 | B33: Henrique Castilho | C33: 47 | D33: 35 | E33: 6 | H33: 26 | I33: 15 | L33: 31 | M33: 10 | Q33: 0 | T33: 15 | U33: 28 | Y33: 0 | AB33: 23 | AC33: 18 | AG33: 0 | AK33: 0 | AM33: -10 | AO33: 0 | AQ33: -10 | AS33: 0 | AW33: 0 | AY33: -10 | AZ33: 0 | BA33: 0 | BB33: 0 | BC33: 0 | BD33: 0 | BE33: 0 | BF33: 0 | BG33: 0 | BH33: 0 | BI33: 0 | BJ33: 0 | BK33: 0 | BL33: 0 | BM33: 0 | BN33: 1 | BO33: 0 | BP33: 0 | BQ33: 0 | BR33: 0 | BS33: 0 | BT33: 0 | BU33: 0 | BV33: 1 | BW33: 0 | BX33: 0 | BY33: 1 | BZ33: 0 | CA33: 0 | CB33: 0 | CC33: 0 | CD33: 1 | CE33: 0 | CF33: 0 | CG33: 0 | CH33: 1 | CI33: 0 | CJ33: 0 | CK33: 0 | CL33: 0 | CM33: 0 | CN33: 0
A34: 30 | B34: Reinaldo Paoli | C34: 42 | D34: 9 | E34: 40 | H34: 18 | I34: 23 | L34: 16 | M34: 26 | P34: 28 | Q34: 13 | U34: 0 | W34: -10 | Y34: 0 | AA34: -10 | AC34: 0 | AE34: -10 | AG34: 0 | AK34: 0 | AO34: 0 | AQ34: -10 | AS34: 0 | AU34: -10 | AW34: 0 | AY34: -10 | AZ34: 0 | BA34: 0 | BB34: 0 | BC34: 0 | BD34: 0 | BE34: 0 | BF34: 0 | BG34: 0 | BH34: 1 | BI34: 0 | BJ34: 0 | BK34: 0 | BL34: 0 | BM34: 0 | BN34: 0 | BO34: 1 | BP34: 0 | BQ34: 1 | BR34: 0 | BS34: 0 | BT34: 0 | BU34: 0 | BV34: 0 | BW34: 0 | BX34: 0 | BY34: 0 | BZ34: 0 | CA34: 1 | CB34: 0 | CC34: 0 | CD34: 0 | CE34: 0 | CF34: 0 | CG34: 0 | CH34: 0 | CI34: 0 | CJ34: 0 | CK34: 0 | CL34: 0 | CM34: 0 | CN34: 0
A35: 31 | B35: Jorge Prado | C35: 42 | D35: 27 | E35: 14 | H35: 14 | I35: 30 | L35: 15 | M35: 28 | Q35: 0 | U35: 0 | Y35: 0 | AC35: 0 | AG35: 0 | AK35: 0 | AM35: -10 | AO35: 0 | AQ35: -10 | AS35: 0 | AU35: -10 | AW35: 0 | AZ35: 0 | BA35: 0 | BB35: 0 | BC35: 0 | BD35: 0 | BE35: 0 | BF35: 0 | BG35: 0 | BH35: 0 | BI35: 0 | BJ35: 0 | BK35: 0 | BL35: 0 | BM35: 1 | BN35: 1 | BO35: 0 | BP35: 0 | BQ35: 0 | BR35: 0 | BS35: 0 | BT35: 0 | BU35: 0 | BV35: 0 | BW35: 0 | BX35: 0 | BY35: 0 | BZ35: 1 | CA35: 0 | CB35: 0 | CC35: 0 | CD35: 0 | CE35: 0 | CF35: 0 | CG35: 0 | CH35: 0 | CI35: 0 | CJ35: 0 | CK35: 0 | CL35: 0 | CM35: 0 | CN35: 0
A36: 32 | B36: Alberto Branco | C36: 34 | D36: 28 | E36: 13 | H36: 37 | I36: 4 | L36: 33 | M36: 8 | P36: 29 | Q36: 12 | T36: 24 | U36: 17 | Y36: 0 | AC36: 0 | AG36: 0 | AK36: 0 | AM36: -10 | AO36: 0 | AS36: 0 | AU36: -10 | AW36: 0 | AZ36: 0 | BA36: 0 | BB36: 0 | BC36: 0 | BD36: 0 | BE36: 0 | BF36: 0 | BG36: 0 | BH36: 0 | BI36: 0 | BJ36: 0 | BK36: 0 | BL36: 0 | BM36: 0 | BN36: 0 | BO36: 0 | BP36: 0 | BQ36: 0 | BR36: 0 | BS36: 0 | BT36: 0 | BU36: 0 | BV36: 0 | BW36: 1 | BX36: 0 | BY36: 0 | BZ36: 0 | CA36: 1 | CB36: 1 | CC36: 0 | CD36: 0 | CE36: 0 | CF36: 1 | CG36: 0 | CH36: 0 | CI36: 0 | CJ36: 1 | CK36: 0 | CL36: 0 | CM36: 0 | CN36: 0
A37: 33 | B37: Léo Marx | C37: 32 | D37: 23 | E37: 18 | H37: 12 | I37: 34 | M37: 0 | Q37: 0 | U37: 0 | Y37: 0 | AC37: 0 | AG37: 0 | AK37: 0 | AO37: 0 | AQ37: -10 | AS37: 0 | AW37: 0 | AY37: -10 | AZ37: 0 | BA37: 0 | BB37: 0 | BC37: 0 | BD37: 0 | BE37: 0 | BF37: 0 | BG37: 0 | BH37: 0 | BI37: 0 | BJ37: 0 | BK37: 1 | BL37: 0 | BM37: 0 | BN37: 0 | BO37: 0 | BP37: 0 | BQ37: 0 | BR37: 0 | BS37: 0 | BT37: 0 | BU37: 0 | BV37: 1 | BW37: 0 | BX37: 0 | BY37: 0 | BZ37: 0 | CA37: 0 | CB37: 0 | CC37: 0 | CD37: 0 | CE37: 0 | CF37: 0 | CG37: 0 | CH37: 0 | CI37: 0 | CJ37: 0 | CK37: 0 | CL37: 0 | CM37: 0 | CN37: 0
A38: 34 | B38: Claudio Junqueira | C38: 27 | D38: 4 | E38: 50 | F38: 2 | H38: 21 | I38: 20 | K38: SIM | L38: 26 | M38: 15 | O38: SIM | Q38: 0 | U38: 0 | W38: -10 | Y38: 0 | AA38: -10 | AC38: 0 | AG38: 0 | AK38: 0 | AM38: -10 | AO38: 0 | AQ38: -10 | AS38: 0 | AU38: -10 | AW38: 0 | AY38: -10 | AZ38: 0 | BA38: 0 | BB38: 0 | BC38: 1 | BD38: 0 | BE38: 0 | BF38: 0 | BG38: 0 | BH38: 0 | BI38: 0 | BJ38: 0 | BK38: 0 | BL38: 0 | BM38: 0 | BN38: 0 | BO38: 0 | BP38: 0 | BQ38: 0 | BR38: 0 | BS38: 0 | BT38: 1 | BU38: 0 | BV38: 0 | BW38: 0 | BX38: 0 | BY38: 1 | BZ38: 0 | CA38: 0 | CB38: 0 | CC38: 0 | CD38: 0 | CE38: 0 | CF38: 0 | CG38: 0 | CH38: 0 | CI38: 0 | CJ38: 0 | CK38: 0 | CL38: 0 | CM38: 0 | CN38: 0
A39: 35 | B39: Aldo Silvestre | C39: 0 | E39: 0 | H39: 10 | I39: 38 | M39: 0 | O39: -10 | Q39: 0 | S39: -10 | U39: 0 | W39: -10 | Y39: 0 | AA39: -10 | AC39: 0 | AE39: -10 | AG39: 0 | AK39: 0 | AO39: 0 | AQ39: -10 | AS39: 0 | AU39: -10 | AW39: 0 | AY39: -10 | AZ39: 0 | BA39: 0 | BB39: 0 | BC39: 0 | BD39: 0 | BE39: 0 | BF39: 0 | BG39: 0 | BH39: 0 | BI39: 1 | BJ39: 0 | BK39: 0 | BL39: 0 | BM39: 0 | BN39: 0 | BO39: 0 | BP39: 0 | BQ39: 0 | BR39: 0 | BS39: 0 | BT39: 0 | BU39: 0 | BV39: 0 | BW39: 0 | BX39: 0 | BY39: 0 | BZ39: 0 | CA39: 0 | CB39: 0 | CC39: 0 | CD39: 0 | CE39: 0 | CF39: 0 | CG39: 0 | CH39: 0 | CI39: 0 | CJ39: 0 | CK39: 0 | CL39: 0 | CM39: 0 | CN39: 0
A40: 36 | B40: Anderson Lopes | C40: 0 | D40: 13 | E40: 32 | H40: 33 | I40: 8 | L40: 32 | M40: 9 | Q40: 0 | S40: -10 | U40: 0 | W40: -10 | Y40: 0 | AA40: -10 | AC40: 0 | AE40: -10 | AG40: 0 | AI40: -10 | AK40: 0 | AM40: -10 | AO40: 0 | AQ40: -10 | AS40: 0 | AU40: -10 | AW40: 0 | AY40: -10 | AZ40: 0 | BA40: 0 | BB40: 0 | BC40: 0 | BD40: 0 | BE40: 0 | BF40: 0 | BG40: 0 | BH40: 0 | BI40: 0 | BJ40: 0 | BK40: 0 | BL40: 1 | BM40: 0 | BN40: 0 | BO40: 0 | BP40: 0 | BQ40: 0 | BR40: 0 | BS40: 0 | BT40: 0 | BU40: 0 | BV40: 0 | BW40: 0 | BX40: 0 | BY40: 0 | BZ40: 0 | CA40: 0 | CB40: 0 | CC40: 0 | CD40: 0 | CE40: 1 | CF40: 1 | CG40: 0 | CH40: 0 | CI40: 0 | CJ40: 0 | CK40: 0 | CL40: 0 | CM40: 0 | CN40: 0
A41: 37 | B41: Gustavo Mourão | C41: 0 | D41: 14 | E41: 30 | H41: 34 | I41: 7 | M41: 0 | O41: -10 | Q41: 0 | U41: 0 | W41: -10 | Y41: 0 | AB41: 21 | AC41: 20 | AG41: 0 | AI41: -10 | AK41: 0 | AM41: -10 | AO41: 0 | AQ41: -10 | AS41: 0 | AU41: -10 | AW41: 0 | AY41: -10 | AZ41: 0 | BA41: 0 | BB41: 0 | BC41: 0 | BD41: 0 | BE41: 0 | BF41: 0 | BG41: 0 | BH41: 0 | BI41: 0 | BJ41: 0 | BK41: 0 | BL41: 0 | BM41: 1 | BN41: 0 | BO41: 0 | BP41: 0 | BQ41: 0 | BR41: 0 | BS41: 0 | BT41: 1 | BU41: 0 | BV41: 0 | BW41: 0 | BX41: 0 | BY41: 0 | BZ41: 0 | CA41: 0 | CB41: 0 | CC41: 0 | CD41: 0 | CE41: 0 | CF41: 0 | CG41: 1 | CH41: 0 | CI41: 0 | CJ41: 0 | CK41: 0 | CL41: 0 | CM41: 0 | CN41: 0
A42: 38 | B42: Cláudio Carvalho | C42: 0 | D42: 18 | E42: 23 | H42: 38 | I42: 3 | L42: 36 | M42: 5 | Q42: 0 | U42: 0 | W42: -10 | Y42: 0 | AA42: -10 | AC42: 0 | AG42: 0 | AK42: 0 | AM42: -10 | AO42: 0 | AQ42: -10 | AS42: 0 | AU42: -10 | AW42: 0 | AY42: -10 | AZ42: 0 | BA42: 0 | BB42: 0 | BC42: 0 | BD42: 0 | BE42: 0 | BF42: 0 | BG42: 0 | BH42: 0 | BI42: 0 | BJ42: 0 | BK42: 0 | BL42: 0 | BM42: 0 | BN42: 0 | BO42: 0 | BP42: 0 | BQ42: 1 | BR42: 0 | BS42: 0 | BT42: 0 | BU42: 0 | BV42: 0 | BW42: 0 | BX42: 0 | BY42: 0 | BZ42: 0 | CA42: 0 | CB42: 0 | CC42: 0 | CD42: 0 | CE42: 0 | CF42: 0 | CG42: 0 | CH42: 0 | CI42: 1 | CJ42: 0 | CK42: 1 | CL42: 0 | CM42: 0 | CN42: 0
A43: 39 | B43: Fernando Santos | C43: 0 | D43: 20 | E43: 21 | I43: 0 | M43: 0 | O43: -10 | Q43: 0 | U43: 0 | Y43: 0 | AC43: 0 | AG43: 0 | AI43: -10 | AK43: 0 | AM43: -10 | AO43: 0 | AS43: 0 | AU43: -10 | AW43: 0 | AZ43: 0 | BA43: 0 | BB43: 0 | BC43: 0 | BD43: 0 | BE43: 0 | BF43: 0 | BG43: 0 | BH43: 0 | BI43: 0 | BJ43: 0 | BK43: 0 | BL43: 0 | BM43: 0 | BN43: 0 | BO43: 0 | BP43: 0 | BQ43: 0 | BR43: 0 | BS43: 1 | BT43: 0 | BU43: 0 | BV43: 0 | BW43: 0 | BX43: 0 | BY43: 0 | BZ43: 0 | CA43: 0 | CB43: 0 | CC43: 0 | CD43: 0 | CE43: 0 | CF43: 0 | CG43: 0 | CH43: 0 | CI43: 0 | CJ43: 0 | CK43: 0 | CL43: 0 | CM43: 0 | CN43: 0
A44: 40 | B44: Ederson Lopes | C44: 0 | D44: 32 | E44: 9 | H44: 32 | I44: 9 | L44: 34 | M44: 7 | P44: 27 | Q44: 14 | T44: 21 | U44: 20 | Y44: 0 | AC44: 0 | AE44: -10 | AG44: 0 | AI44: -10 | AK44: 0 | AM44: -10 | AO44: 0 | AQ44: -10 | AS44: 0 | AU44: -10 | AW44: 0 | AY44: -10 | AZ44: 0 | BA44: 0 | BB44: 0 | BC44: 0 | BD44: 0 | BE44: 0 | BF44: 0 | BG44: 0 | BH44: 0 | BI44: 0 | BJ44: 0 | BK44: 0 | BL44: 0 | BM44: 0 | BN44: 0 | BO44: 0 | BP44: 0 | BQ44: 0 | BR44: 0 | BS44: 0 | BT44: 1 | BU44: 0 | BV44: 0 | BW44: 0 | BX44: 0 | BY44: 0 | BZ44: 1 | CA44: 0 | CB44: 0 | CC44: 0 | CD44: 0 | CE44: 2 | CF44: 0 | CG44: 1 | CH44: 0 | CI44: 0 | CJ44: 0 | CK44: 0 | CL44: 0 | CM44: 0 | CN44: 0
A45: 41 | B45: Marcelo Pinheiro | C45: 0 | D45: 31 | E45: 10 | H45: 36 | I45: 5 | L45: 45 | M45: 1 | O45: SIM | P45: 25 | Q45: 16 | T45: 23 | U45: 18 | Y45: 0 | AA45: -10 | AC45: 0 | AG45: 0 | AI45: -10 | AK45: 0 | AM45: -10 | AO45: 0 | AS45: 0 | AU45: -10 | AW45: 0 | AY45: -10 | AZ45: 0 | BA45: 0 | BB45: 0 | BC45: 0 | BD45: 0 | BE45: 0 | BF45: 0 | BG45: 0 | BH45: 0 | BI45: 0 | BJ45: 0 | BK45: 0 | BL45: 0 | BM45: 0 | BN45: 0 | BO45: 0 | BP45: 0 | BQ45: 0 | BR45: 0 | BS45: 0 | BT45: 0 | BU45: 0 | BV45: 1 | BW45: 0 | BX45: 1 | BY45: 0 | BZ45: 0 | CA45: 0 | CB45: 0 | CC45: 0 | CD45: 1 | CE45: 0 | CF45: 0 | CG45: 0 | CH45: 0 | CI45: 1 | CJ45: 0 | CK45: 0 | CL45: 0 | CM45: 0 | CN45: 0
A46: 42 | B46: Adriano Morato | C46: 0 | D46: 29 | E46: 12 | I46: 0 | K46: -10 | M46: 0 | O46: -10 | Q46: 0 | S46: -10 | U46: 0 | Y46: 0 | AC46: 0 | AG46: 0 | AI46: -10 | AK46: 0 | AM46: -10 | AO46: 0 | AQ46: -10 | AS46: 0 | AU46: -10 | AW46: 0 | AY46: -10 | AZ46: 0 | BA46: 0 | BB46: 0 | BC46: 0 | BD46: 0 | BE46: 0 | BF46: 0 | BG46: 0 | BH46: 0 | BI46: 0 | BJ46: 0 | BK46: 0 | BL46: 0 | BM46: 0 | BN46: 0 | BO46: 0 | BP46: 0 | BQ46: 0 | BR46: 0 | BS46: 0 | BT46: 0 | BU46: 0 | BV46: 0 | BW46: 0 | BX46: 0 | BY46: 0 | BZ46: 0 | CA46: 0 | CB46: 1 | CC46: 0 | CD46: 0 | CE46: 0 | CF46: 0 | CG46: 0 | CH46: 0 | CI46: 0 | CJ46: 0 | CK46: 0 | CL46: 0 | CM46: 0 | CN46: 0
A47: 43 | B47: Emerson Lopes | C47: 0 | E47: 0 | G47: -10 | I47: 0 | K47: -10 | M47: 0 | O47: -10 | Q47: 0 | S47: -10 | U47: 0 | W47: -10 | Y47: 0 | AA47: -10 | AC47: 0 | AE47: -10 | AG47: 0 | AI47: -10 | AK47: 0 | AM47: -10 | AO47: 0 | AQ47: -10 | AS47: 0 | AU47: -10 | AW47: 0 | AY47: -10 | AZ47: 0 | BA47: 0 | BB47: 0 | BC47: 0 | BD47: 0 | BE47: 0 | BF47: 0 | BG47: 0 | BH47: 0 | BI47: 0 | BJ47: 0 | BK47: 0 | BL47: 0 | BM47: 0 | BN47: 0 | BO47: 0 | BP47: 0 | BQ47: 0 | BR47: 0 | BS47: 0 | BT47: 0 | BU47: 0 | BV47: 0 | BW47: 0 | BX47: 0 | BY47: 0 | BZ47: 0 | CA47: 0 | CB47: 0 | CC47: 0 | CD47: 0 | CE47: 0 | CF47: 0 | CG47: 0 | CH47: 0 | CI47: 0 | CJ47: 0 | CK47: 0 | CL47: 0 | CM47: 0 | CN47: 0
A48: 44 | B48: Paulo Feitosa | C48: 0 | E48: 0 | I48: 0 | M48: 0 | Q48: 0 | S48: -10 | U48: 0 | Y48: 0 | AC48: 0 | AG48: 0 | AK48: 0 | AO48: 0 | AQ48: -10 | AS48: 0 | AU48: -10 | AW48: 0 | AY48: -10 | AZ48: 0 | BA48: 0 | BB48: 0 | BC48: 0 | BD48: 0 | BE48: 0 | BF48: 0 | BG48: 0 | BH48: 0 | BI48: 0 | BJ48: 0 | BK48: 0 | BL48: 0 | BM48: 0 | BN48: 0 | BO48: 0 | BP48: 0 | BQ48: 0 | BR48: 0 | BS48: 0 | BT48: 0 | BU48: 0 | BV48: 0 | BW48: 0 | BX48: 0 | BY48: 0 | BZ48: 0 | CA48: 0 | CB48: 0 | CC48: 0 | CD48: 0 | CE48: 0 | CF48: 0 | CG48: 0 | CH48: 0 | CI48: 0 | CJ48: 0 | CK48: 0 | CL48: 0 | CM48: 0 | CN48: 0
A49: 45 | B49: Rafael Cançado | C49: 0 | E49: 0 | I49: 0 | M49: 0 | O49: -10 | Q49: 0 | U49: 0 | Y49: 0 | AA49: -10 | AC49: 0 | AE49: -10 | AG49: 0 | AI49: -10 | AK49: 0 | AM49: -10 | AO49: 0 | AS49: 0 | AU49: -10 | AW49: 0 | AY49: -10 | AZ49: 0 | BA49: 0 | BB49: 0 | BC49: 0 | BD49: 0 | BE49: 0 | BF49: 0 | BG49: 0 | BH49: 0 | BI49: 0 | BJ49: 0 | BK49: 0 | BL49: 0 | BM49: 0 | BN49: 0 | BO49: 0 | BP49: 0 | BQ49: 0 | BR49: 0 | BS49: 0 | BT49: 0 | BU49: 0 | BV49: 0 | BW49: 0 | BX49: 0 | BY49: 0 | BZ49: 0 | CA49: 0 | CB49: 0 | CC49: 0 | CD49: 0 | CE49: 0 | CF49: 0 | CG49: 0 | CH49: 0 | CI49: 0 | CJ49: 0 | CK49: 0 | CL49: 0 | CM49: 0 | CN49: 0

Sheet Class. elimin. 2 piores res
A1: 2021 | E1: OK | I1: OK | M1: OK | Q1: OK | U1: OK | Y1: OK | AC1: OK | AG1: OK | AK1: OK | AO1: OK | AS1: OK | AW1: OK
D2: 1ª etapa | H2: 2ª etapa | L2: 3ª etapa | P2: 4ª etapa | T2: 5ª etapa | X2: Etapa 6 22/07/2021 - 20:30 - Quinta-Feira RBC RACING | AB2: Etapa 7 12/08/2021 - 20:30 - Quinta-Feira RBC RACING | AF2: Etapa 8 26/08/2021 - 21:15 | AJ2: Etapa 9 16/09/2021 - 20:30 | AN2: Etapa 10 14/10/2021 - 20:30 | AR2: Etapa 11 11/11/2021 - 20:30 | AV2: 12ª etapa
B4: Nome do (a) Piloto (a) | C4: Pontuação Geral | D4: Posição | E4: Pontos | F4: Bônus | G4: Penalidade | H4: Posição | I4: Pontos | J4: Bônus | K4: Penalidade | L4: Posição | M4: Pontos | N4: Bônus | O4: Penalidade | P4: Posição | Q4: Pontos | R4: Bônus | S4: Penalidade | T4: Posição | U4: Pontos | V4: Bônus | W4: Penalidade | X4: Posição | Y4: Pontos | Z4: Bônus | AA4: Penalidade | AB4: Posição | AC4: Pontos | AD4: Bônus | AE4: Penalidade | AF4: Posição | AG4: Pontos | AH4: Bônus | AI4: Penalidade | AJ4: Posição | AK4: Pontos | AL4: Bônus | AM4: Penalidade | AN4: Posição | AO4: Pontos | AP4: Bônus | AQ4: Penalidade | AR4: Posição | AS4: Pontos | AT4: Bônus | AU4: Penalidade | AV4: Posição | AW4: Pontos | AX4: Bônus | AY4: Penalidade | AZ4: 1º LUGAR | BA4: 2º LUGAR | BB4: 3º LUGAR | BC4: 4º LUGAR | BD4: 5º LUGAR | BE4: 6º LUGAR | BF4: 7º LUGAR | BG4: 8º LUGAR | BH4: 9º LUGAR | BI4: 10º LUGAR | BJ4: 11º LUGAR | BK4: 12º LUGAR | BL4: 13º LUGAR | BM4: 14º LUGAR | BN4: 15º LUGAR | BO4: 16º LUGAR | BP4: 17º LUGAR | BQ4: 18º LUGAR | BR4: 19º LUGAR | BS4: 20º LUGAR | BT4: 21º LUGAR | BU4: 22º LUGAR | BV4: 23º LUGAR | BW4: 24º LUGAR | BX4: 25º LUGAR | BY4: 26º LUGAR | BZ4: 27º LUGAR | CA4: 28º LUGAR | CB4: 29º LUGAR | CC4: 30º LUGAR | CD4: 31º LUGAR | CE4: 32º LUGAR | CF4: 33º LUGAR | CG4: 34º LUGAR | CH4: 35º LUGAR | CI4: 36º LUGAR | CJ4: 37º LUGAR | CK4: 38º LUGAR | CL4: 39º LUGAR | CM4: 40º LUGAR | CN4: 41º LUGAR
A5: 1 | B5: Marcelo Sant'anna | C5: 480 | D5: 19 | E5: 22 | G5: SIM | H5: 17 | I5: 24* | L5: 11 | M5: 36 | P5: 3 | Q5: 52 | T5: 4 | U5: 50 | X5: 13 | Y5: 32* | AB5: 1 | AC5: 60 | AD5: 2 | AF5: 2 | AG5: 55 | AJ5: 8 | AK5: 42 | AN5: 2 | AO5: 55 | AR5: 1 | AS5: 60 | AV5: 6 | AW5: 46 | AZ5: 2 | BA5: 2 | BB5: 1 | BC5: 1 | BD5: 0 | BE5: 1 | BF5: 0 | BG5: 1 | BH5: 0 | BI5: 0 | BJ5: 1 | BK5: 0 | BL5: 1 | BM5: 0 | BN5: 0 | BO5: 0 | BP5: 1 | BQ5: 0 | BR5: 1 | BS5: 0 | BT5: 0 | BU5: 0 | BV5: 0 | BW5: 0 | BX5: 0 | BY5: 0 | BZ5: 0 | CA5: 0 | CB5: 0 | CC5: 0 | CD5: 0 | CE5: 0 | CF5: 0 | CG5: 0 | CH5: 0 | CI5: 0 | CJ5: 0 | CK5: 0 | CL5: 0 | CM5: 0 | CN5: 0
A6: 2 | B6: Marcelo Surerus | C6: 463 | D6: 24 | E6: 17* | H6: 3 | I6: 52 | L6: 7 | M6: 44 | P6: 13 | Q6: 32 | R6: 2 | T6: 2 | U6: 55 | X6: 7 | Y6: 44 | AB6: 16 | AC6: 26* | AF6: 3 | AG6: 52 | AJ6: 7 | AK6: 44 | AN6: 10 | AO6: 38 | AR6: 4 | AS6: 50 | AV6: 4 | AW6: 50 | AZ6: 0 | BA6: 1 | BB6: 2 | BC6: 2 | BD6: 0 | BE6: 0 | BF6: 3 | BG6: 0 | BH6: 0 | BI6: 1 | BJ6: 0 | BK6: 0 | BL6: 1 | BM6: 0 | BN6: 0 | BO6: 1 | BP6: 0 | BQ6: 0 | BR6: 0 | BS6: 0 | BT6: 0 | BU6: 0 | BV6: 0 | BW6: 1 | BX6: 0 | BY6: 0 | BZ6: 0 | CA6: 0 | CB6: 0 | CC6: 0 | CD6: 0 | CE6: 0 | CF6: 0 | CG6: 0 | CH6: 0 | CI6: 0 | CJ6: 0 | CK6: 0 | CL6: 0 | CM6: 0 | CN6: 0
A7: 3 | B7: Alexandre Melillo | C7: 457 | D7: 11 | E7: 36* | H7: 5 | I7: 48 | L7: 8 | M7: 42 | P7: 9 | Q7: 40 | U7: 0* | X7: 2 | Y7: 55 | Z7: 2 | AB7: 14 | AC7: 30 | AE7: SIM | AF7: 8 | AG7: 42 | AJ7: 2 | AK7: 55 | AN7: 8 | AO7: 42 | AR7: 6 | AS7: 46 | AV7: 2 | AW7: 55 | AZ7: 0 | BA7: 3 | BB7: 0 | BC7: 0 | BD7: 1 | BE7: 1 | BF7: 0 | BG7: 3 | BH7: 1 | BI7: 0 | BJ7: 1 | BK7: 0 | BL7: 0 | BM7: 1 | BN7: 0 | BO7: 0 | BP7: 0 | BQ7: 0 | BR7: 0 | BS7: 0 | BT7: 0 | BU7: 0 | BV7: 0 | BW7: 0 | BX7: 0 | BY7: 0 | BZ7: 0 | CA7: 0 | CB7: 0 | CC7: 0 | CD7: 0 | CE7: 0 | CF7: 0 | CG7: 0 | CH7: 0 | CI7: 0 | CJ7: 0 | CK7: 0 | CL7: 0 | CM7: 0 | CN7: 0
A8: 4 | B8: Marcelo Mizrahy | C8: 448 | D8: 3 | E8: 52 | H8: 7 | I8: 44* | L8: 23 | M8: 18* | P8: 7 | Q8: 44 | T8: 3 | U8: 52 | X8: 16 | Y8: 26 | AA8: SIM | AB8: 2 | AC8: 55 | AF8: 6 | AG8: 46 | AJ8: 30 | AK8: 11 | AM8: SIM | AN8: 1 | AO8: 60 | AP8: 2 | AR8: 5 | AS8: 48 | AV8: 3 | AW8: 52 | AZ8: 1 | BA8: 1 | BB8: 3 | BC8: 0 | BD8: 1 | BE8: 1 | BF8: 2 | BG8: 0 | BH8: 0 | BI8: 0 | BJ8: 0 | BK8: 0 | BL8: 0 | BM8: 0 | BN8: 0 | BO8: 1 | BP8: 0 | BQ8: 0 | BR8: 0 | BS8: 0 | BT8: 0 | BU8: 0 | BV8: 1 | BW8: 0 | BX8: 0 | BY8: 0 | BZ8: 0 | CA8: 0 | CB8: 0 | CC8: 1 | CD8: 0 | CE8: 0 | CF8: 0 | CG8: 0 | CH8: 0 | CI8: 0 | CJ8: 0 | CK8: 0 | CL8: 0 | CM8: 0 | CN8: 0
A9: 5 | B9: Marcelo Clemente | C9: 436 | D9: 8 | E9: 42 | I9: 0* | L9: 13 | M9: 32 | P9: 22 | Q9: 19* | T9: 1 | U9: 60 | X9: 19 | Y9: 22 | AB9: 8 | AC9: 42 | AF9: 5 | AG9: 48 | AJ9: 5 | AK9: 48 | AN9: 11 | AO9: 36 | AR9: 7 | AS9: 44 | AV9: 1 | AW9: 60 | AX9: 2 | AZ9: 2 | BA9: 0 | BB9: 0 | BC9: 0 | BD9: 2 | BE9: 0 | BF9: 1 | BG9: 2 | BH9: 0 | BI9: 0 | BJ9: 1 | BK9: 0 | BL9: 1 | BM9: 0 | BN9: 0 | BO9: 0 | BP9: 0 | BQ9: 0 | BR9: 1 | BS9: 0 | BT9: 0 | BU9: 1 | BV9: 0 | BW9: 0 | BX9: 0 | BY9: 0 | BZ9: 0 | CA9: 0 | CB9: 0 | CC9: 0 | CD9: 0 | CE9: 0 | CF9: 0 | CG9: 0 | CH9: 0 | CI9: 0 | CJ9: 0 | CK9: 0 | CL9: 0 | CM9: 0 | CN9: 0
A10: 6 | B10: Jarbas Reis | C10: 426 | D10: 21 | E10: 20* | H10: 4 | I10: 50 | L10: 21 | M10: 20* | P10: 12 | Q10: 34 | T10: 7 | U10: 44 | X10: 1 | Y10: 60 | AB10: 9 | AC10: 40 | AF10: 7 | AG10: 44 | AJ10: 14 | AK10: 30 | AN10: 7 | AO10: 44 | AR10: 13 | AS10: 32 | AV10: 5 | AW10: 48 | AZ10: 1 | BA10: 0 | BB10: 0 | BC10: 1 | BD10: 1 | BE10: 0 | BF10: 3 | BG10: 0 | BH10: 1 | BI10: 0 | BJ10: 0 | BK10: 1 | BL10: 1 | BM10: 1 | BN10: 0 | BO10: 0 | BP10: 0 | BQ10: 0 | BR10: 0 | BS10: 0 | BT10: 2 | BU10: 0 | BV10: 0 | BW10: 0 | BX10: 0 | BY10: 0 | BZ10: 0 | CA10: 0 | CB10: 0 | CC10: 0 | CD10: 0 | CE10: 0 | CF10: 0 | CG10: 0 | CH10: 0 | CI10: 0 | CJ10: 0 | CK10: 0 | CL10: 0 | CM10: 0 | CN10: 0
A11: 7 | B11: Rodrigo Mercadante | C11: 398 | D11: 5 | E11: 48 | H11: 15 | I11: 28* | L11: 18 | M11: 23* | P11: 15 | Q11: 28 | T11: 9 | U11: 40 | V11: 2 | X11: 5 | Y11: 48 | AB11: 12 | AC11: 34 | AF11: 4 | AG11: 50 | AJ11: 4 | AK11: 50 | AL11: 2 | AN11: 12 | AO11: 34 | AR11: 12 | AS11: 34 | AV11: 15 | AW11: 28 | AZ11: 0 | BA11: 0 | BB11: 0 | BC11: 2 | BD11: 2 | BE11: 0 | BF11: 0 | BG11: 0 | BH11: 1 | BI11: 0 | BJ11: 0 | BK11: 3 | BL11: 0 | BM11: 0 | BN11: 3 | BO11: 0 | BP11: 0 | BQ11: 1 | BR11: 0 | BS11: 0 | BT11: 0 | BU11: 0 | BV11: 0 | BW11: 0 | BX11: 0 | BY11: 0 | BZ11: 0 | CA11: 0 | CB11: 0 | CC11: 0 | CD11: 0 | CE11: 0 | CF11: 0 | CG11: 0 | CH11: 0 | CI11: 0 | CJ11: 0 | CK11: 0 | CL11: 0 | CM11: 0 | CN11: 0
A12: 8 | B12: Carlos Eduardo | C12: 394 | D12: 12 | E12: 34 | H12: 16 | I12: 26* | L12: 9 | M12: 40 | P12: 8 | Q12: 42 | T12: 14 | U12: 30 | X12: 9 | Y12: 40 | AB12: 7 | AC12: 44 | AG12: 0* | AJ12: 6 | AK12: 46 | AN12: 3 | AO12: 52 | AR12: 15 | AS12: 28 | AV12: 10 | AW12: 38 | AZ12: 0 | BA12: 0 | BB12: 1 | BC12: 0 | BD12: 0 | BE12: 1 | BF12: 1 | BG12: 1 | BH12: 2 | BI12: 1 | BJ12: 0 | BK12: 1 | BL12: 0 | BM12: 1 | BN12: 1 | BO12: 1 | BP12: 0 | BQ12: 0 | BR12: 0 | BS12: 0 | BT12: 0 | BU12: 0 | BV12: 0 | BW12: 0 | BX12: 0 | BY12: 0 | BZ12: 0 | CA12: 0 | CB12: 0 | CC12: 0 | CD12: 0 | CE12: 0 | CF12: 0 | CG12: 0 | CH12: 0 | CI12: 0 | CJ12: 0 | CK12: 0 | CL12: 0 | CM12: 0 | CN12: 0
A13: 9 | B13: Caetano | C13: 385 | E13: 0* | H13: 13 | I13: 32 | L13: 3 | M13: 52 | P13: 0 | Q13: 0 | S13: SIM | T13: 12 | U13: 34 | X13: 3 | Y13: 52 | AB13: 38 | AC13: 3 | AE13: SIM | AF13: 1 | AG13: 60 | AJ13: 3 | AK13: 52 | AN13: 5 | AO13: 48 | AR13: 3 | AS13: 52 | AW13: 0* | AZ13: 1 | BA13: 0 | BB13: 4 | BC13: 0 | BD13: 1 | BE13: 0 | BF13: 0 | BG13: 0 | BH13: 0 | BI13: 0 | BJ13: 0 | BK13: 1 | BL13: 1 | BM13: 0 | BN13: 0 | BO13: 0 | BP13: 0 | BQ13: 0 | BR13: 0 | BS13: 0 | BT13: 0 | BU13: 0 | BV13: 0 | BW13: 0 | BX13: 0 | BY13: 0 | BZ13: 0 | CA13: 0 | CB13: 0 | CC13: 0 | CD13: 0 | CE13: 0 | CF13: 0 | CG13: 0 | CH13: 0 | CI13: 0 | CJ13: 0 | CK13: 1 | CL13: 0 | CM13: 0 | CN13: 0
A14: 10 | B14: Carlos Sampaio | C14: 371 | D14: 25 | E14: 16* | H14: 9 | I14: 40 | L14: 24 | M14: 17* | P14: 2 | Q14: 55 | T14: 16 | U14: 26 | X14: 8 | Y14: 42 | AB14: 6 | AC14: 46 | AF14: 17 | AG14: 24 | AJ14: 17 | AK14: 24 | AN14: 13 | AO14: 32 | AR14: 9 | AS14: 40 | AV14: 8 | AW14: 42 | AZ14: 0 | BA14: 1 | BB14: 0 | BC14: 0 | BD14: 0 | BE14: 1 | BF14: 0 | BG14: 2 | BH14: 2 | BI14: 0 | BJ14: 0 | BK14: 0 | BL14: 1 | BM14: 0 | BN14: 0 | BO14: 1 | BP14: 2 | BQ14: 0 | BR14: 0 | BS14: 0 | BT14: 0 | BU14: 0 | BV14: 0 | BW14: 1 | BX14: 1 | BY14: 0 | BZ14: 0 | CA14: 0 | CB14: 0 | CC14: 0 | CD14: 0 | CE14: 0 | CF14: 0 | CG14: 0 | CH14: 0 | CI14: 0 | CJ14: 0 | CK14: 0 | CL14: 0 | CM14: 0 | CN14: 0
A15: 11 | B15: Guilherme Janot | C15: 370 | D15: 6 | E15: 46 | H15: 6 | I15: 46 | J15: 2 | L15: 17 | M15: 24 | P15: 4 | Q15: 50 | T15: 20 | U15: 21* | X15: 4 | Y15: 50 | AB15: 3 | AC15: 52 | AF15: 13 | AG15: 32 | AI15: SIM | AJ15: 9 | AK15: 40 | AO15: 0* | AR15: 10 | AS15: 38 | AW15: 0 | AY15: -10 | AZ15: 0 | BA15: 0 | BB15: 1 | BC15: 2 | BD15: 0 | BE15: 2 | BF15: 0 | BG15: 0 | BH15: 1 | BI15: 1 | BJ15: 0 | BK15: 0 | BL15: 1 | BM15: 0 | BN15: 0 | BO15: 0 | BP15: 1 | BQ15: 0 | BR15: 0 | BS15: 1 | BT15: 0 | BU15: 0 | BV15: 0 | BW15: 0 | BX15: 0 | BY15: 0 | BZ15: 0 | CA15: 0 | CB15: 0 | CC15: 0 | CD15: 0 | CE15: 0 | CF15: 0 | CG15: 0 | CH15: 0 | CI15: 0 | CJ15: 0 | CK15: 0 | CL15: 0 | CM15: 0 | CN15: 0
A16: 12 | B16: Enio Júnior | C16: 329 | D16: 7 | E16: 44 | H16: 24 | I16: 17 | L16: 22 | M16: 19 | P16: 10 | Q16: 38 | U16: 0* | X16: 12 | Y16: 34 | AB16: 22 | AC16: 19 | AE16: SIM | AG16: 0* | AJ16: 10 | AK16: 38 | AN16: 4 | AO16: 50 | AR16: 11 | AS16: 36 | AV16: 12 | AW16: 34 | AZ16: 0 | BA16: 0 | BB16: 0 | BC16: 1 | BD16: 0 | BE16: 0 | BF16: 1 | BG16: 0 | BH16: 0 | BI16: 2 | BJ16: 1 | BK16: 2 | BL16: 0 | BM16: 0 | BN16: 0 | BO16: 0 | BP16: 0 | BQ16: 0 | BR16: 0 | BS16: 0 | BT16: 0 | BU16: 2 | BV16: 0 | BW16: 1 | BX16: 0 | BY16: 0 | BZ16: 0 | CA16: 0 | CB16: 0 | CC16: 0 | CD16: 0 | CE16: 0 | CF16: 0 | CG16: 0 | CH16: 0 | CI16: 0 | CJ16: 0 | CK16: 0 | CL16: 0 | CM16: 0 | CN16: 0
A17: 13 | B17: Ricardo Araújo | C17: 315 | E17: 0* | H17: 20 | I17: 21 | L17: 28 | M17: 13* | P17: 17 | Q17: 24 | T17: 6 | U17: 46 | X17: 14 | Y17: 30 | AB17: 13 | AC17: 32 | AF17: 14 | AG17: 30 | AJ17: 1 | AK17: 60 | AN17: 27 | AO17: 14 | AQ17: SIM | AR17: 16 | AS17: 26 | AV17: 13 | AW17: 32 | AZ17: 1 | BA17: 0 | BB17: 0 | BC17: 0 | BD17: 0 | BE17: 1 | BF17: 0 | BG17: 0 | BH17: 0 | BI17: 0 | BJ17: 0 | BK17: 0 | BL17: 2 | BM17: 2 | BN17: 0 | BO17: 1 | BP17: 1 | BQ17: 0 | BR17: 0 | BS17: 1 | BT17: 0 | BU17: 0 | BV17: 0 | BW17: 0 | BX17: 0 | BY17: 0 | BZ17: 1 | CA17: 1 | CB17: 0 | CC17: 0 | CD17: 0 | CE17: 0 | CF17: 0 | CG17: 0 | CH17: 0 | CI17: 0 | CJ17: 0 | CK17: 0 | CL17: 0 | CM17: 0 | CN17: 0
A18: 14 | B18: Euclides Almeida | C18: 315 | D18: 30 | E18: 11 | H18: 8 | I18: 42 | L18: 4 | M18: 50 | P18: 31 | Q18: 10 | U18: 0* | X18: 11 | Y18: 36 | AB18: 19 | AC18: 22 | AF18: 15 | AG18: 28 | AK18: 0* | AN18: 6 | AO18: 46 | AR18: 14 | AS18: 30 | AV18: 9 | AW18: 40 | AZ18: 0 | BA18: 0 | BB18: 0 | BC18: 1 | BD18: 0 | BE18: 1 | BF18: 0 | BG18: 1 | BH18: 1 | BI18: 0 | BJ18: 1 | BK18: 0 | BL18: 0 | BM18: 1 | BN18: 1 | BO18: 0 | BP18: 0 | BQ18: 0 | BR18: 1 | BS18: 0 | BT18: 0 | BU18: 0 | BV18: 0 | BW18: 0 | BX18: 0 | BY18: 0 | BZ18: 0 | CA18: 0 | CB18: 0 | CC18: 1 | CD18: 1 | CE18: 0 | CF18: 0 | CG18: 0 | CH18: 0 | CI18: 0 | CJ18: 0 | CK18: 0 | CL18: 0 | CM18: 0 | CN18: 0
A19: 15 | B19: Morvan | C19: 277 | D19: 17 | E19: 24 | H19: 25 | I19: 16* | L19: 10 | M19: 38 | P19: 24 | Q19: 17 | T19: 18 | U19: 23 | X19: 10 | Y19: 38 | AB19: 15 | AC19: 28 | AF19: 18 | AG19: 23 | AJ19: 15 | AK19: 28 | AO19: 0* | AR19: 27 | AS19: 14 | AU19: SIM | AV19: 7 | AW19: 44 | AZ19: 0 | BA19: 0 | BB19: 0 | BC19: 0 | BD19: 0 | BE19: 0 | BF19: 1 | BG19: 0 | BH19: 0 | BI19: 2 | BJ19: 0 | BK19: 0 | BL19: 0 | BM19: 0 | BN19: 2 | BO19: 0 | BP19: 1 | BQ19: 2 | BR19: 0 | BS19: 0 | BT19: 0 | BU19: 0 | BV19: 0 | BW19: 1 | BX19: 1 | BY19: 0 | BZ19: 1 | CA19: 0 | CB19: 0 | CC19: 0 | CD19: 0 | CE19: 0 | CF19: 0 | CG19: 0 | CH19: 0 | CI19: 0 | CJ19: 0 | CK19: 0 | CL19: 0 | CM19: 0 | CN19: 0
A20: 16 | B20: Marcelo Santiago | C20: 273 | D20: 15 | E20: 28 | H20: 23 | I20: 18 | L20: 30 | M20: 11 | P20: 19 | Q20: 22 | T20: 19 | U20: 22 | X20: 15 | Y20: 28 | AB20: 4 | AC20: 50 | AG20: 0* | AJ20: 19 | AK20: 22 | AN20: 14 | AO20: 30 | AR20: 8 | AS20: 42 | AW20: 0* | AZ20: 0 | BA20: 0 | BB20: 0 | BC20: 1 | BD20: 0 | BE20: 0 | BF20: 0 | BG20: 1 | BH20: 0 | BI20: 0 | BJ20: 0 | BK20: 0 | BL20: 0 | BM20: 1 | BN20: 2 | BO20: 0 | BP20: 0 | BQ20: 0 | BR20: 3 | BS20: 0 | BT20: 0 | BU20: 0 | BV20: 1 | BW20: 0 | BX20: 0 | BY20: 0 | BZ20: 0 | CA20: 0 | CB20: 0 | CC20: 1 | CD20: 0 | CE20: 0 | CF20: 0 | CG20: 0 | CH20: 0 | CI20: 0 | CJ20: 0 | CK20: 0 | CL20: 0 | CM20: 0 | CN20: 0
A21: 17 | B21: Rodrigo Rotheia | C21: 259 | D21: 2 | E21: 55 | H21: 11 | I21: 36 | L21: 5 | M21: 48 | P21: 30 | Q21: 11 | U21: 0* | Y21: 0* | AC21: 0 | AG21: 0 | AK21: 0 | AN21: 15 | AO21: 28 | AR21: 2 | AS21: 55 | AV21: 16 | AW21: 26 | AZ21: 0 | BA21: 2 | BB21: 0 | BC21: 0 | BD21: 1 | BE21: 0 | BF21: 0 | BG21: 0 | BH21: 0 | BI21: 0 | BJ21: 1 | BK21: 0 | BL21: 0 | BM21: 0 | BN21: 1 | BO21: 1 | BP21: 0 | BQ21: 0 | BR21: 0 | BS21: 0 | BT21: 0 | BU21: 0 | BV21: 0 | BW21: 0 | BX21: 0 | BY21: 0 | BZ21: 0 | CA21: 0 | CB21: 0 | CC21: 1 | CD21: 0 | CE21: 0 | CF21: 0 | CG21: 0 | CH21: 0 | CI21: 0 | CJ21: 0 | CK21: 0 | CL21: 0 | CM21: 0 | CN21: 0
A22: 18 | B22: Gijo | C22: 254 | D22: 22 | E22: 19* | H22: 30 | I22: 11* | L22: 14 | M22: 30 | P22: 20 | Q22: 21 | T22: 10 | U22: 38 | X22: 20 | Y22: 21 | AB22: 5 | AC22: 48 | AF22: 9 | AG22: 40 | AJ22: 11 | AK22: 36 | AN22: 9 | AO22: 40 | AS22: 0 | AU22: -10 | AW22: 0 | AY22: -10 | AZ22: 0 | BA22: 0 | BB22: 0 | BC22: 0 | BD22: 1 | BE22: 0 | BF22: 0 | BG22: 0 | BH22: 2 | BI22: 1 | BJ22: 1 | BK22: 0 | BL22: 0 | BM22: 1 | BN22: 0 | BO22: 0 | BP22: 0 | BQ22: 0 | BR22: 0 | BS22: 2 | BT22: 0 | BU22: 1 | BV22: 0 | BW22: 0 | BX22: 0 | BY22: 0 | BZ22: 0 | CA22: 0 | CB22: 0 | CC22: 1 | CD22: 0 | CE22: 0 | CF22: 0 | CG22: 0 | CH22: 0 | CI22: 0 | CJ22: 0 | CK22: 0 | CL22: 0 | CM22: 0 | CN22: 0
A23: 19 | B23: Maurílio Carmo | C23: 219 | D23: 10 | E23: 38 | H23: 28 | I23: 13 | K23: SIM | L23: 27 | M23: 14 | P23: 26 | Q23: 15 | T23: 13 | U23: 32 | X23: 18 | Y23: 23 | AB23: 10 | AC23: 38 | AF23: 11 | AG23: 36 | AJ23: 21 | AK23: 20 | AO23: 0* | AS23: 0* | AW23: 0 | AY23: -10 | AZ23: 0 | BA23: 0 | BB23: 0 | BC23: 0 | BD23: 0 | BE23: 0 | BF23: 0 | BG23: 0 | BH23: 0 | BI23: 2 | BJ23: 1 | BK23: 0 | BL23: 1 | BM23: 0 | BN23: 0 | BO23: 0 | BP23: 0 | BQ23: 1 | BR23: 0 | BS23: 0 | BT23: 1 | BU23: 0 | BV23: 0 | BW23: 0 | BX23: 0 | BY23: 1 | BZ23: 1 | CA23: 1 | CB23: 0 | CC23: 0 | CD23: 0 | CE23: 0 | CF23: 0 | CG23: 0 | CH23: 0 | CI23: 0 | CJ23: 0 | CK23: 0 | CL23: 0 | CM23: 0 | CN23: 0
A24: 20 | B24: Leodegario Junior | C24: 210 | D24: 26 | E24: 15 | H24: 31 | I24: 10 | K24: SIM | L24: 35 | M24: 6 | P24: 1 | Q24: 60 | T24: 17 | U24: 24 | Y24: 0* | AB24: 20 | AC24: 21 | AF24: 19 | AG24: 22 | AJ24: 16 | AK24: 26 | AO24: 0 | AQ24: -10 | AS24: 0* | AV24: 11 | AW24: 36 | AZ24: 1 | BA24: 0 | BB24: 0 | BC24: 0 | BD24: 0 | BE24: 0 | BF24: 0 | BG24: 0 | BH24: 0 | BI24: 0 | BJ24: 1 | BK24: 0 | BL24: 0 | BM24: 0 | BN24: 0 | BO24: 1 | BP24: 1 | BQ24: 0 | BR24: 1 | BS24: 1 | BT24: 0 | BU24: 0 | BV24: 0 | BW24: 0 | BX24: 0 | BY24: 1 | BZ24: 0 | CA24: 0 | CB24: 0 | CC24: 0 | CD24: 1 | CE24: 0 | CF24: 0 | CG24: 0 | CH24: 1 | CI24: 0 | CJ24: 0 | CK24: 0 | CL24: 0 | CM24: 0 | CN24: 0
A25: 21 | B25: Michel Abouud | C25: 207 | D25: 16 | E25: 26 | H25: 35 | I25: 6* | L25: 29 | M25: 12* | P25: 18 | Q25: 23 | T25: 11 | U25: 36 | X25: 17 | Y25: 24 | AB25: 11 | AC25: 36 | AF25: 12 | AG25: 34 | AJ25: 13 | AK25: 32 | AN25: 25 | AO25: 16 | AQ25: SIM | AS25: 0 | AU25: -10 | AW25: 0 | AY25: -10 | AZ25: 0 | BA25: 0 | BB25: 0 | BC25: 0 | BD25: 0 | BE25: 0 | BF25: 0 | BG25: 0 | BH25: 0 | BI25: 0 | BJ25: 2 | BK25: 1 | BL25: 1 | BM25: 0 | BN25: 0 | BO25: 1 | BP25: 1 | BQ25: 1 | BR25: 0 | BS25: 0 | BT25: 0 | BU25: 0 | BV25: 0 | BW25: 0 | BX25: 1 | BY25: 0 | BZ25: 0 | CA25: 0 | CB25: 1 | CC25: 0 | CD25: 0 | CE25: 0 | CF25: 0 | CG25: 0 | CH25: 1 | CI25: 0 | CJ25: 0 | CK25: 0 | CL25: 0 | CM25: 0 | CN25: 0
A26: 22 | B26: Ivan Renault | C26: 177 | D26: 34 | E26: 7 | H26: 1 | I26: 60 | L26: 1 | M26: 60 | N26: 2 | P26: 5 | Q26: 48 | U26: 0* | Y26: 0* | AC26: 0 | AG26: 0 | AK26: 0 | AO26: 0 | AS26: 0 | AW26: 0 | AZ26: 2 | BA26: 0 | BB26: 0 | BC26: 0 | BD26: 1 | BE26: 0 | BF26: 0 | BG26: 0 | BH26: 0 | BI26: 0 | BJ26: 0 | BK26: 0 | BL26: 0 | BM26: 0 | BN26: 0 | BO26: 0 | BP26: 0 | BQ26: 0 | BR26: 0 | BS26: 0 | BT26: 0 | BU26: 0 | BV26: 0 | BW26: 0 | BX26: 0 | BY26: 0 | BZ26: 0 | CA26: 0 | CB26: 0 | CC26: 0 | CD26: 0 | CE26: 0 | CF26: 0 | CG26: 1 | CH26: 0 | CI26: 0 | CJ26: 0 | CK26: 0 | CL26: 0 | CM26: 0 | CN26: 0
A27: 23 | B27: Ricardo Vidigal | C27: 170 | E27: 0* | H27: 19 | I27: 22 | L27: 12 | M27: 34 | P27: 16 | Q27: 26 | T27: 8 | U27: 42 | X27: 6 | Y27: 46 | AC27: 0* | AG27: 0 | AK27: 0 | AO27: 0 | AS27: 0 | AW27: 0 | AZ27: 0 | BA27: 0 | BB27: 0 | BC27: 0 | BD27: 0 | BE27: 1 | BF27: 0 | BG27: 1 | BH27: 0 | BI27: 0 | BJ27: 0 | BK27: 1 | BL27: 0 | BM27: 0 | BN27: 0 | BO27: 1 | BP27: 0 | BQ27: 0 | BR27: 1 | BS27: 0 | BT27: 0 | BU27: 0 | BV27: 0 | BW27: 0 | BX27: 0 | BY27: 0 | BZ27: 0 | CA27: 0 | CB27: 0 | CC27: 0 | CD27: 0 | CE27: 0 | CF27: 0 | CG27: 0 | CH27: 0 | CI27: 0 | CJ27: 0 | CK27: 0 | CL27: 0 | CM27: 0 | CN27: 0
A28: 24 | B28: Edson Ribeiro | C28: 144 | E28: 0 | G28: -10 | H28: 22 | I28: 19* | L28: 19 | M28: 22 | P28: 23 | Q28: 18* | T28: 5 | U28: 48 | X28: 27 | Y28: 14 | AA28: SIM | AB28: 18 | AC28: 23 | AF28: 10 | AG28: 38 | AJ28: 20 | AK28: 21 | AN28: 33 | AO28: 8 | AQ28: SIM | AS28: 0 | AU28: -10 | AW28: 0 | AY28: -10 | AZ28: 0 | BA28: 0 | BB28: 0 | BC28: 0 | BD28: 1 | BE28: 0 | BF28: 0 | BG28: 0 | BH28: 0 | BI28: 1 | BJ28: 0 | BK28: 0 | BL28: 0 | BM28: 0 | BN28: 0 | BO28: 0 | BP28: 0 | BQ28: 1 | BR28: 1 | BS28: 1 | BT28: 0 | BU28: 1 | BV28: 1 | BW28: 0 | BX28: 0 | BY28: 0 | BZ28: 1 | CA28: 0 | CB28: 0 | CC28: 0 | CD28: 0 | CE28: 0 | CF28: 1 | CG28: 0 | CH28: 0 | CI28: 0 | CJ28: 0 | CK28: 0 | CL28: 0 | CM28: 0 | CN28: 0
A29: 25 | B29: Carlos Filizolla | C29: 132 | D29: 40 | E29: 1 | G29: SIM | H29: 29 | I29: 12 | L29: 25 | M29: 16 | P29: 14 | Q29: 30 | U29: 0* | Y29: 0* | AB29: 17 | AC29: 24 | AF29: 38 | AG29: 3 | AI29: SIM | AJ29: 18 | AK29: 23 | AN29: 38 | AO29: 3 | AQ29: SIM | AS29: 0 | AU29: -10 | AV29: 14 | AW29: 30 | AZ29: 0 | BA29: 0 | BB29: 0 | BC29: 0 | BD29: 0 | BE29: 0 | BF29: 0 | BG29: 0 | BH29: 0 | BI29: 0 | BJ29: 0 | BK29: 0 | BL29: 0 | BM29: 2 | BN29: 0 | BO29: 0 | BP29: 1 | BQ29: 1 | BR29: 0 | BS29: 0 | BT29: 0 | BU29: 0 | BV29: 0 | BW29: 0 | BX29: 1 | BY29: 0 | BZ29: 0 | CA29: 0 | CB29: 1 | CC29: 0 | CD29: 0 | CE29: 0 | CF29: 0 | CG29: 0 | CH29: 0 | CI29: 0 | CJ29: 0 | CK29: 2 | CL29: 0 | CM29: 1 | CN29: 0
A30: 26 | B30: Roberto Veloso | C30: 129 | D30: 33 | E30: 8 | G30: -10 | H30: 2 | I30: 55 | L30: 6 | M30: 46 | P30: 11 | Q30: 36 | U30: 0* | Y30: 0 | AA30: -10 | AC30: 0* | AG30: 0 | AJ30: 12 | AK30: 34 | AO30: 0 | AQ30: -10 | AS30: 0 | AU30: -10 | AW30: 0 | AY30: -10 | AZ30: 0 | BA30: 1 | BB30: 0 | BC30: 0 | BD30: 0 | BE30: 1 | BF30: 0 | BG30: 0 | BH30: 0 | BI30: 0 | BJ30: 1 | BK30: 1 | BL30: 0 | BM30: 0 | BN30: 0 | BO30: 0 | BP30: 0 | BQ30: 0 | BR30: 0 | BS30: 0 | BT30: 0 | BU30: 0 | BV30: 0 | BW30: 0 | BX30: 0 | BY30: 0 | BZ30: 0 | CA30: 0 | CB30: 0 | CC30: 0 | CD30: 0 | CE30: 0 | CF30: 1 | CG30: 0 | CH30: 0 | CI30: 0 | CJ30: 0 | CK30: 0 | CL30: 0 | CM30: 0 | CN30: 0
A31: 27 | B31: Cláudio Dumont | C31: 91 | D31: 1 | E31: 60 | I31: 0* | L31: 2 | M31: 55 | P31: 6 | Q31: 46 | T31: 22 | U31: 19* | Y31: 0 | AA31: -10 | AC31: 0 | AE31: -10 | AG31: 0 | AI31: -10 | AK31: 0 | AM31: -10 | AO31: 0 | AQ31: -10 | AS31: 0 | AU31: -10 | AW31: 0 | AY31: -10 | AZ31: 1 | BA31: 1 | BB31: 0 | BC31: 0 | BD31: 0 | BE31: 1 | BF31: 0 | BG31: 0 | BH31: 0 | BI31: 0 | BJ31: 0 | BK31: 0 | BL31: 0 | BM31: 0 | BN31: 0 | BO31: 0 | BP31: 0 | BQ31: 0 | BR31: 0 | BS31: 0 | BT31: 0 | BU31: 1 | BV31: 0 | BW31: 0 | BX31: 0 | BY31: 0 | BZ31: 0 | CA31: 0 | CB31: 0 | CC31: 0 | CD31: 0 | CE31: 0 | CF31: 0 | CG31: 0 | CH31: 0 | CI31: 0 | CJ31: 0 | CK31: 0 | CL31: 0 | CM31: 0 | CN31: 0
A32: 28 | B32: Jader Abreu | C32: 72 | E32: 0* | H32: 27 | I32: 14 | L32: 20 | M32: 21 | P32: 21 | Q32: 20 | U32: 0* | Y32: 0 | AA32: -10 | AC32: 0 | AF32: 16 | AG32: 26 | AJ32: 30 | AK32: 11 | AM32: SIM | AO32: 0 | AS32: 0 | AW32: 0 | AY32: -10 | AZ32: 0 | BA32: 0 | BB32: 0 | BC32: 0 | BD32: 0 | BE32: 0 | BF32: 0 | BG32: 0 | BH32: 0 | BI32: 0 | BJ32: 0 | BK32: 0 | BL32: 0 | BM32: 0 | BN32: 0 | BO32: 1 | BP32: 0 | BQ32: 0 | BR32: 0 | BS32: 1 | BT32: 1 | BU32: 0 | BV32: 0 | BW32: 0 | BX32: 0 | BY32: 0 | BZ32: 1 | CA32: 0 | CB32: 0 | CC32: 1 | CD32: 0 | CE32: 0 | CF32: 0 | CG32: 0 | CH32: 0 | CI32: 0 | CJ32: 0 | CK32: 0 | CL32: 0 | CM32: 0 | CN32: 0
A33: 29 | B33: Henrique Castilho | C33: 47 | D33: 35 | E33: 6 | H33: 26 | I33: 15 | L33: 31 | M33: 10 | Q33: 0* | T33: 15 | U33: 28 | Y33: 0* | AB33: 23 | AC33: 18 | AG33: 0 | AK33: 0 | AM33: -10 | AO33: 0 | AQ33: -10 | AS33: 0 | AW33: 0 | AY33: -10 | AZ33: 0 | BA33: 0 | BB33: 0 | BC33: 0 | BD33: 0 | BE33: 0 | BF33: 0 | BG33: 0 | BH33: 0 | BI33: 0 | BJ33: 0 | BK33: 0 | BL33: 0 | BM33: 0 | BN33: 1 | BO33: 0 | BP33: 0 | BQ33: 0 | BR33: 0 | BS33: 0 | BT33: 0 | BU33: 0 | BV33: 1 | BW33: 0 | BX33: 0 | BY33: 1 | BZ33: 0 | CA33: 0 | CB33: 0 | CC33: 0 | CD33: 1 | CE33: 0 | CF33: 0 | CG33: 0 | CH33: 1 | CI33: 0 | CJ33: 0 | CK33: 0 | CL33: 0 | CM33: 0 | CN33: 0
A34: 30 | B34: Reinaldo Paoli | C34: 42 | D34: 9 | E34: 40 | H34: 18 | I34: 23 | L34: 16 | M34: 26 | P34: 28 | Q34: 13 | U34: 0 | W34: -10 | Y34: 0 | AA34: -10 | AC34: 0 | AE34: -10 | AG34: 0* | AK34: 0* | AO34: 0 | AQ34: -10 | AS34: 0 | AU34: -10 | AW34: 0 | AY34: -10 | AZ34: 0 | BA34: 0 | BB34: 0 | BC34: 0 | BD34: 0 | BE34: 0 | BF34: 0 | BG34: 0 | BH34: 1 | BI34: 0 | BJ34: 0 | BK34: 0 | BL34: 0 | BM34: 0 | BN34: 0 | BO34: 1 | BP34: 0 | BQ34: 1 | BR34: 0 | BS34: 0 | BT34: 0 | BU34: 0 | BV34: 0 | BW34: 0 | BX34: 0 | BY34: 0 | BZ34: 0 | CA34: 1 | CB34: 0 | CC34: 0 | CD34: 0 | CE34: 0 | CF34: 0 | CG34: 0 | CH34: 0 | CI34: 0 | CJ34: 0 | CK34: 0 | CL34: 0 | CM34: 0 | CN34: 0
A35: 31 | B35: Jorge Prado | C35: 42 | D35: 27 | E35: 14 | H35: 14 | I35: 30 | L35: 15 | M35: 28 | Q35: 0* | U35: 0* | Y35: 0 | AC35: 0 | AG35: 0 | AK35: 0 | AM35: -10 | AO35: 0 | AQ35: -10 | AS35: 0 | AU35: -10 | AW35: 0 | AZ35: 0 | BA35: 0 | BB35: 0 | BC35: 0 | BD35: 0 | BE35: 0 | BF35: 0 | BG35: 0 | BH35: 0 | BI35: 0 | BJ35: 0 | BK35: 0 | BL35: 0 | BM35: 1 | BN35: 1 | BO35: 0 | BP35: 0 | BQ35: 0 | BR35: 0 | BS35: 0 | BT35: 0 | BU35: 0 | BV35: 0 | BW35: 0 | BX35: 0 | BY35: 0 | BZ35: 1 | CA35: 0 | CB35: 0 | CC35: 0 | CD35: 0 | CE35: 0 | CF35: 0 | CG35: 0 | CH35: 0 | CI35: 0 | CJ35: 0 | CK35: 0 | CL35: 0 | CM35: 0 | CN35: 0
A36: 32 | B36: Alberto Branco | C36: 34 | D36: 28 | E36: 13 | H36: 37 | I36: 4 | L36: 33 | M36: 8 | P36: 29 | Q36: 12 | T36: 24 | U36: 17 | Y36: 0* | AC36: 0* | AG36: 0 | AK36: 0 | AM36: -10 | AO36: 0 | AS36: 0 | AU36: -10 | AW36: 0 | AZ36: 0 | BA36: 0 | BB36: 0 | BC36: 0 | BD36: 0 | BE36: 0 | BF36: 0 | BG36: 0 | BH36: 0 | BI36: 0 | BJ36: 0 | BK36: 0 | BL36: 0 | BM36: 0 | BN36: 0 | BO36: 0 | BP36: 0 | BQ36: 0 | BR36: 0 | BS36: 0 | BT36: 0 | BU36: 0 | BV36: 0 | BW36: 1 | BX36: 0 | BY36: 0 | BZ36: 0 | CA36: 1 | CB36: 1 | CC36: 0 | CD36: 0 | CE36: 0 | CF36: 1 | CG36: 0 | CH36: 0 | CI36: 0 | CJ36: 1 | CK36: 0 | CL36: 0 | CM36: 0 | CN36: 0
A37: 33 | B37: Léo Marx | C37: 32 | D37: 23 | E37: 18 | H37: 12 | I37: 34 | M37: 0* | Q37: 0* | U37: 0 | Y37: 0 | AC37: 0 | AG37: 0 | AK37: 0 | AO37: 0 | AQ37: -10 | AS37: 0 | AW37: 0 | AY37: -10 | AZ37: 0 | BA37: 0 | BB37: 0 | BC37: 0 | BD37: 0 | BE37: 0 | BF37: 0 | BG37: 0 | BH37: 0 | BI37: 0 | BJ37: 0 | BK37: 1 | BL37: 0 | BM37: 0 | BN37: 0 | BO37: 0 | BP37: 0 | BQ37: 0 | BR37: 0 | BS37: 0 | BT37: 0 | BU37: 0 | BV37: 1 | BW37: 0 | BX37: 0 | BY37: 0 | BZ37: 0 | CA37: 0 | CB37: 0 | CC37: 0 | CD37: 0 | CE37: 0 | CF37: 0 | CG37: 0 | CH37: 0 | CI37: 0 | CJ37: 0 | CK37: 0 | CL37: 0 | CM37: 0 | CN37: 0
A38: 34 | B38: Claudio Junqueira | C38: 27 | D38: 4 | E38: 50 | F38: 2 | H38: 21 | I38: 20 | K38: SIM | L38: 26 | M38: 15 | O38: SIM | Q38: 0* | U38: 0 | W38: -10 | Y38: 0 | AA38: -10 | AC38: 0* | AG38: 0 | AK38: 0 | AM38: -10 | AO38: 0 | AQ38: -10 | AS38: 0 | AU38: -10 | AW38: 0 | AY38: -10 | AZ38: 0 | BA38: 0 | BB38: 0 | BC38: 1 | BD38: 0 | BE38: 0 | BF38: 0 | BG38: 0 | BH38: 0 | BI38: 0 | BJ38: 0 | BK38: 0 | BL38: 0 | BM38: 0 | BN38: 0 | BO38: 0 | BP38: 0 | BQ38: 0 | BR38: 0 | BS38: 0 | BT38: 1 | BU38: 0 | BV38: 0 | BW38: 0 | BX38: 0 | BY38: 1 | BZ38: 0 | CA38: 0 | CB38: 0 | CC38: 0 | CD38: 0 | CE38: 0 | CF38: 0 | CG38: 0 | CH38: 0 | CI38: 0 | CJ38: 0 | CK38: 0 | CL38: 0 | CM38: 0 | CN38: 0
A39: 35 | B39: Aldo Silvestre | C39: 0 | E39: 0* | H39: 10 | I39: 38 | M39: 0 | O39: -10 | Q39: 0 | S39: -10 | U39: 0 | W39: -10 | Y39: 0 | AA39: -10 | AC39: 0 | AE39: -10 | AG39: 0* | AK39: 0 | AO39: 0 | AQ39: -10 | AS39: 0 | AU39: -10 | AW39: 0 | AY39: -10 | AZ39: 0 | BA39: 0 | BB39: 0 | BC39: 0 | BD39: 0 | BE39: 0 | BF39: 0 | BG39: 0 | BH39: 0 | BI39: 1 | BJ39: 0 | BK39: 0 | BL39: 0 | BM39: 0 | BN39: 0 | BO39: 0 | BP39: 0 | BQ39: 0 | BR39: 0 | BS39: 0 | BT39: 0 | BU39: 0 | BV39: 0 | BW39: 0 | BX39: 0 | BY39: 0 | BZ39: 0 | CA39: 0 | CB39: 0 | CC39: 0 | CD39: 0 | CE39: 0 | CF39: 0 | CG39: 0 | CH39: 0 | CI39: 0 | CJ39: 0 | CK39: 0 | CL39: 0 | CM39: 0 | CN39: 0
A40: 36 | B40: Anderson Lopes | C40: 0 | D40: 13 | E40: 32 | H40: 33 | I40: 8* | L40: 32 | M40: 9* | Q40: 0 | S40: -10 | U40: 0 | W40: -10 | Y40: 0 | AA40: -10 | AC40: 0 | AE40: -10 | AG40: 0 | AI40: -10 | AK40: 0 | AM40: -10 | AO40: 0 | AQ40: -10 | AS40: 0 | AU40: -10 | AW40: 0 | AY40: -10 | AZ40: 0 | BA40: 0 | BB40: 0 | BC40: 0 | BD40: 0 | BE40: 0 | BF40: 0 | BG40: 0 | BH40: 0 | BI40: 0 | BJ40: 0 | BK40: 0 | BL40: 1 | BM40: 0 | BN40: 0 | BO40: 0 | BP40: 0 | BQ40: 0 | BR40: 0 | BS40: 0 | BT40: 0 | BU40: 0 | BV40: 0 | BW40: 0 | BX40: 0 | BY40: 0 | BZ40: 0 | CA40: 0 | CB40: 0 | CC40: 0 | CD40: 0 | CE40: 1 | CF40: 1 | CG40: 0 | CH40: 0 | CI40: 0 | CJ40: 0 | CK40: 0 | CL40: 0 | CM40: 0 | CN40: 0
A41: 37 | B41: Gustavo Mourão | C41: 0 | D41: 14 | E41: 30 | H41: 34 | I41: 7 | M41: 0 | O41: -10 | Q41: 0* | U41: 0 | W41: -10 | Y41: 0* | AB41: 21 | AC41: 20 | AG41: 0 | AI41: -10 | AK41: 0 | AM41: -10 | AO41: 0 | AQ41: -10 | AS41: 0 | AU41: -10 | AW41: 0 | AY41: -10 | AZ41: 0 | BA41: 0 | BB41: 0 | BC41: 0 | BD41: 0 | BE41: 0 | BF41: 0 | BG41: 0 | BH41: 0 | BI41: 0 | BJ41: 0 | BK41: 0 | BL41: 0 | BM41: 1 | BN41: 0 | BO41: 0 | BP41: 0 | BQ41: 0 | BR41: 0 | BS41: 0 | BT41: 1 | BU41: 0 | BV41: 0 | BW41: 0 | BX41: 0 | BY41: 0 | BZ41: 0 | CA41: 0 | CB41: 0 | CC41: 0 | CD41: 0 | CE41: 0 | CF41: 0 | CG41: 1 | CH41: 0 | CI41: 0 | CJ41: 0 | CK41: 0 | CL41: 0 | CM41: 0 | CN41: 0
A42: 38 | B42: Cláudio Carvalho | C42: 0 | D42: 18 | E42: 23 | H42: 38 | I42: 3 | L42: 36 | M42: 5 | Q42: 0* | U42: 0 | W42: -10 | Y42: 0 | AA42: -10 | AC42: 0* | AG42: 0 | AK42: 0 | AM42: -10 | AO42: 0 | AQ42: -10 | AS42: 0 | AU42: -10 | AW42: 0 | AY42: -10 | AZ42: 0 | BA42: 0 | BB42: 0 | BC42: 0 | BD42: 0 | BE42: 0 | BF42: 0 | BG42: 0 | BH42: 0 | BI42: 0 | BJ42: 0 | BK42: 0 | BL42: 0 | BM42: 0 | BN42: 0 | BO42: 0 | BP42: 0 | BQ42: 1 | BR42: 0 | BS42: 0 | BT42: 0 | BU42: 0 | BV42: 0 | BW42: 0 | BX42: 0 | BY42: 0 | BZ42: 0 | CA42: 0 | CB42: 0 | CC42: 0 | CD42: 0 | CE42: 0 | CF42: 0 | CG42: 0 | CH42: 0 | CI42: 1 | CJ42: 0 | CK42: 1 | CL42: 0 | CM42: 0 | CN42: 0
A43: 39 | B43: Fernando Santos | C43: 0 | D43: 20 | E43: 21 | I43: 0* | M43: 0 | O43: -10 | Q43: 0* | U43: 0 | Y43: 0 | AC43: 0 | AG43: 0 | AI43: -10 | AK43: 0 | AM43: -10 | AO43: 0 | AS43: 0 | AU43: -10 | AW43: 0 | AZ43: 0 | BA43: 0 | BB43: 0 | BC43: 0 | BD43: 0 | BE43: 0 | BF43: 0 | BG43: 0 | BH43: 0 | BI43: 0 | BJ43: 0 | BK43: 0 | BL43: 0 | BM43: 0 | BN43: 0 | BO43: 0 | BP43: 0 | BQ43: 0 | BR43: 0 | BS43: 1 | BT43: 0 | BU43: 0 | BV43: 0 | BW43: 0 | BX43: 0 | BY43: 0 | BZ43: 0 | CA43: 0 | CB43: 0 | CC43: 0 | CD43: 0 | CE43: 0 | CF43: 0 | CG43: 0 | CH43: 0 | CI43: 0 | CJ43: 0 | CK43: 0 | CL43: 0 | CM43: 0 | CN43: 0
A44: 40 | B44: Ederson Lopes | C44: 0 | D44: 32 | E44: 9 | H44: 32 | I44: 9 | L44: 34 | M44: 7* | P44: 27 | Q44: 14 | T44: 21 | U44: 20 | Y44: 0* | AC44: 0 | AE44: -10 | AG44: 0 | AI44: -10 | AK44: 0 | AM44: -10 | AO44: 0 | AQ44: -10 | AS44: 0 | AU44: -10 | AW44: 0 | AY44: -10 | AZ44: 0 | BA44: 0 | BB44: 0 | BC44: 0 | BD44: 0 | BE44: 0 | BF44: 0 | BG44: 0 | BH44: 0 | BI44: 0 | BJ44: 0 | BK44: 0 | BL44: 0 | BM44: 0 | BN44: 0 | BO44: 0 | BP44: 0 | BQ44: 0 | BR44: 0 | BS44: 0 | BT44: 1 | BU44: 0 | BV44: 0 | BW44: 0 | BX44: 0 | BY44: 0 | BZ44: 1 | CA44: 0 | CB44: 0 | CC44: 0 | CD44: 0 | CE44: 2 | CF44: 0 | CG44: 1 | CH44: 0 | CI44: 0 | CJ44: 0 | CK44: 0 | CL44: 0 | CM44: 0 | CN44: 0
A45: 41 | B45: Marcelo Pinheiro | C45: 0 | D45: 31 | E45: 10 | H45: 36 | I45: 5 | L45: 45 | M45: 1 | O45: SIM | P45: 25 | Q45: 16 | T45: 23 | U45: 18 | Y45: 0 | AA45: -10 | AC45: 0* | AG45: 0 | AI45: -10 | AK45: 0 | AM45: -10 | AO45: 0* | AS45: 0 | AU45: -10 | AW45: 0 | AY45: -10 | AZ45: 0 | BA45: 0 | BB45: 0 | BC45: 0 | BD45: 0 | BE45: 0 | BF45: 0 | BG45: 0 | BH45: 0 | BI45: 0 | BJ45: 0 | BK45: 0 | BL45: 0 | BM45: 0 | BN45: 0 | BO45: 0 | BP45: 0 | BQ45: 0 | BR45: 0 | BS45: 0 | BT45: 0 | BU45: 0 | BV45: 1 | BW45: 0 | BX45: 1 | BY45: 0 | BZ45: 0 | CA45: 0 | CB45: 0 | CC45: 0 | CD45: 1 | CE45: 0 | CF45: 0 | CG45: 0 | CH45: 0 | CI45: 1 | CJ45: 0 | CK45: 0 | CL45: 0 | CM45: 0 | CN45: 0
A46: 42 | B46: Adriano Morato | C46: 0 | D46: 29 | E46: 12 | I46: 0 | K46: -10 | M46: 0 | O46: -10 | Q46: 0 | S46: -10 | U46: 0* | Y46: 0* | AC46: 0 | AG46: 0 | AI46: -10 | AK46: 0 | AM46: -10 | AO46: 0 | AQ46: -10 | AS46: 0 | AU46: -10 | AW46: 0 | AY46: -10 | AZ46: 0 | BA46: 0 | BB46: 0 | BC46: 0 | BD46: 0 | BE46: 0 | BF46: 0 | BG46: 0 | BH46: 0 | BI46: 0 | BJ46: 0 | BK46: 0 | BL46: 0 | BM46: 0 | BN46: 0 | BO46: 0 | BP46: 0 | BQ46: 0 | BR46: 0 | BS46: 0 | BT46: 0 | BU46: 0 | BV46: 0 | BW46: 0 | BX46: 0 | BY46: 0 | BZ46: 0 | CA46: 0 | CB46: 1 | CC46: 0 | CD46: 0 | CE46: 0 | CF46: 0 | CG46: 0 | CH46: 0 | CI46: 0 | CJ46: 0 | CK46: 0 | CL46: 0 | CM46: 0 | CN46: 0
A47: 43 | B47: Emerson Lopes | C47: 0 | E47: 0* | G47: -10 | I47: 0* | K47: -10 | M47: 0 | O47: -10 | Q47: 0 | S47: -10 | U47: 0 | W47: -10 | Y47: 0 | AA47: -10 | AC47: 0 | AE47: -10 | AG47: 0 | AI47: -10 | AK47: 0 | AM47: -10 | AO47: 0 | AQ47: -10 | AS47: 0 | AU47: -10 | AW47: 0 | AY47: -10 | AZ47: 0 | BA47: 0 | BB47: 0 | BC47: 0 | BD47: 0 | BE47: 0 | BF47: 0 | BG47: 0 | BH47: 0 | BI47: 0 | BJ47: 0 | BK47: 0 | BL47: 0 | BM47: 0 | BN47: 0 | BO47: 0 | BP47: 0 | BQ47: 0 | BR47: 0 | BS47: 0 | BT47: 0 | BU47: 0 | BV47: 0 | BW47: 0 | BX47: 0 | BY47: 0 | BZ47: 0 | CA47: 0 | CB47: 0 | CC47: 0 | CD47: 0 | CE47: 0 | CF47: 0 | CG47: 0 | CH47: 0 | CI47: 0 | CJ47: 0 | CK47: 0 | CL47: 0 | CM47: 0 | CN47: 0
A48: 44 | B48: Paulo Feitosa | C48: 0 | E48: 0* | I48: 0* | M48: 0 | Q48: 0 | S48: -10 | U48: 0 | Y48: 0 | AC48: 0 | AG48: 0 | AK48: 0 | AO48: 0 | AQ48: -10 | AS48: 0 | AU48: -10 | AW48: 0 | AY48: -10 | AZ48: 0 | BA48: 0 | BB48: 0 | BC48: 0 | BD48: 0 | BE48: 0 | BF48: 0 | BG48: 0 | BH48: 0 | BI48: 0 | BJ48: 0 | BK48: 0 | BL48: 0 | BM48: 0 | BN48: 0 | BO48: 0 | BP48: 0 | BQ48: 0 | BR48: 0 | BS48: 0 | BT48: 0 | BU48: 0 | BV48: 0 | BW48: 0 | BX48: 0 | BY48: 0 | BZ48: 0 | CA48: 0 | CB48: 0 | CC48: 0 | CD48: 0 | CE48: 0 | CF48: 0 | CG48: 0 | CH48: 0 | CI48: 0 | CJ48: 0 | CK48: 0 | CL48: 0 | CM48: 0 | CN48: 0
A49: 45 | B49: Rafael Cançado | C49: 0 | E49: 0* | I49: 0* | M49: 0 | O49: -10 | Q49: 0 | U49: 0 | Y49: 0 | AA49: -10 | AC49: 0 | AE49: -10 | AG49: 0 | AI49: -10 | AK49: 0 | AM49: -10 | AO49: 0 | AS49: 0 | AU49: -10 | AW49: 0 | AY49: -10 | AZ49: 0 | BA49: 0 | BB49: 0 | BC49: 0 | BD49: 0 | BE49: 0 | BF49: 0 | BG49: 0 | BH49: 0 | BI49: 0 | BJ49: 0 | BK49: 0 | BL49: 0 | BM49: 0 | BN49: 0 | BO49: 0 | BP49: 0 | BQ49: 0 | BR49: 0 | BS49: 0 | BT49: 0 | BU49: 0 | BV49: 0 | BW49: 0 | BX49: 0 | BY49: 0 | BZ49: 0 | CA49: 0 | CB49: 0 | CC49: 0 | CD49: 0 | CE49: 0 | CF49: 0 | CG49: 0 | CH49: 0 | CI49: 0 | CJ49: 0 | CK49: 0 | CL49: 0 | CM49: 0 | CN49: 0

Sheet Tabela Equipes
A1: 2021 | D1: OK | H1: OK | L1: OK | P1: OK | T1: OK | X1: OK | AB1: OK | AF1: OK | AJ1: OK | AN1: OK | AR1: OK | AV1: OK
C2: 1ª etapa | G2: 2ª etapa | K2: 3ª etapa | O2: 4ª etapa | S2: 5ª etapa | W2: Etapa 6 22/07/2021 - 20:30 - Quinta-Feira RBC RACING | AA2: Etapa 7 12/08/2021 - 20:30 - Quinta-Feira RBC RACING | AE2: Etapa 8 26/08/2021 - 21:15 | AI2: Etapa 9 16/09/2021 - 20:30 | AM2: Etapa 10 14/10/2021 - 20:30 | AQ2: Etapa 11 11/11/2021 - 20:30 | AU2: 12ª etapa
C3: 00:00:00 | G3: 00:00:00 | K3: 00:00:00 | O3: 00:00:00 | S3: 00:00:00 | W3: 00:00:00 | AA3: 00:00:00 | AE3: 00:00:00 | AI3: 00:00:00 | AM3: 00:00:00 | AQ3: 00:00:00 | AU3: 00:00:00
A4: EQUIPES | B4: Pontuação Geral | C4: Posição | D4: Pontos | E4: Bônus | F4: Penalidade | G4: Posição | H4: Pontos | I4: Bônus | J4: Penalidade | K4: Posição | L4: Pontos | M4: Bônus | N4: Penalidade | O4: Posição | P4: Pontos | Q4: Bônus | R4: Penalidade | S4: Posição | T4: Pontos | U4: Bônus | V4: Penalidade | W4: Posição | X4: Pontos | Y4: Bônus | Z4: Penalidade | AA4: Posição | AB4: Pontos | AC4: Bônus | AD4: Penalidade | AE4: Posição | AF4: Pontos | AG4: Bônus | AH4: Penalidade | AI4: Posição | AJ4: Pontos | AK4: Bônus | AL4: Penalidade | AM4: Posição | AN4: Pontos | AO4: Bônus | AP4: Penalidade | AQ4: Posição | AR4: Pontos | AS4: Bônus | AT4: Penalidade | AU4: Posição | AV4: Pontos | AW4: Bônus | AX4: Penalidade
A5: LQN | B5: 890 | D5: 57 | E5: 0 | H5: 94 | I5: 0 | L5: 62 | M5: 0 | P5: 94 | Q5: 0 | T5: 111 | U5: 0 | X5: 70 | Y5: 0 | AB5: 76 | AC5: 0 | AF5: 30 | AG5: 0 | AJ5: 106 | AK5: 0 | AN5: 66 | AO5: 0 | AR5: 54 | AS5: 0 | AV5: 70 | AW5: 0
A6: Carlos Eduardo | B6: 420 | C6: 12 | D6: 34 | E6: 0 | G6: 16 | H6: 26 | I6: 0 | K6: 9 | L6: 40 | M6: 0 | O6: 8 | P6: 42 | Q6: 0 | S6: 14 | T6: 30 | U6: 0 | W6: 9 | X6: 40 | Y6: 0 | AA6: 7 | AB6: 44 | AC6: 0 | AE6: 0 | AF6: 0 | AG6: 0 | AI6: 6 | AJ6: 46 | AK6: 0 | AM6: 3 | AN6: 52 | AO6: 0 | AQ6: 15 | AR6: 28 | AS6: 0 | AU6: 10 | AV6: 38 | AW6: 0
A7: Aldo Silvestre | B7: 38 | C7: 0 | D7: 0 | E7: 0 | G7: 10 | H7: 38 | I7: 0 | K7: 0 | L7: 0 | M7: 0 | O7: 0 | P7: 0 | Q7: 0 | S7: 0 | T7: 0 | U7: 0 | W7: 0 | X7: 0 | Y7: 0 | AA7: 0 | AB7: 0 | AC7: 0 | AE7: 0 | AF7: 0 | AG7: 0 | AI7: 0 | AJ7: 0 | AK7: 0 | AM7: 0 | AN7: 0 | AO7: 0 | AQ7: 0 | AR7: 0 | AS7: 0 | AU7: 0 | AV7: 0 | AW7: 0
A8: Alberto Branco | B8: 54 | C8: 28 | D8: 13 | E8: 0 | G8: 37 | H8: 4 | I8: 0 | K8: 33 | L8: 8 | M8: 0 | O8: 29 | P8: 12 | Q8: 0 | S8: 24 | T8: 17 | U8: 0 | W8: 0 | X8: 0 | Y8: 0 | AA8: 0 | AB8: 0 | AC8: 0 | AE8: 0 | AF8: 0 | AG8: 0 | AI8: 0 | AJ8: 0 | AK8: 0 | AM8: 0 | AN8: 0 | AO8: 0 | AQ8: 0 | AR8: 0 | AS8: 0 | AU8: 0 | AV8: 0 | AW8: 0
A9: Marcelo Pinheiro | B9: 50 | C9: 31 | D9: 10 | E9: 0 | G9: 36 | H9: 5 | I9: 0 | K9: 45 | L9: 1 | M9: 0 | O9: 25 | P9: 16 | Q9: 0 | S9: 23 | T9: 18 | U9: 0 | W9: 0 | X9: 0 | Y9: 0 | AA9: 0 | AB9: 0 | AC9: 0 | AE9: 0 | AF9: 0 | AG9: 0 | AI9: 0 | AJ9: 0 | AK9: 0 | AM9: 0 | AN9: 0 | AO9: 0 | AQ9: 0 | AR9: 0 | AS9: 0 | AU9: 0 | AV9: 0 | AW9: 0
A10: Ricardo Araújo | B10: 328 | C10: 0 | D10: 0 | E10: 0 | G10: 20 | H10: 21 | I10: 0 | K10: 28 | L10: 13 | M10: 0 | O10: 17 | P10: 24 | Q10: 0 | S10: 6 | T10: 46 | U10: 0 | W10: 14 | X10: 30 | Y10: 0 | AA10: 13 | AB10: 32 | AC10: 0 | AE10: 14 | AF10: 30 | AG10: 0 | AI10: 1 | AJ10: 60 | AK10: 0 | AM10: 27 | AN10: 14 | AO10: 0 | AQ10: 16 | AR10: 26 | AS10: 0 | AU10: 13 | AV10: 32 | AW10: 0
A11: AST ESTRUTURAS | B11: 909 | D11: 119 | E11: 0 | H11: 71 | I11: 0 | L11: 99 | M11: 0 | P11: 120 | Q11: 0 | T11: 99 | U11: 0 | X11: 26 | Y11: 0 | AB11: 97 | AC11: 0 | AF11: 49 | AG11: 0 | AJ11: 34 | AK11: 0 | AN11: 63 | AO11: 2 | AR11: 48 | AS11: 0 | AV11: 82 | AW11: 0
A12: Cláudio Dumont | B12: 180 | C12: 1 | D12: 60 | E12: 0 | G12: 0 | H12: 0 | I12: 0 | K12: 2 | L12: 55 | M12: 0 | O12: 6 | P12: 46 | Q12: 0 | S12: 22 | T12: 19 | U12: 0 | W12: 0 | X12: 0 | Y12: 0 | AA12: 0 | AB12: 0 | AC12: 0 | AE12: 0 | AF12: 0 | AG12: 0 | AI12: 0 | AJ12: 0 | AK12: 0 | AM12: 0 | AN12: 0 | AO12: 0 | AQ12: 0 | AR12: 0 | AS12: 0 | AU12: 0 | AV12: 0 | AW12: 0
A13: Marcelo Mizrahy | B13: 510 | C13: 3 | D13: 52 | E13: 0 | G13: 7 | H13: 44 | I13: 0 | K13: 23 | L13: 18 | M13: 0 | O13: 7 | P13: 44 | Q13: 0 | S13: 3 | T13: 52 | U13: 0 | W13: 16 | X13: 26 | Y13: 0 | AA13: 2 | AB13: 55 | AC13: 0 | AE13: 6 | AF13: 46 | AG13: 0 | AI13: 30 | AJ13: 11 | AK13: 0 | AM13: 1 | AN13: 60 | AO13: 2 | AQ13: 5 | AR13: 48 | AS13: 0 | AU13: 3 | AV13: 52 | AW13: 0
A14: Carlos Filizolla | B14: 142 | C14: 40 | D14: 1 | E14: 0 | G14: 29 | H14: 12 | I14: 0 | K14: 25 | L14: 16 | M14: 0 | O14: 14 | P14: 30 | Q14: 0 | S14: 0 | T14: 0 | U14: 0 | W14: 0 | X14: 0 | Y14: 0 | AA14: 17 | AB14: 24 | AC14: 0 | AE14: 38 | AF14: 3 | AG14: 0 | AI14: 18 | AJ14: 23 | AK14: 0 | AM14: 38 | AN14: 3 | AO14: 0 | AQ14: 0 | AR14: 0 | AS14: 0 | AU14: 14 | AV14: 30 | AW14: 0
A15: Henrique Castilho | B15: 77 | C15: 35 | D15: 6 | E15: 0 | G15: 26 | H15: 15 | I15: 0 | K15: 31 | L15: 10 | M15: 0 | O15: 0 | P15: 0 | Q15: 0 | S15: 15 | T15: 28 | U15: 0 | W15: 0 | X15: 0 | Y15: 0 | AA15: 23 | AB15: 18 | AC15: 0 | AE15: 0 | AF15: 0 | AG15: 0 | AI15: 0 | AJ15: 0 | AK15: 0 | AM15: 0 | AN15: 0 | AO15: 0 | AQ15: 0 | AR15: 0 | AS15: 0 | AU15: 0 | AV15: 0 | AW15: 0
A16: XXXXXXXX | B16: 0
A17: CLEMENTE CAR | B17: 841 | D17: 100 | E17: 0 | H17: 28 | I17: 0 | L17: 74 | M17: 0 | P17: 62 | Q17: 0 | T17: 96 | U17: 0 | X17: 46 | Y17: 0 | AB17: 78 | AC17: 0 | AF17: 108 | AG17: 0 | AJ17: 91 | AK17: 0 | AN17: 52 | AO17: 0 | AR17: 44 | AS17: 0 | AV17: 60 | AW17: 2
A18: Marcelo Clemente | B18: 455 | C18: 8 | D18: 42 | E18: 0 | G18: 0 | H18: 0 | I18: 0 | K18: 13 | L18: 32 | M18: 0 | O18: 22 | P18: 19 | Q18: 0 | S18: 1 | T18: 60 | U18: 0 | W18: 19 | X18: 22 | Y18: 0 | AA18: 8 | AB18: 42 | AC18: 0 | AE18: 5 | AF18: 48 | AG18: 0 | AI18: 5 | AJ18: 48 | AK18: 0 | AM18: 11 | AN18: 36 | AO18: 0 | AQ18: 7 | AR18: 44 | AS18: 0 | AU18: 1 | AV18: 60 | AW18: 2
A19: Jader Abreu | B19: 92 | C19: 0 | D19: 0 | E19: 0 | G19: 27 | H19: 14 | I19: 0 | K19: 20 | L19: 21 | M19: 0 | O19: 21 | P19: 20 | Q19: 0 | S19: 0 | T19: 0 | U19: 0 | W19: 0 | X19: 0 | Y19: 0 | AA19: 0 | AB19: 0 | AC19: 0 | AE19: 16 | AF19: 26 | AG19: 0 | AI19: 30 | AJ19: 11 | AK19: 0 | AM19: 0 | AN19: 0 | AO19: 0 | AQ19: 0 | AR19: 0 | AS19: 0 | AU19: 0 | AV19: 0 | AW19: 0
A20: Anderson Lopes | B20: 49 | C20: 13 | D20: 32 | E20: 0 | G20: 33 | H20: 8 | I20: 0 | K20: 32 | L20: 9 | M20: 0 | O20: 0 | P20: 0 | Q20: 0 | S20: 0 | T20: 0 | U20: 0 | W20: 0 | X20: 0 | Y20: 0 | AA20: 0 | AB20: 0 | AC20: 0 | AE20: 0 | AF20: 0 | AG20: 0 | AI20: 0 | AJ20: 0 | AK20: 0 | AM20: 0 | AN20: 0 | AO20: 0 | AQ20: 0 | AR20: 0 | AS20: 0 | AU20: 0 | AV20: 0 | AW20: 0
A21: Michel Abouud | B21: 245 | C21: 16 | D21: 26 | E21: 0 | G21: 35 | H21: 6 | I21: 0 | K21: 29 | L21: 12 | M21: 0 | O21: 18 | P21: 23 | Q21: 0 | S21: 11 | T21: 36 | U21: 0 | W21: 17 | X21: 24 | Y21: 0 | AA21: 11 | AB21: 36 | AC21: 0 | AE21: 12 | AF21: 34 | AG21: 0 | AI21: 13 | AJ21: 32 | AK21: 0 | AM21: 25 | AN21: 16 | AO21: 0 | AQ21: 0 | AR21: 0 | AS21: 0 | AU21: 0 | AV21: 0 | AW21: 0
A22: XXXXXXXX | B22: 0
A23: VIAKART | B23: 1464 | D23: 109 | E23: 0 | H23: 123 | I23: 2 | L23: 112 | M23: 0 | P23: 122 | Q23: 0 | T23: 126 | U23: 0 | X23: 169 | Y23: 0 | AB23: 168 | AC23: 0 | AF23: 139 | AG23: 0 | AJ23: 134 | AK23: 0 | AN23: 84 | AO23: 0 | AR23: 84 | AS23: 0 | AV23: 92 | AW23: 0
A24: Jarbas Reis | B24: 466 | C24: 21 | D24: 20 | E24: 0 | G24: 4 | H24: 50 | I24: 0 | K24: 21 | L24: 20 | M24: 0 | O24: 12 | P24: 34 | Q24: 0 | S24: 7 | T24: 44 | U24: 0 | W24: 1 | X24: 60 | Y24: 0 | AA24: 9 | AB24: 40 | AC24: 0 | AE24: 7 | AF24: 44 | AG24: 0 | AI24: 14 | AJ24: 30 | AK24: 0 | AM24: 7 | AN24: 44 | AO24: 0 | AQ24: 13 | AR24: 32 | AS24: 0 | AU24: 5 | AV24: 48 | AW24: 0
A25: Guilherme Janot | B25: 401 | C25: 6 | D25: 46 | E25: 0 | G25: 6 | H25: 46 | I25: 2 | K25: 17 | L25: 24 | M25: 0 | O25: 4 | P25: 50 | Q25: 0 | S25: 20 | T25: 21 | U25: 0 | W25: 4 | X25: 50 | Y25: 0 | AA25: 3 | AB25: 52 | AC25: 0 | AE25: 13 | AF25: 32 | AG25: 0 | AI25: 9 | AJ25: 40 | AK25: 0 | AM25: 0 | AN25: 0 | AO25: 0 | AQ25: 10 | AR25: 38 | AS25: 0 | AU25: 0 | AV25: 0 | AW25: 0
A26: Morvan | B26: 293 | C26: 17 | D26: 24 | E26: 0 | G26: 25 | H26: 16 | I26: 0 | K26: 10 | L26: 38 | M26: 0 | O26: 24 | P26: 17 | Q26: 0 | S26: 18 | T26: 23 | U26: 0 | W26: 10 | X26: 38 | Y26: 0 | AA26: 15 | AB26: 28 | AC26: 0 | AE26: 18 | AF26: 23 | AG26: 0 | AI26: 15 | AJ26: 28 | AK26: 0 | AM26: 0 | AN26: 0 | AO26: 0 | AQ26: 27 | AR26: 14 | AS26: 0 | AU26: 7 | AV26: 44 | AW26: 0
A27: Gijo | B27: 304 | C27: 22 | D27: 19 | E27: 0 | G27: 30 | H27: 11 | I27: 0 | K27: 14 | L27: 30 | M27: 0 | O27: 20 | P27: 21 | Q27: 0 | S27: 10 | T27: 38 | U27: 0 | W27: 20 | X27: 21 | Y27: 0 | AA27: 5 | AB27: 48 | AC27: 0 | AE27: 9 | AF27: 40 | AG27: 0 | AI27: 11 | AJ27: 36 | AK27: 0 | AM27: 9 | AN27: 40 | AO27: 0 | AQ27: 0 | AR27: 0 | AS27: 0 | AU27: 0 | AV27: 0 | AW27: 0
A28: XXXXXXXX | B28: 0
A29: TIRA GRILOS | B29: 962 | D29: 85 | E29: 0 | H29: 151 | I29: 0 | L29: 96 | M29: 2 | P29: 141 | Q29: 0 | T29: 26 | U29: 0 | X29: 76 | Y29: 0 | AB29: 65 | AC29: 0 | AF29: 24 | AG29: 0 | AJ29: 62 | AK29: 0 | AN29: 82 | AO29: 0 | AR29: 76 | AS29: 0 | AV29: 76 | AW29: 0
A30: Léo Marx | B30: 52 | C30: 23 | D30: 18 | E30: 0 | G30: 12 | H30: 34 | I30: 0 | K30: 0 | L30: 0 | M30: 0 | O30: 0 | P30: 0 | Q30: 0 | S30: 0 | T30: 0 | U30: 0 | W30: 0 | X30: 0 | Y30: 0 | AA30: 0 | AB30: 0 | AC30: 0 | AE30: 0 | AF30: 0 | AG30: 0 | AI30: 0 | AJ30: 0 | AK30: 0 | AM30: 0 | AN30: 0 | AO30: 0 | AQ30: 0 | AR30: 0 | AS30: 0 | AU30: 0 | AV30: 0 | AW30: 0
A31: Ivan Renault | B31: 177 | C31: 34 | D31: 7 | E31: 0 | G31: 1 | H31: 60 | I31: 0 | K31: 1 | L31: 60 | M31: 2 | O31: 5 | P31: 48 | Q31: 0 | S31: 0 | T31: 0 | U31: 0 | W31: 0 | X31: 0 | Y31: 0 | AA31: 0 | AB31: 0 | AC31: 0 | AE31: 0 | AF31: 0 | AG31: 0 | AI31: 0 | AJ31: 0 | AK31: 0 | AM31: 0 | AN31: 0 | AO31: 0 | AQ31: 0 | AR31: 0 | AS31: 0 | AU31: 0 | AV31: 0 | AW31: 0
A32: Carlos Sampaio | B32: 404 | C32: 25 | D32: 16 | E32: 0 | G32: 9 | H32: 40 | I32: 0 | K32: 24 | L32: 17 | M32: 0 | O32: 2 | P32: 55 | Q32: 0 | S32: 16 | T32: 26 | U32: 0 | W32: 8 | X32: 42 | Y32: 0 | AA32: 6 | AB32: 46 | AC32: 0 | AE32: 17 | AF32: 24 | AG32: 0 | AI32: 17 | AJ32: 24 | AK32: 0 | AM32: 13 | AN32: 32 | AO32: 0 | AQ32: 9 | AR32: 40 | AS32: 0 | AU32: 8 | AV32: 42 | AW32: 0
A33: Enio Júnior | B33: 329 | C33: 7 | D33: 44 | E33: 0 | G33: 24 | H33: 17 | I33: 0 | K33: 22 | L33: 19 | M33: 0 | O33: 10 | P33: 38 | Q33: 0 | S33: 0 | T33: 0 | U33: 0 | W33: 12 | X33: 34 | Y33: 0 | AA33: 22 | AB33: 19 | AC33: 0 | AE33: 0 | AF33: 0 | AG33: 0 | AI33: 10 | AJ33: 38 | AK33: 0 | AM33: 4 | AN33: 50 | AO33: 0 | AQ33: 11 | AR33: 36 | AS33: 0 | AU33: 12 | AV33: 34 | AW33: 0
A34: XXXXXXXX | B34: 0
A35: DELCAR | B35: 691 | D35: 111 | E35: 0 | H35: 101 | I35: 0 | L35: 100 | M35: 0 | P35: 107 | Q35: 0 | T35: 24 | U35: 0 | X35: 0 | Y35: 0 | AB35: 21 | AC35: 0 | AF35: 22 | AG35: 0 | AJ35: 60 | AK35: 0 | AN35: 28 | AO35: 0 | AR35: 55 | AS35: 0 | AV35: 62 | AW35: 0
A36: Rodrigo Rotheia | B36: 259 | C36: 2 | D36: 55 | E36: 0 | G36: 11 | H36: 36 | I36: 0 | K36: 5 | L36: 48 | M36: 0 | O36: 30 | P36: 11 | Q36: 0 | S36: 0 | T36: 0 | U36: 0 | W36: 0 | X36: 0 | Y36: 0 | AA36: 0 | AB36: 0 | AC36: 0 | AE36: 0 | AF36: 0 | AG36: 0 | AI36: 0 | AJ36: 0 | AK36: 0 | AM36: 15 | AN36: 28 | AO36: 0 | AQ36: 2 | AR36: 55 | AS36: 0 | AU36: 16 | AV36: 26 | AW36: 0
A37: Adriano Morato | B37: 12 | C37: 29 | D37: 12 | E37: 0 | G37: 0 | H37: 0 | I37: 0 | K37: 0 | L37: 0 | M37: 0 | O37: 0 | P37: 0 | Q37: 0 | S37: 0 | T37: 0 | U37: 0 | W37: 0 | X37: 0 | Y37: 0 | AA37: 0 | AB37: 0 | AC37: 0 | AE37: 0 | AF37: 0 | AG37: 0 | AI37: 0 | AJ37: 0 | AK37: 0 | AM37: 0 | AN37: 0 | AO37: 0 | AQ37: 0 | AR37: 0 | AS37: 0 | AU37: 0 | AV37: 0 | AW37: 0
A38: Leodegario Junior | B38: 220 | C38: 26 | D38: 15 | E38: 0 | G38: 31 | H38: 10 | I38: 0 | K38: 35 | L38: 6 | M38: 0 | O38: 1 | P38: 60 | Q38: 0 | S38: 17 | T38: 24 | U38: 0 | W38: 0 | X38: 0 | Y38: 0 | AA38: 20 | AB38: 21 | AC38: 0 | AE38: 19 | AF38: 22 | AG38: 0 | AI38: 16 | AJ38: 26 | AK38: 0 | AM38: 0 | AN38: 0 | AO38: 0 | AQ38: 0 | AR38: 0 | AS38: 0 | AU38: 11 | AV38: 36 | AW38: 0
A39: Fernando Santos | B39: 21 | C39: 20 | D39: 21 | E39: 0 | G39: 0 | H39: 0 | I39: 0 | K39: 0 | L39: 0 | M39: 0 | O39: 0 | P39: 0 | Q39: 0 | S39: 0 | T39: 0 | U39: 0 | W39: 0 | X39: 0 | Y39: 0 | AA39: 0 | AB39: 0 | AC39: 0 | AE39: 0 | AF39: 0 | AG39: 0 | AI39: 0 | AJ39: 0 | AK39: 0 | AM39: 0 | AN39: 0 | AO39: 0 | AQ39: 0 | AR39: 0 | AS39: 0 | AU39: 0 | AV39: 0 | AW39: 0
A40: Roberto Veloso | B40: 179 | C40: 33 | D40: 8 | E40: 0 | G40: 2 | H40: 55 | I40: 0 | K40: 6 | L40: 46 | M40: 0 | O40: 11 | P40: 36 | Q40: 0 | S40: 0 | T40: 0 | U40: 0 | W40: 0 | X40: 0 | Y40: 0 | AA40: 0 | AB40: 0 | AC40: 0 | AE40: 0 | AF40: 0 | AG40: 0 | AI40: 12 | AJ40: 34 | AK40: 0 | AM40: 0 | AN40: 0 | AO40: 0 | AQ40: 0 | AR40: 0 | AS40: 0 | AU40: 0 | AV40: 0 | AW40: 0
A41: ALPHA ENGENHARIA | B41: 1012 | D41: 82 | E41: 0 | H41: 98 | I41: 0 | L41: 119 | M41: 0 | P41: 89 | Q41: 0 | T41: 70 | U41: 0 | X41: 68 | Y41: 0 | AB41: 82 | AC41: 2 | AF41: 83 | AG41: 0 | AJ41: 42 | AK41: 0 | AN41: 101 | AO41: 0 | AR41: 90 | AS41: 0 | AV41: 86 | AW41: 0
A42: Marcelo Sant'anna | B42: 536 | C42: 19 | D42: 22 | E42: 0 | G42: 17 | H42: 24 | I42: 0 | K42: 11 | L42: 36 | M42: 0 | O42: 3 | P42: 52 | Q42: 0 | S42: 4 | T42: 50 | U42: 0 | W42: 13 | X42: 32 | Y42: 0 | AA42: 1 | AB42: 60 | AC42: 2 | AE42: 2 | AF42: 55 | AG42: 0 | AI42: 8 | AJ42: 42 | AK42: 0 | AM42: 2 | AN42: 55 | AO42: 0 | AQ42: 1 | AR42: 60 | AS42: 0 | AU42: 6 | AV42: 46 | AW42: 0
A43: Reinaldo Paoli | B43: 102 | C43: 9 | D43: 40 | E43: 0 | G43: 18 | H43: 23 | I43: 0 | K43: 16 | L43: 26 | M43: 0 | O43: 28 | P43: 13 | Q43: 0 | S43: 0 | T43: 0 | U43: 0 | W43: 0 | X43: 0 | Y43: 0 | AA43: 0 | AB43: 0 | AC43: 0 | AE43: 0 | AF43: 0 | AG43: 0 | AI43: 0 | AJ43: 0 | AK43: 0 | AM43: 0 | AN43: 0 | AO43: 0 | AQ43: 0 | AR43: 0 | AS43: 0 | AU43: 0 | AV43: 0 | AW43: 0
A44: Ederson Lopes | B44: 59 | C44: 32 | D44: 9 | E44: 0 | G44: 32 | H44: 9 | I44: 0 | K44: 34 | L44: 7 | M44: 0 | O44: 27 | P44: 14 | Q44: 0 | S44: 21 | T44: 20 | U44: 0 | W44: 0 | X44: 0 | Y44: 0 | AA44: 0 | AB44: 0 | AC44: 0 | AE44: 0 | AF44: 0 | AG44: 0 | AI44: 0 | AJ44: 0 | AK44: 0 | AM44: 0 | AN44: 0 | AO44: 0 | AQ44: 0 | AR44: 0 | AS44: 0 | AU44: 0 | AV44: 0 | AW44: 0
A45: Euclides Almeida | B45: 315 | C45: 30 | D45: 11 | E45: 0 | G45: 8 | H45: 42 | I45: 0 | K45: 4 | L45: 50 | M45: 0 | O45: 31 | P45: 10 | Q45: 0 | S45: 0 | T45: 0 | U45: 0 | W45: 11 | X45: 36 | Y45: 0 | AA45: 19 | AB45: 22 | AC45: 0 | AE45: 15 | AF45: 28 | AG45: 0 | AI45: 0 | AJ45: 0 | AK45: 0 | AM45: 6 | AN45: 46 | AO45: 0 | AQ45: 14 | AR45: 30 | AS45: 0 | AU45: 9 | AV45: 40 | AW45: 0
A46: XXXXXXXX
A47: RBC | B47: 635 | D47: 61 | E47: 0 | H47: 89 | I47: 0 | L47: 72 | M47: 0 | P47: 32 | Q47: 2 | T47: 55 | U47: 0 | X47: 44 | Y47: 0 | AB47: 46 | AC47: 0 | AF47: 52 | AG47: 0 | AJ47: 44 | AK47: 0 | AN47: 38 | AO47: 0 | AR47: 50 | AS47: 0 | AV47: 50 | AW47: 0
A48: Marcelo Surerus | B48: 506 | C48: 24 | D48: 17 | E48: 0 | G48: 3 | H48: 52 | I48: 0 | K48: 7 | L48: 44 | M48: 0 | O48: 13 | P48: 32 | Q48: 2 | S48: 2 | T48: 55 | U48: 0 | W48: 7 | X48: 44 | Y48: 0 | AA48: 16 | AB48: 26 | AC48: 0 | AE48: 3 | AF48: 52 | AG48: 0 | AI48: 7 | AJ48: 44 | AK48: 0 | AM48: 10 | AN48: 38 | AO48: 0 | AQ48: 4 | AR48: 50 | AS48: 0 | AU48: 4 | AV48: 50 | AW48: 0
A49: Paulo Feitosa | B49: 0 | C49: 0 | D49: 0 | E49: 0 | G49: 0 | H49: 0 | I49: 0 | K49: 0 | L49: 0 | M49: 0 | O49: 0 | P49: 0 | Q49: 0 | S49: 0 | T49: 0 | U49: 0 | W49: 0 | X49: 0 | Y49: 0 | AA49: 0 | AB49: 0 | AC49: 0 | AE49: 0 | AF49: 0 | AG49: 0 | AI49: 0 | AJ49: 0 | AK49: 0 | AM49: 0 | AN49: 0 | AO49: 0 | AQ49: 0 | AR49: 0 | AS49: 0 | AU49: 0 | AV49: 0 | AW49: 0
A50: Gustavo Mourão | B50: 57 | C50: 14 | D50: 30 | E50: 0 | G50: 34 | H50: 7 | I50: 0 | K50: 0 | L50: 0 | M50: 0 | O50: 0 | P50: 0 | Q50: 0 | S50: 0 | T50: 0 | U50: 0 | W50: 0 | X50: 0 | Y50: 0 | AA50: 21 | AB50: 20 | AC50: 0 | AE50: 0 | AF50: 0 | AG50: 0 | AI50: 0 | AJ50: 0 | AK50: 0 | AM50: 0 | AN50: 0 | AO50: 0 | AQ50: 0 | AR50: 0 | AS50: 0 | AU50: 0 | AV50: 0 | AW50: 0
A51: Rafael Cançado | B51: 0 | C51: 0 | D51: 0 | E51: 0 | G51: 0 | H51: 0 | I51: 0 | K51: 0 | L51: 0 | M51: 0 | O51: 0 | P51: 0 | Q51: 0 | S51: 0 | T51: 0 | U51: 0 | W51: 0 | X51: 0 | Y51: 0 | AA51: 0 | AB51: 0 | AC51: 0 | AE51: 0 | AF51: 0 | AG51: 0 | AI51: 0 | AJ51: 0 | AK51: 0 | AM51: 0 | AN51: 0 | AO51: 0 | AQ51: 0 | AR51: 0 | AS51: 0 | AU51: 0 | AV51: 0 | AW51: 0
A52: Jorge Prado | B52: 72 | C52: 27 | D52: 14 | E52: 0 | G52: 14 | H52: 30 | I52: 0 | K52: 15 | L52: 28 | M52: 0 | O52: 0 | P52: 0 | Q52: 0 | S52: 0 | T52: 0 | U52: 0 | W52: 0 | X52: 0 | Y52: 0 | AA52: 0 | AB52: 0 | AC52: 0 | AE52: 0 | AF52: 0 | AG52: 0 | AI52: 0 | AJ52: 0 | AK52: 0 | AM52: 0 | AN52: 0 | AO52: 0 | AQ52: 0 | AR52: 0 | AS52: 0 | AU52: 0 | AV52: 0 | AW52: 0
A53: GUI FIGUEIREDO | B53: 920 | D53: 109 | E53: 0 | H53: 63 | I53: 0 | L53: 64 | M53: 0 | P53: 61 | Q53: 0 | T53: 120 | U53: 2 | X53: 85 | Y53: 0 | AB53: 95 | AC53: 0 | AF53: 124 | AG53: 0 | AJ53: 91 | AK53: 2 | AN53: 42 | AO53: 0 | AR53: 34 | AS53: 0 | AV53: 28 | AW53: 0
A54: Rodrigo Mercadante | B54: 449 | C54: 5 | D54: 48 | E54: 0 | G54: 15 | H54: 28 | I54: 0 | K54: 18 | L54: 23 | M54: 0 | O54: 15 | P54: 28 | Q54: 0 | S54: 9 | T54: 40 | U54: 2 | W54: 5 | X54: 48 | Y54: 0 | AA54: 12 | AB54: 34 | AC54: 0 | AE54: 4 | AF54: 50 | AG54: 0 | AI54: 4 | AJ54: 50 | AK54: 2 | AM54: 12 | AN54: 34 | AO54: 0 | AQ54: 12 | AR54: 34 | AS54: 0 | AU54: 15 | AV54: 28 | AW54: 0
A55: Maurílio Carmo | B55: 229 | C55: 10 | D55: 38 | E55: 0 | G55: 28 | H55: 13 | I55: 0 | K55: 27 | L55: 14 | M55: 0 | O55: 26 | P55: 15 | Q55: 0 | S55: 13 | T55: 32 | U55: 0 | W55: 18 | X55: 23 | Y55: 0 | AA55: 10 | AB55: 38 | AC55: 0 | AE55: 11 | AF55: 36 | AG55: 0 | AI55: 21 | AJ55: 20 | AK55: 0 | AM55: 0 | AN55: 0 | AO55: 0 | AQ55: 0 | AR55: 0 | AS55: 0 | AU55: 0 | AV55: 0 | AW55: 0
A56: Cláudio Carvalho | B56: 31 | C56: 18 | D56: 23 | E56: 0 | G56: 38 | H56: 3 | I56: 0 | K56: 36 | L56: 5 | M56: 0 | O56: 0 | P56: 0 | Q56: 0 | S56: 0 | T56: 0 | U56: 0 | W56: 0 | X56: 0 | Y56: 0 | AA56: 0 | AB56: 0 | AC56: 0 | AE56: 0 | AF56: 0 | AG56: 0 | AI56: 0 | AJ56: 0 | AK56: 0 | AM56: 0 | AN56: 0 | AO56: 0 | AQ56: 0 | AR56: 0 | AS56: 0 | AU56: 0 | AV56: 0 | AW56: 0
A57: Edson Ribeiro | B57: 211 | C57: 0 | D57: 0 | E57: 0 | G57: 22 | H57: 19 | I57: 0 | K57: 19 | L57: 22 | M57: 0 | O57: 23 | P57: 18 | Q57: 0 | S57: 5 | T57: 48 | U57: 0 | W57: 27 | X57: 14 | Y57: 0 | AA57: 18 | AB57: 23 | AC57: 0 | AE57: 10 | AF57: 38 | AG57: 0 | AI57: 20 | AJ57: 21 | AK57: 0 | AM57: 33 | AN57: 8 | AO57: 0 | AQ57: 0 | AR57: 0 | AS57: 0 | AU57: 0 | AV57: 0 | AW57: 0
A58: XXXXXXXX
A59: SANTIAGO | B59: 853 | D59: 114 | E59: 2 | H59: 86 | I59: 0 | L59: 68 | M59: 0 | P59: 62 | Q59: 0 | T59: 22 | U59: 0 | X59: 83 | Y59: 2 | AB59: 80 | AC59: 0 | AF59: 42 | AG59: 0 | AJ59: 77 | AK59: 0 | AN59: 72 | AO59: 0 | AR59: 88 | AS59: 0 | AV59: 55 | AW59: 0
A60: Alexandre Melillo | B60: 493 | C60: 11 | D60: 36 | E60: 0 | G60: 5 | H60: 48 | I60: 0 | K60: 8 | L60: 42 | M60: 0 | O60: 9 | P60: 40 | Q60: 0 | S60: 0 | T60: 0 | U60: 0 | W60: 2 | X60: 55 | Y60: 2 | AA60: 14 | AB60: 30 | AC60: 0 | AE60: 8 | AF60: 42 | AG60: 0 | AI60: 2 | AJ60: 55 | AK60: 0 | AM60: 8 | AN60: 42 | AO60: 0 | AQ60: 6 | AR60: 46 | AS60: 0 | AU60: 2 | AV60: 55 | AW60: 0
A61: Claudio Junqueira | B61: 87 | C61: 4 | D61: 50 | E61: 2 | G61: 21 | H61: 20 | I61: 0 | K61: 26 | L61: 15 | M61: 0 | O61: 0 | P61: 0 | Q61: 0 | S61: 0 | T61: 0 | U61: 0 | W61: 0 | X61: 0 | Y61: 0 | AA61: 0 | AB61: 0 | AC61: 0 | AE61: 0 | AF61: 0 | AG61: 0 | AI61: 0 | AJ61: 0 | AK61: 0 | AM61: 0 | AN61: 0 | AO61: 0 | AQ61: 0 | AR61: 0 | AS61: 0 | AU61: 0 | AV61: 0 | AW61: 0
A62: Marcelo Santiago | B62: 273 | C62: 15 | D62: 28 | E62: 0 | G62: 23 | H62: 18 | I62: 0 | K62: 30 | L62: 11 | M62: 0 | O62: 19 | P62: 22 | Q62: 0 | S62: 19 | T62: 22 | U62: 0 | W62: 15 | X62: 28 | Y62: 0 | AA62: 4 | AB62: 50 | AC62: 0 | AE62: 0 | AF62: 0 | AG62: 0 | AI62: 19 | AJ62: 22 | AK62: 0 | AM62: 14 | AN62: 30 | AO62: 0 | AQ62: 8 | AR62: 42 | AS62: 0 | AU62: 0 | AV62: 0 | AW62: 0
A63: Emerson Lopes | B63: 0 | C63: 0 | D63: 0 | E63: 0 | G63: 0 | H63: 0 | I63: 0 | K63: 0 | L63: 0 | M63: 0 | O63: 0 | P63: 0 | Q63: 0 | S63: 0 | T63: 0 | U63: 0 | W63: 0 | X63: 0 | Y63: 0 | AA63: 0 | AB63: 0 | AC63: 0 | AE63: 0 | AF63: 0 | AG63: 0 | AI63: 0 | AJ63: 0 | AK63: 0 | AM63: 0 | AN63: 0 | AO63: 0 | AQ63: 0 | AR63: 0 | AS63: 0 | AU63: 0 | AV63: 0 | AW63: 0
A64: XXXXXXXX
A65: LQN1 | B65: 1062 | D65: 8 | E65: 0 | H65: 130 | I65: 0 | L65: 145 | M65: 0 | P65: 86 | Q65: 0 | T65: 122 | U65: 0 | X65: 128 | Y65: 0 | AB65: 35 | AC65: 0 | AF65: 90 | AG65: 0 | AJ65: 146 | AK65: 0 | AN65: 62 | AO65: 0 | AR65: 78 | AS65: 0 | AV65: 32 | AW65: 0
A66: Ricardo Araújo | B66: 328 | C66: 0 | D66: 0 | E66: 0 | G66: 20 | H66: 21 | I66: 0 | K66: 28 | L66: 13 | M66: 0 | O66: 17 | P66: 24 | Q66: 0 | S66: 6 | T66: 46 | U66: 0 | W66: 14 | X66: 30 | Y66: 0 | AA66: 13 | AB66: 32 | AC66: 0 | AE66: 14 | AF66: 30 | AG66: 0 | AI66: 1 | AJ66: 60 | AK66: 0 | AM66: 27 | AN66: 14 | AO66: 0 | AQ66: 16 | AR66: 26 | AS66: 0 | AU66: 13 | AV66: 32 | AW66: 0
A67: Roberto Veloso | B67: 179 | C67: 33 | D67: 8 | E67: 0 | G67: 2 | H67: 55 | I67: 0 | K67: 6 | L67: 46 | M67: 0 | O67: 11 | P67: 36 | Q67: 0 | S67: 0 | T67: 0 | U67: 0 | W67: 0 | X67: 0 | Y67: 0 | AA67: 0 | AB67: 0 | AC67: 0 | AE67: 0 | AF67: 0 | AG67: 0 | AI67: 12 | AJ67: 34 | AK67: 0 | AM67: 0 | AN67: 0 | AO67: 0 | AQ67: 0 | AR67: 0 | AS67: 0 | AU67: 0 | AV67: 0 | AW67: 0
A68: Ricardo Vidigal | B68: 170 | C68: 0 | D68: 0 | E68: 0 | G68: 19 | H68: 22 | I68: 0 | K68: 12 | L68: 34 | M68: 0 | O68: 16 | P68: 26 | Q68: 0 | S68: 8 | T68: 42 | U68: 0 | W68: 6 | X68: 46 | Y68: 0 | AA68: 0 | AB68: 0 | AC68: 0 | AE68: 0 | AF68: 0 | AG68: 0 | AI68: 0 | AJ68: 0 | AK68: 0 | AM68: 0 | AN68: 0 | AO68: 0 | AQ68: 0 | AR68: 0 | AS68: 0 | AU68: 0 | AV68: 0 | AW68: 0
A69: Caetano | B69: 385 | C69: 0 | D69: 0 | E69: 0 | G69: 13 | H69: 32 | I69: 0 | K69: 3 | L69: 52 | M69: 0 | O69: 0 | P69: 0 | Q69: 0 | S69: 12 | T69: 34 | U69: 0 | W69: 3 | X69: 52 | Y69: 0 | AA69: 38 | AB69: 3 | AC69: 0 | AE69: 1 | AF69: 60 | AG69: 0 | AI69: 3 | AJ69: 52 | AK69: 0 | AM69: 5 | AN69: 48 | AO69: 0 | AQ69: 3 | AR69: 52 | AS69: 0 | AU69: 0 | AV69: 0 | AW69: 0
A70: XXXXXXXX

Sheet Class Elimin 2 Piores Equip
A1: 2021 | D1: OK | H1: OK | L1: OK | P1: OK | T1: OK | X1: OK | AB1: OK | AF1: OK | AJ1: OK | AN1: OK | AR1: OK | AV1: OK
C2: 1ª etapa | G2: 2ª etapa | K2: 3ª etapa | O2: 4ª etapa | S2: 5ª etapa | W2: Etapa 6 22/07/2021 - 20:30 - Quinta-Feira RBC RACING | AA2: Etapa 7 12/08/2021 - 20:30 - Quinta-Feira RBC RACING | AE2: Etapa 8 26/08/2021 - 21:15 | AI2: Etapa 9 16/09/2021 - 20:30 | AM2: Etapa 10 14/10/2021 - 20:30 | AQ2: Etapa 11 11/11/2021 - 20:30 | AU2: 12ª etapa
C3: 00:00:00 | G3: 00:00:00 | K3: 00:00:00 | O3: 00:00:00 | S3: 00:00:00 | W3: 00:00:00 | AA3: 00:00:00 | AE3: 00:00:00 | AI3: 00:00:00 | AM3: 00:00:00 | AQ3: 00:00:00 | AU3: 00:00:00
A4: EQUIPES | B4: Pontuação Geral | C4: Posição | D4: Pontos | E4: Bônus | F4: Penalidade | G4: Posição | H4: Pontos | I4: Bônus | J4: Penalidade | K4: Posição | L4: Pontos | M4: Bônus | N4: Penalidade | O4: Posição | P4: Pontos | Q4: Bônus | R4: Penalidade | S4: Posição | T4: Pontos | U4: Bônus | V4: Penalidade | W4: Posição | X4: Pontos | Y4: Bônus | Z4: Penalidade | AA4: Posição | AB4: Pontos | AC4: Bônus | AD4: Penalidade | AE4: Posição | AF4: Pontos | AG4: Bônus | AH4: Penalidade | AI4: Posição | AJ4: Pontos | AK4: Bônus | AL4: Penalidade | AM4: Posição | AN4: Pontos | AO4: Bônus | AP4: Penalidade | AQ4: Posição | AR4: Pontos | AS4: Bônus | AT4: Penalidade | AU4: Posição | AV4: Pontos | AW4: Bônus | AX4: Penalidade
A5: VIAKART | B5: 1108 | D5: 90 | E5: 0 | H5: 112 | I5: 2 | L5: 92 | M5: 0 | P5: 105 | Q5: 0 | T5: 105 | U5: 0 | X5: 148 | Y5: 0 | AB5: 140 | AC5: 0 | AF5: 116 | AG5: 0 | AJ5: 106 | AK5: 0 | AN5: 84* | AO5: 0 | AR5: 84* | AS5: 0 | AV5: 92 | AW5: 0
A6: Jarbas Reis | B6: 370 | C6: 21 | D6: 20 | E6: 0 | G6: 4 | H6: 50 | I6: 0 | K6: 21 | L6: 20* | M6: 0 | O6: 12 | P6: 34 | Q6: 0 | S6: 7 | T6: 44 | U6: 0 | W6: 1 | X6: 60 | Y6: 0 | AA6: 9 | AB6: 40 | AC6: 0 | AE6: 7 | AF6: 44 | AG6: 0 | AI6: 14 | AJ6: 30 | AK6: 0 | AM6: 7 | AN6: 44* | AO6: 0 | AQ6: 13 | AR6: 32* | AS6: 0 | AU6: 5 | AV6: 48 | AW6: 0
A7: Guilherme Janot | B7: 342 | C7: 6 | D7: 46 | E7: 0 | G7: 6 | H7: 46 | I7: 2 | K7: 17 | L7: 24 | M7: 0 | O7: 4 | P7: 50 | Q7: 0 | S7: 20 | T7: 21* | U7: 0 | W7: 4 | X7: 50 | Y7: 0 | AA7: 3 | AB7: 52 | AC7: 0 | AE7: 13 | AF7: 32 | AG7: 0 | AI7: 9 | AJ7: 40 | AK7: 0 | AM7: 0 | AN7: 0* | AO7: 0 | AQ7: 10 | AR7: 38* | AS7: 0 | AU7: 0 | AV7: 0 | AW7: 0
A8: Morvan | B8: 183 | C8: 17 | D8: 24 | E8: 0 | G8: 25 | H8: 16 | I8: 0 | K8: 10 | L8: 38 | M8: 0 | O8: 24 | P8: 17* | Q8: 0 | S8: 18 | T8: 23 | U8: 0 | W8: 10 | X8: 38 | Y8: 0 | AA8: 15 | AB8: 28* | AC8: 0 | AE8: 18 | AF8: 23* | AG8: 0 | AI8: 15 | AJ8: 28* | AK8: 0 | AM8: 0 | AN8: 0* | AO8: 0 | AQ8: 27 | AR8: 14* | AS8: 0 | AU8: 7 | AV8: 44 | AW8: 0
A9: Gijo | B9: 213 | C9: 22 | D9: 19* | E9: 0 | G9: 30 | H9: 11* | I9: 0 | K9: 14 | L9: 30 | M9: 0 | O9: 20 | P9: 21 | Q9: 0 | S9: 10 | T9: 38 | U9: 0 | W9: 20 | X9: 21* | Y9: 0 | AA9: 5 | AB9: 48 | AC9: 0 | AE9: 9 | AF9: 40 | AG9: 0 | AI9: 11 | AJ9: 36 | AK9: 0 | AM9: 9 | AN9: 40* | AO9: 0 | AQ9: 0 | AR9: 0* | AS9: 0 | AU9: 0 | AV9: 0 | AW9: 0
A10: XXXXXXXX | B10: 0 | AN10: * | AR10: *
A11: LQN1 | B11: 988 | D11: 8* | E11: 0 | H11: 109 | I11: 0 | L11: 132 | M11: 0 | P11: 86 | Q11: 0 | T11: 122 | U11: 0 | X11: 128 | Y11: 0 | AB11: 35 | AC11: 0 | AF11: 90 | AG11: 0 | AJ11: 146 | AK11: 0 | AN11: 62 | AO11: 0 | AR11: 78 | AS11: 0 | AV11: 32* | AW11: 0
A12: Ricardo Araújo | B12: 262 | C12: 0 | D12: 0* | E12: 0 | G12: 20 | H12: 21* | I12: 0 | K12: 28 | L12: 13* | M12: 0 | O12: 17 | P12: 24 | Q12: 0 | S12: 6 | T12: 46 | U12: 0 | W12: 14 | X12: 30 | Y12: 0 | AA12: 13 | AB12: 32 | AC12: 0 | AE12: 14 | AF12: 30 | AG12: 0 | AI12: 1 | AJ12: 60 | AK12: 0 | AM12: 27 | AN12: 14 | AO12: 0 | AQ12: 16 | AR12: 26 | AS12: 0 | AU12: 13 | AV12: 32* | AW12: 0
A13: Roberto Veloso | B13: 171 | C13: 33 | D13: 8* | E13: 0 | G13: 2 | H13: 55 | I13: 0 | K13: 6 | L13: 46 | M13: 0 | O13: 11 | P13: 36 | Q13: 0 | S13: 0 | T13: 0 | U13: 0 | W13: 0 | X13: 0 | Y13: 0 | AA13: 0 | AB13: 0 | AC13: 0 | AE13: 0 | AF13: 0 | AG13: 0 | AI13: 12 | AJ13: 34 | AK13: 0 | AM13: 0 | AN13: 0 | AO13: 0 | AQ13: 0 | AR13: 0 | AS13: 0 | AU13: 0 | AV13: 0* | AW13: 0
A14: Ricardo Vidigal | B14: 170 | C14: 0 | D14: 0* | E14: 0 | G14: 19 | H14: 22 | I14: 0 | K14: 12 | L14: 34 | M14: 0 | O14: 16 | P14: 26 | Q14: 0 | S14: 8 | T14: 42 | U14: 0 | W14: 6 | X14: 46 | Y14: 0 | AA14: 0 | AB14: 0 | AC14: 0 | AE14: 0 | AF14: 0 | AG14: 0 | AI14: 0 | AJ14: 0 | AK14: 0 | AM14: 0 | AN14: 0 | AO14: 0 | AQ14: 0 | AR14: 0 | AS14: 0 | AU14: 0 | AV14: 0* | AW14: 0
A15: Caetano | B15: 385 | C15: 0 | D15: 0* | E15: 0 | G15: 13 | H15: 32 | I15: 0 | K15: 3 | L15: 52 | M15: 0 | O15: 0 | P15: 0 | Q15: 0 | S15: 12 | T15: 34 | U15: 0 | W15: 3 | X15: 52 | Y15: 0 | AA15: 38 | AB15: 3 | AC15: 0 | AE15: 1 | AF15: 60 | AG15: 0 | AI15: 3 | AJ15: 52 | AK15: 0 | AM15: 5 | AN15: 48 | AO15: 0 | AQ15: 3 | AR15: 52 | AS15: 0 | AU15: 0 | AV15: 0* | AW15: 0
A16: XXXXXXXX | B16: 0 | D16: * | AV16: *
A17: TIRA GRILOS | B17: 888 | D17: 78 | E17: 0 | H17: 134 | I17: 0 | L17: 96 | M17: 2 | P17: 141 | Q17: 0 | T17: 26* | U17: 0 | X17: 76 | Y17: 0 | AB17: 65 | AC17: 0 | AF17: 24* | AG17: 0 | AJ17: 62 | AK17: 0 | AN17: 82 | AO17: 0 | AR17: 76 | AS17: 0 | AV17: 76 | AW17: 0
A18: Léo Marx | B18: 52 | C18: 23 | D18: 18 | E18: 0 | G18: 12 | H18: 34 | I18: 0 | K18: 0 | L18: 0 | M18: 0 | O18: 0 | P18: 0 | Q18: 0 | S18: 0 | T18: 0* | U18: 0 | W18: 0 | X18: 0 | Y18: 0 | AA18: 0 | AB18: 0 | AC18: 0 | AE18: 0 | AF18: 0* | AG18: 0 | AI18: 0 | AJ18: 0 | AK18: 0 | AM18: 0 | AN18: 0 | AO18: 0 | AQ18: 0 | AR18: 0 | AS18: 0 | AU18: 0 | AV18: 0 | AW18: 0
A19: Ivan Renault | B19: 170 | C19: 34 | D19: 7* | E19: 0 | G19: 1 | H19: 60 | I19: 0 | K19: 1 | L19: 60 | M19: 2 | O19: 5 | P19: 48 | Q19: 0 | S19: 0 | T19: 0* | U19: 0 | W19: 0 | X19: 0 | Y19: 0 | AA19: 0 | AB19: 0 | AC19: 0 | AE19: 0 | AF19: 0* | AG19: 0 | AI19: 0 | AJ19: 0 | AK19: 0 | AM19: 0 | AN19: 0 | AO19: 0 | AQ19: 0 | AR19: 0 | AS19: 0 | AU19: 0 | AV19: 0 | AW19: 0
A20: Carlos Sampaio | B20: 354 | C20: 25 | D20: 16 | E20: 0 | G20: 9 | H20: 40 | I20: 0 | K20: 24 | L20: 17 | M20: 0 | O20: 2 | P20: 55 | Q20: 0 | S20: 16 | T20: 26* | U20: 0 | W20: 8 | X20: 42 | Y20: 0 | AA20: 6 | AB20: 46 | AC20: 0 | AE20: 17 | AF20: 24* | AG20: 0 | AI20: 17 | AJ20: 24 | AK20: 0 | AM20: 13 | AN20: 32 | AO20: 0 | AQ20: 9 | AR20: 40 | AS20: 0 | AU20: 8 | AV20: 42 | AW20: 0
A21: Enio Júnior | B21: 312 | C21: 7 | D21: 44 | E21: 0 | G21: 24 | H21: 17* | I21: 0 | K21: 22 | L21: 19 | M21: 0 | O21: 10 | P21: 38 | Q21: 0 | S21: 0 | T21: 0* | U21: 0 | W21: 12 | X21: 34 | Y21: 0 | AA21: 22 | AB21: 19 | AC21: 0 | AE21: 0 | AF21: 0* | AG21: 0 | AI21: 10 | AJ21: 38 | AK21: 0 | AM21: 4 | AN21: 50 | AO21: 0 | AQ21: 11 | AR21: 36 | AS21: 0 | AU21: 12 | AV21: 34 | AW21: 0
A22: XXXXXXXX | B22: 0 | T22: * | AF22: *
A23: ALPHA ENGENHARIA | B23: 867 | D23: 73 | E23: 0 | H23: 89 | I23: 0 | L23: 112 | M23: 0 | P23: 79 | Q23: 0 | T23: 70 | U23: 0 | X23: 68* | Y23: 0 | AB23: 82 | AC23: 2 | AF23: 83 | AG23: 0 | AJ23: 42* | AK23: 0 | AN23: 101 | AO23: 0 | AR23: 90 | AS23: 0 | AV23: 86 | AW23: 0
A24: Marcelo Sant'anna | B24: 462 | C24: 19 | D24: 22 | E24: 0 | G24: 17 | H24: 24 | I24: 0 | K24: 11 | L24: 36 | M24: 0 | O24: 3 | P24: 52 | Q24: 0 | S24: 4 | T24: 50 | U24: 0 | W24: 13 | X24: 32* | Y24: 0 | AA24: 1 | AB24: 60 | AC24: 2 | AE24: 2 | AF24: 55 | AG24: 0 | AI24: 8 | AJ24: 42* | AK24: 0 | AM24: 2 | AN24: 55 | AO24: 0 | AQ24: 1 | AR24: 60 | AS24: 0 | AU24: 6 | AV24: 46 | AW24: 0
A25: Reinaldo Paoli | B25: 102 | C25: 9 | D25: 40 | E25: 0 | G25: 18 | H25: 23 | I25: 0 | K25: 16 | L25: 26 | M25: 0 | O25: 28 | P25: 13 | Q25: 0 | S25: 0 | T25: 0 | U25: 0 | W25: 0 | X25: 0* | Y25: 0 | AA25: 0 | AB25: 0 | AC25: 0 | AE25: 0 | AF25: 0 | AG25: 0 | AI25: 0 | AJ25: 0* | AK25: 0 | AM25: 0 | AN25: 0 | AO25: 0 | AQ25: 0 | AR25: 0 | AS25: 0 | AU25: 0 | AV25: 0 | AW25: 0
A26: Ederson Lopes | B26: 34 | C26: 32 | D26: 9* | E26: 0 | G26: 32 | H26: 9* | I26: 0 | K26: 34 | L26: 7* | M26: 0 | O26: 27 | P26: 14 | Q26: 0 | S26: 21 | T26: 20 | U26: 0 | W26: 0 | X26: 0* | Y26: 0 | AA26: 0 | AB26: 0 | AC26: 0 | AE26: 0 | AF26: 0 | AG26: 0 | AI26: 0 | AJ26: 0* | AK26: 0 | AM26: 0 | AN26: 0 | AO26: 0 | AQ26: 0 | AR26: 0 | AS26: 0 | AU26: 0 | AV26: 0 | AW26: 0
A27: Euclides Almeida | B27: 269 | C27: 30 | D27: 11 | E27: 0 | G27: 8 | H27: 42 | I27: 0 | K27: 4 | L27: 50 | M27: 0 | O27: 31 | P27: 10* | Q27: 0 | S27: 0 | T27: 0 | U27: 0 | W27: 11 | X27: 36* | Y27: 0 | AA27: 19 | AB27: 22 | AC27: 0 | AE27: 15 | AF27: 28 | AG27: 0 | AI27: 0 | AJ27: 0* | AK27: 0 | AM27: 6 | AN27: 46 | AO27: 0 | AQ27: 14 | AR27: 30 | AS27: 0 | AU27: 9 | AV27: 40 | AW27: 0
A28: XXXXXXXX | B28: 0 | X28: * | AJ28: *
A29: GUI FIGUEIREDO | B29: 850 | D29: 109 | E29: 0 | H29: 60 | I29: 0 | L29: 59 | M29: 0 | P29: 61 | Q29: 0 | T29: 120 | U29: 2 | X29: 85 | Y29: 0 | AB29: 95 | AC29: 0 | AF29: 124 | AG29: 0 | AJ29: 91 | AK29: 2 | AN29: 42 | AO29: 0 | AR29: 34* | AS29: 0 | AV29: 28* | AW29: 0
A30: Rodrigo Mercadante | B30: 387 | C30: 5 | D30: 48 | E30: 0 | G30: 15 | H30: 28 | I30: 0 | K30: 18 | L30: 23 | M30: 0 | O30: 15 | P30: 28 | Q30: 0 | S30: 9 | T30: 40 | U30: 2 | W30: 5 | X30: 48 | Y30: 0 | AA30: 12 | AB30: 34 | AC30: 0 | AE30: 4 | AF30: 50 | AG30: 0 | AI30: 4 | AJ30: 50 | AK30: 2 | AM30: 12 | AN30: 34 | AO30: 0 | AQ30: 12 | AR30: 34* | AS30: 0 | AU30: 15 | AV30: 28* | AW30: 0
A31: Maurílio Carmo | B31: 229 | C31: 10 | D31: 38 | E31: 0 | G31: 28 | H31: 13 | I31: 0 | K31: 27 | L31: 14 | M31: 0 | O31: 26 | P31: 15 | Q31: 0 | S31: 13 | T31: 32 | U31: 0 | W31: 18 | X31: 23 | Y31: 0 | AA31: 10 | AB31: 38 | AC31: 0 | AE31: 11 | AF31: 36 | AG31: 0 | AI31: 21 | AJ31: 20 | AK31: 0 | AM31: 0 | AN31: 0 | AO31: 0 | AQ31: 0 | AR31: 0* | AS31: 0 | AU31: 0 | AV31: 0* | AW31: 0
A32: Cláudio Carvalho | B32: 23 | C32: 18 | D32: 23 | E32: 0 | G32: 38 | H32: 3* | I32: 0 | K32: 36 | L32: 5* | M32: 0 | O32: 0 | P32: 0 | Q32: 0 | S32: 0 | T32: 0 | U32: 0 | W32: 0 | X32: 0 | Y32: 0 | AA32: 0 | AB32: 0 | AC32: 0 | AE32: 0 | AF32: 0 | AG32: 0 | AI32: 0 | AJ32: 0 | AK32: 0 | AM32: 0 | AN32: 0 | AO32: 0 | AQ32: 0 | AR32: 0* | AS32: 0 | AU32: 0 | AV32: 0* | AW32: 0
A33: Edson Ribeiro | B33: 211 | C33: 0 | D33: 0 | E33: 0 | G33: 22 | H33: 19 | I33: 0 | K33: 19 | L33: 22 | M33: 0 | O33: 23 | P33: 18 | Q33: 0 | S33: 5 | T33: 48 | U33: 0 | W33: 27 | X33: 14 | Y33: 0 | AA33: 18 | AB33: 23 | AC33: 0 | AE33: 10 | AF33: 38 | AG33: 0 | AI33: 20 | AJ33: 21 | AK33: 0 | AM33: 33 | AN33: 8 | AO33: 0 | AQ33: 0 | AR33: 0* | AS33: 0 | AU33: 0 | AV33: 0* | AW33: 0
A34: XXXXXXXX | B34: 0 | AR34: * | AV34: *
A35: AST ESTRUTURAS | B35: 838 | D35: 118 | E35: 0 | H35: 71 | I35: 0 | L35: 89 | M35: 0 | P35: 120 | Q35: 0 | T35: 99 | U35: 0 | X35: 26* | Y35: 0 | AB35: 97 | AC35: 0 | AF35: 49 | AG35: 0 | AJ35: 34* | AK35: 0 | AN35: 63 | AO35: 2 | AR35: 48 | AS35: 0 | AV35: 82 | AW35: 0
A36: Cláudio Dumont | B36: 180 | C36: 1 | D36: 60 | E36: 0 | G36: 0 | H36: 0 | I36: 0 | K36: 2 | L36: 55 | M36: 0 | O36: 6 | P36: 46 | Q36: 0 | S36: 22 | T36: 19 | U36: 0 | W36: 0 | X36: 0* | Y36: 0 | AA36: 0 | AB36: 0 | AC36: 0 | AE36: 0 | AF36: 0 | AG36: 0 | AI36: 0 | AJ36: 0* | AK36: 0 | AM36: 0 | AN36: 0 | AO36: 0 | AQ36: 0 | AR36: 0 | AS36: 0 | AU36: 0 | AV36: 0 | AW36: 0
A37: Marcelo Mizrahy | B37: 473 | C37: 3 | D37: 52 | E37: 0 | G37: 7 | H37: 44 | I37: 0 | K37: 23 | L37: 18 | M37: 0 | O37: 7 | P37: 44 | Q37: 0 | S37: 3 | T37: 52 | U37: 0 | W37: 16 | X37: 26* | Y37: 0 | AA37: 2 | AB37: 55 | AC37: 0 | AE37: 6 | AF37: 46 | AG37: 0 | AI37: 30 | AJ37: 11* | AK37: 0 | AM37: 1 | AN37: 60 | AO37: 2 | AQ37: 5 | AR37: 48 | AS37: 0 | AU37: 3 | AV37: 52 | AW37: 0
A38: Carlos Filizolla | B38: 118 | C38: 40 | D38: 1* | E38: 0 | G38: 29 | H38: 12 | I38: 0 | K38: 25 | L38: 16 | M38: 0 | O38: 14 | P38: 30 | Q38: 0 | S38: 0 | T38: 0 | U38: 0 | W38: 0 | X38: 0* | Y38: 0 | AA38: 17 | AB38: 24 | AC38: 0 | AE38: 38 | AF38: 3 | AG38: 0 | AI38: 18 | AJ38: 23* | AK38: 0 | AM38: 38 | AN38: 3 | AO38: 0 | AQ38: 0 | AR38: 0 | AS38: 0 | AU38: 14 | AV38: 30 | AW38: 0
A39: Henrique Castilho | B39: 67 | C39: 35 | D39: 6 | E39: 0 | G39: 26 | H39: 15 | I39: 0 | K39: 31 | L39: 10* | M39: 0 | O39: 0 | P39: 0 | Q39: 0 | S39: 15 | T39: 28 | U39: 0 | W39: 0 | X39: 0* | Y39: 0 | AA39: 23 | AB39: 18 | AC39: 0 | AE39: 0 | AF39: 0 | AG39: 0 | AI39: 0 | AJ39: 0* | AK39: 0 | AM39: 0 | AN39: 0 | AO39: 0 | AQ39: 0 | AR39: 0 | AS39: 0 | AU39: 0 | AV39: 0 | AW39: 0
A40: XXXXXXXX | B40: 0 | X40: * | AJ40: *
A41: SANTIAGO | B41: 789 | D41: 114 | E41: 2 | H41: 86 | I41: 0 | L41: 68 | M41: 0 | P41: 62 | Q41: 0 | T41: 22* | U41: 0 | X41: 83 | Y41: 2 | AB41: 80 | AC41: 0 | AF41: 42* | AG41: 0 | AJ41: 77 | AK41: 0 | AN41: 72 | AO41: 0 | AR41: 88 | AS41: 0 | AV41: 55 | AW41: 0
A42: Alexandre Melillo | B42: 451 | C42: 11 | D42: 36 | E42: 0 | G42: 5 | H42: 48 | I42: 0 | K42: 8 | L42: 42 | M42: 0 | O42: 9 | P42: 40 | Q42: 0 | S42: 0 | T42: 0* | U42: 0 | W42: 2 | X42: 55 | Y42: 2 | AA42: 14 | AB42: 30 | AC42: 0 | AE42: 8 | AF42: 42* | AG42: 0 | AI42: 2 | AJ42: 55 | AK42: 0 | AM42: 8 | AN42: 42 | AO42: 0 | AQ42: 6 | AR42: 46 | AS42: 0 | AU42: 2 | AV42: 55 | AW42: 0
A43: Claudio Junqueira | B43: 87 | C43: 4 | D43: 50 | E43: 2 | G43: 21 | H43: 20 | I43: 0 | K43: 26 | L43: 15 | M43: 0 | O43: 0 | P43: 0 | Q43: 0 | S43: 0 | T43: 0* | U43: 0 | W43: 0 | X43: 0 | Y43: 0 | AA43: 0 | AB43: 0 | AC43: 0 | AE43: 0 | AF43: 0* | AG43: 0 | AI43: 0 | AJ43: 0 | AK43: 0 | AM43: 0 | AN43: 0 | AO43: 0 | AQ43: 0 | AR43: 0 | AS43: 0 | AU43: 0 | AV43: 0 | AW43: 0
A44: Marcelo Santiago | B44: 251 | C44: 15 | D44: 28 | E44: 0 | G44: 23 | H44: 18 | I44: 0 | K44: 30 | L44: 11 | M44: 0 | O44: 19 | P44: 22 | Q44: 0 | S44: 19 | T44: 22* | U44: 0 | W44: 15 | X44: 28 | Y44: 0 | AA44: 4 | AB44: 50 | AC44: 0 | AE44: 0 | AF44: 0* | AG44: 0 | AI44: 19 | AJ44: 22 | AK44: 0 | AM44: 14 | AN44: 30 | AO44: 0 | AQ44: 8 | AR44: 42 | AS44: 0 | AU44: 0 | AV44: 0 | AW44: 0
A45: Emerson Lopes | B45: 0 | C45: 0 | D45: 0 | E45: 0 | G45: 0 | H45: 0 | I45: 0 | K45: 0 | L45: 0 | M45: 0 | O45: 0 | P45: 0 | Q45: 0 | S45: 0 | T45: 0* | U45: 0 | W45: 0 | X45: 0 | Y45: 0 | AA45: 0 | AB45: 0 | AC45: 0 | AE45: 0 | AF45: 0* | AG45: 0 | AI45: 0 | AJ45: 0 | AK45: 0 | AM45: 0 | AN45: 0 | AO45: 0 | AQ45: 0 | AR45: 0 | AS45: 0 | AU45: 0 | AV45: 0 | AW45: 0
A46: XXXXXXXX | B46: 0 | T46: * | AF46: *
A47: LQN | B47: 767 | D47: 57 | E47: 0 | H47: 85 | I47: 0 | L47: 61 | M47: 0 | P47: 82 | Q47: 0 | T47: 94 | U47: 0 | X47: 70 | Y47: 0 | AB47: 76 | AC47: 0 | AF47: 30* | AG47: 0 | AJ47: 106 | AK47: 0 | AN47: 66 | AO47: 0 | AR47: 54* | AS47: 0 | AV47: 70 | AW47: 0
A48: Carlos Eduardo | B48: 392 | C48: 12 | D48: 34 | E48: 0 | G48: 16 | H48: 26 | I48: 0 | K48: 9 | L48: 40 | M48: 0 | O48: 8 | P48: 42 | Q48: 0 | S48: 14 | T48: 30 | U48: 0 | W48: 9 | X48: 40 | Y48: 0 | AA48: 7 | AB48: 44 | AC48: 0 | AE48: 0 | AF48: 0* | AG48: 0 | AI48: 6 | AJ48: 46 | AK48: 0 | AM48: 3 | AN48: 52 | AO48: 0 | AQ48: 15 | AR48: 28* | AS48: 0 | AU48: 10 | AV48: 38 | AW48: 0
A49: Aldo Silvestre | B49: 38 | C49: 0 | D49: 0 | E49: 0 | G49: 10 | H49: 38 | I49: 0 | K49: 0 | L49: 0 | M49: 0 | O49: 0 | P49: 0 | Q49: 0 | S49: 0 | T49: 0 | U49: 0 | W49: 0 | X49: 0 | Y49: 0 | AA49: 0 | AB49: 0 | AC49: 0 | AE49: 0 | AF49: 0* | AG49: 0 | AI49: 0 | AJ49: 0 | AK49: 0 | AM49: 0 | AN49: 0 | AO49: 0 | AQ49: 0 | AR49: 0* | AS49: 0 | AU49: 0 | AV49: 0 | AW49: 0
A50: Alberto Branco | B50: 21 | C50: 28 | D50: 13 | E50: 0 | G50: 37 | H50: 4* | I50: 0 | K50: 33 | L50: 8 | M50: 0 | O50: 29 | P50: 12* | Q50: 0 | S50: 24 | T50: 17* | U50: 0 | W50: 0 | X50: 0 | Y50: 0 | AA50: 0 | AB50: 0 | AC50: 0 | AE50: 0 | AF50: 0* | AG50: 0 | AI50: 0 | AJ50: 0 | AK50: 0 | AM50: 0 | AN50: 0 | AO50: 0 | AQ50: 0 | AR50: 0* | AS50: 0 | AU50: 0 | AV50: 0 | AW50: 0
A51: Marcelo Pinheiro | B51: 44 | C51: 31 | D51: 10 | E51: 0 | G51: 36 | H51: 5* | I51: 0 | K51: 45 | L51: 1* | M51: 0 | O51: 25 | P51: 16 | Q51: 0 | S51: 23 | T51: 18 | U51: 0 | W51: 0 | X51: 0 | Y51: 0 | AA51: 0 | AB51: 0 | AC51: 0 | AE51: 0 | AF51: 0* | AG51: 0 | AI51: 0 | AJ51: 0 | AK51: 0 | AM51: 0 | AN51: 0 | AO51: 0 | AQ51: 0 | AR51: 0* | AS51: 0 | AU51: 0 | AV51: 0 | AW51: 0
A52: Ricardo Araújo | B52: 272 | C52: 0 | D52: 0 | E52: 0 | G52: 20 | H52: 21 | I52: 0 | K52: 28 | L52: 13 | M52: 0 | O52: 17 | P52: 24 | Q52: 0 | S52: 6 | T52: 46 | U52: 0 | W52: 14 | X52: 30 | Y52: 0 | AA52: 13 | AB52: 32 | AC52: 0 | AE52: 14 | AF52: 30* | AG52: 0 | AI52: 1 | AJ52: 60 | AK52: 0 | AM52: 27 | AN52: 14 | AO52: 0 | AQ52: 16 | AR52: 26* | AS52: 0 | AU52: 13 | AV52: 32 | AW52: 0
A53: CLEMENTE CAR | B53: 760 | D53: 100 | E53: 0 | H53: 28* | I53: 0 | L53: 65 | M53: 0 | P53: 62 | Q53: 0 | T53: 96 | U53: 0 | X53: 46 | Y53: 0 | AB53: 78 | AC53: 0 | AF53: 108 | AG53: 0 | AJ53: 91 | AK53: 0 | AN53: 52 | AO53: 0 | AR53: 44* | AS53: 0 | AV53: 60 | AW53: 2
A54: Marcelo Clemente | B54: 411 | C54: 8 | D54: 42 | E54: 0 | G54: 0 | H54: 0* | I54: 0 | K54: 13 | L54: 32 | M54: 0 | O54: 22 | P54: 19 | Q54: 0 | S54: 1 | T54: 60 | U54: 0 | W54: 19 | X54: 22 | Y54: 0 | AA54: 8 | AB54: 42 | AC54: 0 | AE54: 5 | AF54: 48 | AG54: 0 | AI54: 5 | AJ54: 48 | AK54: 0 | AM54: 11 | AN54: 36 | AO54: 0 | AQ54: 7 | AR54: 44* | AS54: 0 | AU54: 1 | AV54: 60 | AW54: 2
A55: Jader Abreu | B55: 78 | C55: 0 | D55: 0 | E55: 0 | G55: 27 | H55: 14* | I55: 0 | K55: 20 | L55: 21 | M55: 0 | O55: 21 | P55: 20 | Q55: 0 | S55: 0 | T55: 0 | U55: 0 | W55: 0 | X55: 0 | Y55: 0 | AA55: 0 | AB55: 0 | AC55: 0 | AE55: 16 | AF55: 26 | AG55: 0 | AI55: 30 | AJ55: 11 | AK55: 0 | AM55: 0 | AN55: 0 | AO55: 0 | AQ55: 0 | AR55: 0* | AS55: 0 | AU55: 0 | AV55: 0 | AW55: 0
A56: Anderson Lopes | B56: 32 | C56: 13 | D56: 32 | E56: 0 | G56: 33 | H56: 8* | I56: 0 | K56: 32 | L56: 9* | M56: 0 | O56: 0 | P56: 0 | Q56: 0 | S56: 0 | T56: 0 | U56: 0 | W56: 0 | X56: 0 | Y56: 0 | AA56: 0 | AB56: 0 | AC56: 0 | AE56: 0 | AF56: 0 | AG56: 0 | AI56: 0 | AJ56: 0 | AK56: 0 | AM56: 0 | AN56: 0 | AO56: 0 | AQ56: 0 | AR56: 0* | AS56: 0 | AU56: 0 | AV56: 0 | AW56: 0
A57: Michel Abouud | B57: 239 | C57: 16 | D57: 26 | E57: 0 | G57: 35 | H57: 6* | I57: 0 | K57: 29 | L57: 12 | M57: 0 | O57: 18 | P57: 23 | Q57: 0 | S57: 11 | T57: 36 | U57: 0 | W57: 17 | X57: 24 | Y57: 0 | AA57: 11 | AB57: 36 | AC57: 0 | AE57: 12 | AF57: 34 | AG57: 0 | AI57: 13 | AJ57: 32 | AK57: 0 | AM57: 25 | AN57: 16 | AO57: 0 | AQ57: 0 | AR57: 0* | AS57: 0 | AU57: 0 | AV57: 0 | AW57: 0
A58: XXXXXXXX | B58: 0 | H58: * | AR58: *
A59: DELCAR | B59: 650 | D59: 91 | E59: 0 | H59: 101 | I59: 0 | L59: 100 | M59: 0 | P59: 107 | Q59: 0 | T59: 24 | U59: 0 | X59: 0* | Y59: 0 | AB59: 21* | AC59: 0 | AF59: 22 | AG59: 0 | AJ59: 60 | AK59: 0 | AN59: 28 | AO59: 0 | AR59: 55 | AS59: 0 | AV59: 62 | AW59: 0
A60: Rodrigo Rotheia | B60: 259 | C60: 2 | D60: 55 | E60: 0 | G60: 11 | H60: 36 | I60: 0 | K60: 5 | L60: 48 | M60: 0 | O60: 30 | P60: 11 | Q60: 0 | S60: 0 | T60: 0 | U60: 0 | W60: 0 | X60: 0* | Y60: 0 | AA60: 0 | AB60: 0* | AC60: 0 | AE60: 0 | AF60: 0 | AG60: 0 | AI60: 0 | AJ60: 0 | AK60: 0 | AM60: 15 | AN60: 28 | AO60: 0 | AQ60: 2 | AR60: 55 | AS60: 0 | AU60: 16 | AV60: 26 | AW60: 0
A61: Adriano Morato | B61: 0 | C61: 29 | D61: 12* | E61: 0 | G61: 0 | H61: 0 | I61: 0 | K61: 0 | L61: 0 | M61: 0 | O61: 0 | P61: 0 | Q61: 0 | S61: 0 | T61: 0 | U61: 0 | W61: 0 | X61: 0* | Y61: 0 | AA61: 0 | AB61: 0* | AC61: 0 | AE61: 0 | AF61: 0 | AG61: 0 | AI61: 0 | AJ61: 0 | AK61: 0 | AM61: 0 | AN61: 0 | AO61: 0 | AQ61: 0 | AR61: 0 | AS61: 0 | AU61: 0 | AV61: 0 | AW61: 0
A62: Leodegario Junior | B62: 199 | C62: 26 | D62: 15 | E62: 0 | G62: 31 | H62: 10 | I62: 0 | K62: 35 | L62: 6 | M62: 0 | O62: 1 | P62: 60 | Q62: 0 | S62: 17 | T62: 24 | U62: 0 | W62: 0 | X62: 0* | Y62: 0 | AA62: 20 | AB62: 21* | AC62: 0 | AE62: 19 | AF62: 22 | AG62: 0 | AI62: 16 | AJ62: 26 | AK62: 0 | AM62: 0 | AN62: 0 | AO62: 0 | AQ62: 0 | AR62: 0 | AS62: 0 | AU62: 11 | AV62: 36 | AW62: 0
A63: Fernando Santos | B63: 21 | C63: 20 | D63: 21 | E63: 0 | G63: 0 | H63: 0 | I63: 0 | K63: 0 | L63: 0 | M63: 0 | O63: 0 | P63: 0 | Q63: 0 | S63: 0 | T63: 0 | U63: 0 | W63: 0 | X63: 0* | Y63: 0 | AA63: 0 | AB63: 0* | AC63: 0 | AE63: 0 | AF63: 0 | AG63: 0 | AI63: 0 | AJ63: 0 | AK63: 0 | AM63: 0 | AN63: 0 | AO63: 0 | AQ63: 0 | AR63: 0 | AS63: 0 | AU63: 0 | AV63: 0 | AW63: 0
A64: Roberto Veloso | B64: 171 | C64: 33 | D64: 8* | E64: 0 | G64: 2 | H64: 55 | I64: 0 | K64: 6 | L64: 46 | M64: 0 | O64: 11 | P64: 36 | Q64: 0 | S64: 0 | T64: 0 | U64: 0 | W64: 0 | X64: 0* | Y64: 0 | AA64: 0 | AB64: 0* | AC64: 0 | AE64: 0 | AF64: 0 | AG64: 0 | AI64: 12 | AJ64: 34 | AK64: 0 | AM64: 0 | AN64: 0 | AO64: 0 | AQ64: 0 | AR64: 0 | AS64: 0 | AU64: 0 | AV64: 0 | AW64: 0
A65: RBC | B65: 565 | D65: 61 | E65: 0 | H65: 89 | I65: 0 | L65: 72 | M65: 0 | P65: 32* | Q65: 2 | T65: 55 | U65: 0 | X65: 44 | Y65: 0 | AB65: 46 | AC65: 0 | AF65: 52 | AG65: 0 | AJ65: 44 | AK65: 0 | AN65: 38* | AO65: 0 | AR65: 50 | AS65: 0 | AV65: 50 | AW65: 0
A66: Marcelo Surerus | B66: 436 | C66: 24 | D66: 17 | E66: 0 | G66: 3 | H66: 52 | I66: 0 | K66: 7 | L66: 44 | M66: 0 | O66: 13 | P66: 32* | Q66: 2 | S66: 2 | T66: 55 | U66: 0 | W66: 7 | X66: 44 | Y66: 0 | AA66: 16 | AB66: 26 | AC66: 0 | AE66: 3 | AF66: 52 | AG66: 0 | AI66: 7 | AJ66: 44 | AK66: 0 | AM66: 10 | AN66: 38* | AO66: 0 | AQ66: 4 | AR66: 50 | AS66: 0 | AU66: 4 | AV66: 50 | AW66: 0
A67: Paulo Feitosa | B67: 0 | C67: 0 | D67: 0 | E67: 0 | G67: 0 | H67: 0 | I67: 0 | K67: 0 | L67: 0 | M67: 0 | O67: 0 | P67: 0* | Q67: 0 | S67: 0 | T67: 0 | U67: 0 | W67: 0 | X67: 0 | Y67: 0 | AA67: 0 | AB67: 0 | AC67: 0 | AE67: 0 | AF67: 0 | AG67: 0 | AI67: 0 | AJ67: 0 | AK67: 0 | AM67: 0 | AN67: 0* | AO67: 0 | AQ67: 0 | AR67: 0 | AS67: 0 | AU67: 0 | AV67: 0 | AW67: 0
A68: Gustavo Mourão | B68: 57 | C68: 14 | D68: 30 | E68: 0 | G68: 34 | H68: 7 | I68: 0 | K68: 0 | L68: 0 | M68: 0 | O68: 0 | P68: 0* | Q68: 0 | S68: 0 | T68: 0 | U68: 0 | W68: 0 | X68: 0 | Y68: 0 | AA68: 21 | AB68: 20 | AC68: 0 | AE68: 0 | AF68: 0 | AG68: 0 | AI68: 0 | AJ68: 0 | AK68: 0 | AM68: 0 | AN68: 0* | AO68: 0 | AQ68: 0 | AR68: 0 | AS68: 0 | AU68: 0 | AV68: 0 | AW68: 0
A69: Rafael Cançado | B69: 0 | C69: 0 | D69: 0 | E69: 0 | G69: 0 | H69: 0 | I69: 0 | K69: 0 | L69: 0 | M69: 0 | O69: 0 | P69: 0* | Q69: 0 | S69: 0 | T69: 0 | U69: 0 | W69: 0 | X69: 0 | Y69: 0 | AA69: 0 | AB69: 0 | AC69: 0 | AE69: 0 | AF69: 0 | AG69: 0 | AI69: 0 | AJ69: 0 | AK69: 0 | AM69: 0 | AN69: 0* | AO69: 0 | AQ69: 0 | AR69: 0 | AS69: 0 | AU69: 0 | AV69: 0 | AW69: 0
A70: Jorge Prado | B70: 72 | C70: 27 | D70: 14 | E70: 0 | G70: 14 | H70: 30 | I70: 0 | K70: 15 | L70: 28 | M70: 0 | O70: 0 | P70: 0* | Q70: 0 | S70: 0 | T70: 0 | U70: 0 | W70: 0 | X70: 0 | Y70: 0 | AA70: 0 | AB70: 0 | AC70: 0 | AE70: 0 | AF70: 0 | AG70: 0 | AI70: 0 | AJ70: 0 | AK70: 0 | AM70: 0 | AN70: 0* | AO70: 0 | AQ70: 0 | AR70: 0 | AS70: 0 | AU70: 0 | AV70: 0 | AW70: 0

Sheet DADOS GRAF VALOR
B1: ORDEM DE LARGADA
B2: 1 | C2: 2 | D2: 3 | E2: 4 | F2: 5 | G2: 6 | H2: 7 | I2: 8 | J2: 9 | K2: 10 | L2: 11 | M2: 12 | N2: 13 | O2: 14 | P2: 15 | Q2: 16 | R2: 17 | S2: 18 | T2: 19 | U2: 20 | V2: 21 | W2: 22 | X2: 23 | Y2: 24 | Z2: 25 | AA2: 26 | AB2: 27 | AC2: 28 | AD2: 29 | AE2: 30 | AF2: 31 | AG2: 32 | AH2: 33 | AM2: 38 | AN2: 39 | AO2: 40 | AP2: 41
A3: VOLTAS
A4: 0
A5: 1
A6: 2
A7: 3
A8: 4
A9: 5
A10: 6
A11: 7
A12: 8
A13: 9
A14: 10
A15: 11
A16: 12
A17: 13
A18: 14
A19: 15
A20: 16
A21: 17
A22: 18
A23: 19
A24: 20
A25: 21
A26: 22
A27: 23
A28: 24
A29: 25
A30: 26
A31: 27
A32: 28
A33: 29
A34: 30
A35: 31
A36: 32
A37: 33
A38: 34
A39: 35
A40: 36
A41: 37
A42: 38
A43: 39
A44: 40
A45: 41

Sheet GRAF
A1: Obs.: 1. Selecione o nome de um Piloto, 2. Com a tecla Ctrl pressionada, Selecione o seu nome e 3. Clique sobre o Gráfico (Habilite a macro) Para as demais comparações Selecione o nome do Piloto e Clique sobre o Gráfico | G1: PILOTO | H1: =L$48 -> Marcelo Clemente | I1: =M$48 -> Lincoln Gundin | J1: =A2 -> Leonardo Oliveira | M1: 00:00:01
A2: Leonardo Oliveira | G2: MÉDIA | H2: =AVERAGE(L$49:L$105) -> 00:00:50.615 | I2: =AVERAGE(M$49:M$105) -> 00:00:50.535 | J2: =AVERAGE(N$49:N$105) -> 00:00:50.564 | M2: =M1 -> 00:00:01
A3: Marcelo Clemente | G3: MAXIMA | H3: =LARGE(L$49:L$105,1) -> 00:00:54.513 | I3: =LARGE(M$49:M$105,1) -> 00:00:51.968 | J3: =LARGE(N$49:N$105,1) -> 00:00:55.326
A4: Lincoln Gundin | G4: MÍNIMA | H4: =SMALL(L$49:L$105,1) -> 00:00:50.063 | I4: =SMALL(M$49:M$105,1) -> 00:00:50.076 | J4: =SMALL(N$49:N$105,1) -> 00:00:49.946
A5: Marcelo Pereira | G5: Desvio Padrão | H5: =_xlfn.STDEV.S(L$50:L$130) -> 00:00:00.794 | I5: =_xlfn.STDEV.S(M$50:M$130) -> 00:00:00.409 | J5: =_xlfn.STDEV.S(N$50:N$130) -> 00:00:00.920
A6: Cacau Nunes | G6: TEMPO TOTAL | H6: =VLOOKUP(H1,$A$2500:$D$3000,4,FALSE) -> 00:30:26.756 | I6: =VLOOKUP(I1,$A$2500:$D$3000,4,FALSE) -> 00:30:26.557 | J6: =VLOOKUP(J1,$A$2500:$D$3000,4,FALSE) -> 00:31:00.935
A7: Cláudio Dumont
A8: Jarbas Reis
A9: Daniel Nahum
A10: Fernando Cruz
A11: Deo Alves
A12: Guilherme Alves
A13: Alexandre Melillo | J13: =SMALL(H4:J4,1)-K13 -> 00:00:46.946 | K13: 00:00:03
A14: Wesley Canuto | J14: =LARGE(H3:J3,1)+K13 -> 00:00:58.326
A15: Fernando Medeiros
A16: Daniel Santos
A17: Claudio Junqueira
A18: Wesley Bambirra
A19: Marcelo Sant'anna
A20: Raphael Reis
A21: Roberto Veloso
L48: Marcelo Clemente | M48: Lincoln Gundin | N48: Leonardo Oliveira
K49: NÚMERO VOLTAS | L49: Marcelo Clemente | M49: Lincoln Gundin | N49: Leonardo Oliveira
A50: ETAPA | B50: PILOTO | C50: NÚMERO VOLTAS | D50: KART | E50: Volta Tm | F50: velocidade Media | K50: 1 | L50: 00:00:54.513 | M50: 00:00:51.968 | N50: 00:00:55.326
A51: 12 | B51: Leonardo Oliveira | C51: 37 | D51: 138 | E51: 00:00:55.326 | F51: 51,34km/h | K51: 2 | L51: 00:00:50.927 | M51: 00:00:50.846 | N51: 00:00:50.866
A52: 12 | B52: Leonardo Oliveira | C52: 37 | D52: 138 | E52: 00:00:50.866 | F52: 55,84km/h | K52: 3 | L52: 00:00:51.015 | M52: 00:00:51.371 | N52: 00:00:51.081
A53: 12 | B53: Leonardo Oliveira | C53: 37 | D53: 138 | E53: 00:00:51.081 | F53: 55,61km/h | K53: 4 | L53: 00:00:50.338 | M53: 00:00:50.784 | N53: 00:00:51.770
A54: 12 | B54: Leonardo Oliveira | C54: 37 | D54: 138 | E54: 00:00:51.770 | F54: 54,87km/h | K54: 5 | L54: 00:00:50.900 | M54: 00:00:50.110 | N54: 00:00:50.591
A55: 12 | B55: Leonardo Oliveira | C55: 37 | D55: 138 | E55: 00:00:50.591 | F55: 56,14km/h | K55: 6 | L55: 00:00:50.570 | M55: 00:00:50.449 | N55: 00:00:50.714
A56: 12 | B56: Leonardo Oliveira | C56: 37 | D56: 138 | E56: 00:00:50.714 | F56: 56,01km/h | K56: 7 | L56: 00:00:50.465 | M56: 00:00:50.103 | N56: 00:00:50.306
A57: 12 | B57: Leonardo Oliveira | C57: 37 | D57: 138 | E57: 00:00:50.306 | F57: 56,46km/h | K57: 8 | L57: 00:00:50.407 | M57: 00:00:50.462 | N57: 00:00:51.392
A58: 12 | B58: Leonardo Oliveira | C58: 37 | D58: 138 | E58: 00:00:51.392 | F58: 55,27km/h | K58: 9 | L58: 00:00:50.252 | M58: 00:00:50.246 | N58: 00:00:50.261
A59: 12 | B59: Leonardo Oliveira | C59: 37 | D59: 138 | E59: 00:00:50.261 | F59: 56,51km/h | K59: 10 | L59: 00:00:50.097 | M59: 00:00:50.090 | N59: 00:00:50.960
A60: 12 | B60: Leonardo Oliveira | C60: 37 | D60: 138 | E60: 00:00:50.960 | F60: 55,74km/h | K60: 11 | L60: 00:00:50.273 | M60: 00:00:50.205 | N60: 00:00:50.642
A61: 12 | B61: Leonardo Oliveira | C61: 37 | D61: 138 | E61: 00:00:50.642 | F61: 56,09km/h | K61: 12 | L61: 00:00:50.290 | M61: 00:00:50.286 | N61: 00:00:50.419
A62: 12 | B62: Leonardo Oliveira | C62: 37 | D62: 138 | E62: 00:00:50.419 | F62: 56,34km/h | K62: 13 | L62: 00:00:50.288 | M62: 00:00:50.304 | N62: 00:00:50.226
A63: 12 | B63: Leonardo Oliveira | C63: 37 | D63: 138 | E63: 00:00:50.226 | F63: 56,55km/h | K63: 14 | L63: 00:00:50.281 | M63: 00:00:50.310 | N63: 00:00:50.157
A64: 12 | B64: Leonardo Oliveira | C64: 37 | D64: 138 | E64: 00:00:50.157 | F64: 56,63km/h | K64: 15 | L64: 00:00:50.194 | M64: 00:00:50.268 | N64: 00:00:50.025
A65: 12 | B65: Leonardo Oliveira | C65: 37 | D65: 138 | E65: 00:00:50.025 | F65: 56,78km/h | K65: 16 | L65: 00:00:50.267 | M65: 00:00:50.164 | N65: 00:00:50.468
A66: 12 | B66: Leonardo Oliveira | C66: 37 | D66: 138 | E66: 00:00:50.468 | F66: 56,28km/h | K66: 17 | L66: 00:00:50.202 | M66: 00:00:50.283 | N66: 00:00:50.113
A67: 12 | B67: Leonardo Oliveira | C67: 37 | D67: 138 | E67: 00:00:50.113 | F67: 56,68km/h | K67: 18 | L67: 00:00:50.324 | M67: 00:00:50.336 | N67: 00:00:50.096
A68: 12 | B68: Leonardo Oliveira | C68: 37 | D68: 138 | E68: 00:00:50.096 | F68: 56,7km/h | K68: 19 | L68: 00:00:52.521 | M68: 00:00:50.935 | N68: 00:00:50.092
A69: 12 | B69: Leonardo Oliveira | C69: 37 | D69: 138 | E69: 00:00:50.092 | F69: 56,7km/h | K69: 20 | L69: 00:00:50.553 | M69: 00:00:50.556 | N69: 00:00:49.946
A70: 12 | B70: Leonardo Oliveira | C70: 37 | D70: 138 | E70: 00:00:49.946 | F70: 56,87km/h | K70: 21 | L70: 00:00:51.071 | M70: 00:00:50.710 | N70: 00:00:50.065
A71: 12 | B71: Leonardo Oliveira | C71: 37 | D71: 138 | E71: 00:00:50.065 | F71: 56,73km/h | K71: 22 | L71: 00:00:51.268 | M71: 00:00:50.802 | N71: 00:00:50.338
A72: 12 | B72: Leonardo Oliveira | C72: 37 | D72: 138 | E72: 00:00:50.338 | F72: 56,43km/h | K72: 23 | L72: 00:00:50.243 | M72: 00:00:50.555 | N72: 00:00:49.992
A73: 12 | B73: Leonardo Oliveira | C73: 37 | D73: 138 | E73: 00:00:49.992 | F73: 56,82km/h | K73: 24 | L73: 00:00:50.293 | M73: 00:00:51.019 | N73: 00:00:50.461
A74: 12 | B74: Leonardo Oliveira | C74: 37 | D74: 138 | E74: 00:00:50.461 | F74: 56,29km/h | K74: 25 | L74: 00:00:50.331 | M74: 00:00:50.494 | N74: 00:00:50.876
A75: 12 | B75: Leonardo Oliveira | C75: 37 | D75: 138 | E75: 00:00:50.876 | F75: 55,83km/h | K75: 26 | L75: 00:00:50.317 | M75: 00:00:50.519 | N75: 00:00:50.293
A76: 12 | B76: Leonardo Oliveira | C76: 37 | D76: 138 | E76: 00:00:50.293 | F76: 56,48km/h | K76: 27 | L76: 00:00:50.605 | M76: 00:00:51.177 | N76: 00:00:51.506
A77: 12 | B77: Leonardo Oliveira | C77: 37 | D77: 138 | E77: 00:00:51.506 | F77: 55,15km/h | K77: 28 | L77: 00:00:50.356 | M77: 00:00:50.692 | N77: 00:00:50.240
A78: 12 | B78: Leonardo Oliveira | C78: 37 | D78: 138 | E78: 00:00:50.240 | F78: 56,54km/h | K78: 29 | L78: 00:00:50.337 | M78: 00:00:51.123 | N78: 00:00:50.469
A79: 12 | B79: Leonardo Oliveira | C79: 37 | D79: 138 | E79: 00:00:50.469 | F79: 56,28km/h | K79: 30 | L79: 00:00:50.328 | M79: 00:00:50.574 | N79: 00:00:50.037
A80: 12 | B80: Leonardo Oliveira | C80: 37 | D80: 138 | E80: 00:00:50.037 | F80: 56,77km/h | K80: 31 | L80: 00:00:50.210 | M80: 00:00:50.548 | N80: 00:00:50.202
A81: 12 | B81: Leonardo Oliveira | C81: 37 | D81: 138 | E81: 00:00:50.202 | F81: 56,58km/h | K81: 32 | L81: 00:00:50.924 | M81: 00:00:50.239 | N81: 00:00:50.282
A82: 12 | B82: Leonardo Oliveira | C82: 37 | D82: 138 | E82: 00:00:50.282 | F82: 56,49km/h | K82: 33 | L82: 00:00:50.063 | M82: 00:00:50.076 | N82: 00:00:50.064
A83: 12 | B83: Leonardo Oliveira | C83: 37 | D83: 138 | E83: 00:00:50.064 | F83: 56,74km/h | K83: 34 | L83: 00:00:50.376 | M83: 00:00:50.327 | N83: 00:00:50.311
A84: 12 | B84: Leonardo Oliveira | C84: 37 | D84: 138 | E84: 00:00:50.311 | F84: 56,46km/h | K84: 35 | L84: 00:00:50.524 | M84: 00:00:50.236 | N84: 00:00:50.185
A85: 12 | B85: Leonardo Oliveira | C85: 37 | D85: 138 | E85: 00:00:50.185 | F85: 56,6km/h | K85: 36 | L85: 00:00:50.474 | M85: 00:00:50.150 | N85: 00:00:49.982
A86: 12 | B86: Leonardo Oliveira | C86: 37 | D86: 138 | E86: 00:00:49.982 | F86: 56,83km/h | K86: 37 | L86: 00:00:50.374 | M86: 00:00:50.475 | N86: 00:00:50.112
A87: 12 | B87: Leonardo Oliveira | C87: 37 | D87: 138 | E87: 00:00:50.112 | F87: 56,68km/h | K87: 38
A88: 12 | B88: Marcelo Clemente | C88: 37 | D88: 130 | E88: 00:00:54.513 | F88: 52,11km/h | K88: 39
A89: 12 | B89: Marcelo Clemente | C89: 37 | D89: 130 | E89: 00:00:50.927 | F89: 55,77km/h | K89: 40
A90: 12 | B90: Marcelo Clemente | C90: 37 | D90: 130 | E90: 00:00:51.015 | F90: 55,68km/h | K90: 41
A91: 12 | B91: Marcelo Clemente | C91: 37 | D91: 130 | E91: 00:00:50.338 | F91: 56,43km/h | K91: 42
A92: 12 | B92: Marcelo Clemente | C92: 37 | D92: 130 | E92: 00:00:50.900 | F92: 55,8km/h | K92: 43
A93: 12 | B93: Marcelo Clemente | C93: 37 | D93: 130 | E93: 00:00:50.570 | F93: 56,17km/h | K93: 44
A94: 12 | B94: Marcelo Clemente | C94: 37 | D94: 130 | E94: 00:00:50.465 | F94: 56,28km/h | K94: 45
A95: 12 | B95: Marcelo Clemente | C95: 37 | D95: 130 | E95: 00:00:50.407 | F95: 56,35km/h | K95: 46
A96: 12 | B96: Marcelo Clemente | C96: 37 | D96: 130 | E96: 00:00:50.252 | F96: 56,52km/h | K96: 47
A97: 12 | B97: Marcelo Clemente | C97: 37 | D97: 130 | E97: 00:00:50.097 | F97: 56,7km/h | K97: 48
A98: 12 | B98: Marcelo Clemente | C98: 37 | D98: 130 | E98: 00:00:50.273 | F98: 56,5km/h | K98: 49
A99: 12 | B99: Marcelo Clemente | C99: 37 | D99: 130 | E99: 00:00:50.290 | F99: 56,48km/h | K99: 50
A100: 12 | B100: Marcelo Clemente | C100: 37 | D100: 130 | E100: 00:00:50.288 | F100: 56,48km/h | K100: 51
A101: 12 | B101: Marcelo Clemente | C101: 37 | D101: 130 | E101: 00:00:50.281 | F101: 56,49km/h | K101: 52
A102: 12 | B102: Marcelo Clemente | C102: 37 | D102: 130 | E102: 00:00:50.194 | F102: 56,59km/h | K102: 53
A103: 12 | B103: Marcelo Clemente | C103: 37 | D103: 130 | E103: 00:00:50.267 | F103: 56,51km/h | K103: 54
A104: 12 | B104: Marcelo Clemente | C104: 37 | D104: 130 | E104: 00:00:50.202 | F104: 56,58km/h | K104: 55
A105: 12 | B105: Marcelo Clemente | C105: 37 | D105: 130 | E105: 00:00:50.324 | F105: 56,44km/h | K105: 56
A106: 12 | B106: Marcelo Clemente | C106: 37 | D106: 130 | E106: 00:00:52.521 | F106: 54,08km/h | K106: 57
A107: 12 | B107: Marcelo Clemente | C107: 37 | D107: 130 | E107: 00:00:50.553 | F107: 56,19km/h | K107: 58
A108: 12 | B108: Marcelo Clemente | C108: 37 | D108: 130 | E108: 00:00:51.071 | F108: 55,62km/h | K108: 59
A109: 12 | B109: Marcelo Clemente | C109: 37 | D109: 130 | E109: 00:00:51.268 | F109: 55,4km/h | K109: 60
A110: 12 | B110: Marcelo Clemente | C110: 37 | D110: 130 | E110: 00:00:50.243 | F110: 56,53km/h | K110: 61
A111: 12 | B111: Marcelo Clemente | C111: 37 | D111: 130 | E111: 00:00:50.293 | F111: 56,48km/h | K111: 62
A112: 12 | B112: Marcelo Clemente | C112: 37 | D112: 130 | E112: 00:00:50.331 | F112: 56,43km/h | K112: 63
A113: 12 | B113: Marcelo Clemente | C113: 37 | D113: 130 | E113: 00:00:50.317 | F113: 56,45km/h
A114: 12 | B114: Marcelo Clemente | C114: 37 | D114: 130 | E114: 00:00:50.605 | F114: 56,13km/h
A115: 12 | B115: Marcelo Clemente | C115: 37 | D115: 130 | E115: 00:00:50.356 | F115: 56,41km/h
A116: 12 | B116: Marcelo Clemente | C116: 37 | D116: 130 | E116: 00:00:50.337 | F116: 56,43km/h
A117: 12 | B117: Marcelo Clemente | C117: 37 | D117: 130 | E117: 00:00:50.328 | F117: 56,44km/h
A118: 12 | B118: Marcelo Clemente | C118: 37 | D118: 130 | E118: 00:00:50.210 | F118: 56,57km/h
A119: 12 | B119: Marcelo Clemente | C119: 37 | D119: 130 | E119: 00:00:50.924 | F119: 55,78km/h
A120: 12 | B120: Marcelo Clemente | C120: 37 | D120: 130 | E120: 00:00:50.063 | F120: 56,74km/h
A121: 12 | B121: Marcelo Clemente | C121: 37 | D121: 130 | E121: 00:00:50.376 | F121: 56,38km/h
A122: 12 | B122: Marcelo Clemente | C122: 37 | D122: 130 | E122: 00:00:50.524 | F122: 56,22km/h
A123: 12 | B123: Marcelo Clemente | C123: 37 | D123: 130 | E123: 00:00:50.474 | F123: 56,27km/h
A124: 12 | B124: Marcelo Clemente | C124: 37 | D124: 130 | E124: 00:00:50.374 | F124: 56,39km/h
A125: 12 | B125: Lincoln Gundin | C125: 37 | D125: 111 | E125: 00:00:51.968 | F125: 54,66km/h
A126: 12 | B126: Lincoln Gundin | C126: 37 | D126: 111 | E126: 00:00:50.846 | F126: 55,86km/h
A127: 12 | B127: Lincoln Gundin | C127: 37 | D127: 111 | E127: 00:00:51.371 | F127: 55,29km/h
A128: 12 | B128: Lincoln Gundin | C128: 37 | D128: 111 | E128: 00:00:50.784 | F128: 55,93km/h
A129: 12 | B129: Lincoln Gundin | C129: 37 | D129: 111 | E129: 00:00:50.110 | F129: 56,68km/h
A130: 12 | B130: Lincoln Gundin | C130: 37 | D130: 111 | E130: 00:00:50.449 | F130: 56,3km/h
A131: 12 | B131: Lincoln Gundin | C131: 37 | D131: 111 | E131: 00:00:50.103 | F131: 56,69km/h
A132: 12 | B132: Lincoln Gundin | C132: 37 | D132: 111 | E132: 00:00:50.462 | F132: 56,29km/h
A133: 12 | B133: Lincoln Gundin | C133: 37 | D133: 111 | E133: 00:00:50.246 | F133: 56,53km/h
A134: 12 | B134: Lincoln Gundin | C134: 37 | D134: 111 | E134: 00:00:50.090 | F134: 56,71km/h
A135: 12 | B135: Lincoln Gundin | C135: 37 | D135: 111 | E135: 00:00:50.205 | F135: 56,58km/h
A136: 12 | B136: Lincoln Gundin | C136: 37 | D136: 111 | E136: 00:00:50.286 | F136: 56,48km/h
A137: 12 | B137: Lincoln Gundin | C137: 37 | D137: 111 | E137: 00:00:50.304 | F137: 56,46km/h
A138: 12 | B138: Lincoln Gundin | C138: 37 | D138: 111 | E138: 00:00:50.310 | F138: 56,46km/h
A139: 12 | B139: Lincoln Gundin | C139: 37 | D139: 111 | E139: 00:00:50.268 | F139: 56,51km/h
A140: 12 | B140: Lincoln Gundin | C140: 37 | D140: 111 | E140: 00:00:50.164 | F140: 56,62km/h
A141: 12 | B141: Lincoln Gundin | C141: 37 | D141: 111 | E141: 00:00:50.283 | F141: 56,49km/h
A142: 12 | B142: Lincoln Gundin | C142: 37 | D142: 111 | E142: 00:00:50.336 | F142: 56,43km/h
A143: 12 | B143: Lincoln Gundin | C143: 37 | D143: 111 | E143: 00:00:50.935 | F143: 55,77km/h
A144: 12 | B144: Lincoln Gundin | C144: 37 | D144: 111 | E144: 00:00:50.556 | F144: 56,18km/h
A145: 12 | B145: Lincoln Gundin | C145: 37 | D145: 111 | E145: 00:00:50.710 | F145: 56,01km/h
A146: 12 | B146: Lincoln Gundin | C146: 37 | D146: 111 | E146: 00:00:50.802 | F146: 55,91km/h
A147: 12 | B147: Lincoln Gundin | C147: 37 | D147: 111 | E147: 00:00:50.555 | F147: 56,18km/h
A148: 12 | B148: Lincoln Gundin | C148: 37 | D148: 111 | E148: 00:00:51.019 | F148: 55,67km/h
A149: 12 | B149: Lincoln Gundin | C149: 37 | D149: 111 | E149: 00:00:50.494 | F149: 56,25km/h
A150: 12 | B150: Lincoln Gundin | C150: 37 | D150: 111 | E150: 00:00:50.519 | F150: 56,22km/h
A151: 12 | B151: Lincoln Gundin | C151: 37 | D151: 111 | E151: 00:00:51.177 | F151: 55,5km/h
A152: 12 | B152: Lincoln Gundin | C152: 37 | D152: 111 | E152: 00:00:50.692 | F152: 56,03km/h
A153: 12 | B153: Lincoln Gundin | C153: 37 | D153: 111 | E153: 00:00:51.123 | F153: 55,56km/h
A154: 12 | B154: Lincoln Gundin | C154: 37 | D154: 111 | E154: 00:00:50.574 | F154: 56,16km/h
A155: 12 | B155: Lincoln Gundin | C155: 37 | D155: 111 | E155: 00:00:50.548 | F155: 56,19km/h
A156: 12 | B156: Lincoln Gundin | C156: 37 | D156: 111 | E156: 00:00:50.239 | F156: 56,54km/h
A157: 12 | B157: Lincoln Gundin | C157: 37 | D157: 111 | E157: 00:00:50.076 | F157: 56,72km/h
A158: 12 | B158: Lincoln Gundin | C158: 37 | D158: 111 | E158: 00:00:50.327 | F158: 56,44km/h
A159: 12 | B159: Lincoln Gundin | C159: 37 | D159: 111 | E159: 00:00:50.236 | F159: 56,54km/h
A160: 12 | B160: Lincoln Gundin | C160: 37 | D160: 111 | E160: 00:00:50.150 | F160: 56,64km/h
A161: 12 | B161: Lincoln Gundin | C161: 37 | D161: 111 | E161: 00:00:50.475 | F161: 56,27km/h
A162: 12 | B162: Marcelo Pereira | C162: 37 | D162: 122 | E162: 00:00:51.822 | F162: 54,81km/h
A163: 12 | B163: Marcelo Pereira | C163: 37 | D163: 122 | E163: 00:00:50.823 | F163: 55,89km/h
A164: 12 | B164: Marcelo Pereira | C164: 37 | D164: 122 | E164: 00:00:50.953 | F164: 55,75km/h
A165: 12 | B165: Marcelo Pereira | C165: 37 | D165: 122 | E165: 00:00:50.385 | F165: 56,37km/h
A166: 12 | B166: Marcelo Pereira | C166: 37 | D166: 122 | E166: 00:00:50.264 | F166: 56,51km/h
A167: 12 | B167: Marcelo Pereira | C167: 37 | D167: 122 | E167: 00:00:50.048 | F167: 56,75km/h
A168: 12 | B168: Marcelo Pereira | C168: 37 | D168: 122 | E168: 00:00:50.139 | F168: 56,65km/h
A169: 12 | B169: Marcelo Pereira | C169: 37 | D169: 122 | E169: 00:00:50.307 | F169: 56,46km/h
A170: 12 | B170: Marcelo Pereira | C170: 37 | D170: 122 | E170: 00:00:50.235 | F170: 56,54km/h
A171: 12 | B171: Marcelo Pereira | C171: 37 | D171: 122 | E171: 00:00:50.330 | F171: 56,44km/h
A172: 12 | B172: Marcelo Pereira | C172: 37 | D172: 122 | E172: 00:00:50.417 | F172: 56,34km/h
A173: 12 | B173: Marcelo Pereira | C173: 37 | D173: 122 | E173: 00:00:50.337 | F173: 56,43km/h
A174: 12 | B174: Marcelo Pereira | C174: 37 | D174: 122 | E174: 00:00:50.335 | F174: 56,43km/h
A175: 12 | B175: Marcelo Pereira | C175: 37 | D175: 122 | E175: 00:00:50.391 | F175: 56,37km/h
A176: 12 | B176: Marcelo Pereira | C176: 37 | D176: 122 | E176: 00:00:50.744 | F176: 55,98km/h
A177: 12 | B177: Marcelo Pereira | C177: 37 | D177: 122 | E177: 00:00:50.718 | F177: 56km/h
A178: 12 | B178: Marcelo Pereira | C178: 37 | D178: 122 | E178: 00:00:50.552 | F178: 56,19km/h
A179: 12 | B179: Marcelo Pereira | C179: 37 | D179: 122 | E179: 00:00:50.607 | F179: 56,13km/h
A180: 12 | B180: Marcelo Pereira | C180: 37 | D180: 122 | E180: 00:00:52.407 | F180: 54,2km/h
A181: 12 | B181: Marcelo Pereira | C181: 37 | D181: 122 | E181: 00:00:50.465 | F181: 56,28km/h
A182: 12 | B182: Marcelo Pereira | C182: 37 | D182: 122 | E182: 00:00:50.697 | F182: 56,03km/h
A183: 12 | B183: Marcelo Pereira | C183: 37 | D183: 122 | E183: 00:00:50.327 | F183: 56,44km/h
A184: 12 | B184: Marcelo Pereira | C184: 37 | D184: 122 | E184: 00:00:50.447 | F184: 56,3km/h
A185: 12 | B185: Marcelo Pereira | C185: 37 | D185: 122 | E185: 00:00:50.452 | F185: 56,3km/h
A186: 12 | B186: Marcelo Pereira | C186: 37 | D186: 122 | E186: 00:00:50.566 | F186: 56,17km/h
A187: 12 | B187: Marcelo Pereira | C187: 37 | D187: 122 | E187: 00:00:50.560 | F187: 56,18km/h
A188: 12 | B188: Marcelo Pereira | C188: 37 | D188: 122 | E188: 00:00:51.771 | F188: 54,86km/h
A189: 12 | B189: Marcelo Pereira | C189: 37 | D189: 122 | E189: 00:00:50.910 | F189: 55,79km/h
A190: 12 | B190: Marcelo Pereira | C190: 37 | D190: 122 | E190: 00:00:50.989 | F190: 55,71km/h
A191: 12 | B191: Marcelo Pereira | C191: 37 | D191: 122 | E191: 00:00:51.594 | F191: 55,05km/h
A192: 12 | B192: Marcelo Pereira | C192: 37 | D192: 122 | E192: 00:00:50.590 | F192: 56,15km/h
A193: 12 | B193: Marcelo Pereira | C193: 37 | D193: 122 | E193: 00:00:50.325 | F193: 56,44km/h
A194: 12 | B194: Marcelo Pereira | C194: 37 | D194: 122 | E194: 00:00:50.163 | F194: 56,62km/h
A195: 12 | B195: Marcelo Pereira | C195: 37 | D195: 122 | E195: 00:00:50.279 | F195: 56,49km/h
A196: 12 | B196: Marcelo Pereira | C196: 37 | D196: 122 | E196: 00:00:50.062 | F196: 56,74km/h
A197: 12 | B197: Marcelo Pereira | C197: 37 | D197: 122 | E197: 00:00:50.187 | F197: 56,6km/h
A198: 12 | B198: Marcelo Pereira | C198: 37 | D198: 122 | E198: 00:00:50.021 | F198: 56,78km/h
A199: 12 | B199: Cacau Nunes | C199: 37 | D199: 135 | E199: 00:00:53.007 | F199: 53,59km/h
A200: 12 | B200: Cacau Nunes | C200: 37 | D200: 135 | E200: 00:00:50.867 | F200: 55,84km/h
A201: 12 | B201: Cacau Nunes | C201: 37 | D201: 135 | E201: 00:00:50.460 | F201: 56,29km/h
A202: 12 | B202: Cacau Nunes | C202: 37 | D202: 135 | E202: 00:00:51.447 | F202: 55,21km/h
A203: 12 | B203: Cacau Nunes | C203: 37 | D203: 135 | E203: 00:00:50.424 | F203: 56,33km/h
A204: 12 | B204: Cacau Nunes | C204: 37 | D204: 135 | E204: 00:00:50.693 | F204: 56,03km/h
A205: 12 | B205: Cacau Nunes | C205: 37 | D205: 135 | E205: 00:00:50.425 | F205: 56,33km/h
A206: 12 | B206: Cacau Nunes | C206: 37 | D206: 135 | E206: 00:00:51.141 | F206: 55,54km/h
A207: 12 | B207: Cacau Nunes | C207: 37 | D207: 135 | E207: 00:00:50.580 | F207: 56,16km/h
A208: 12 | B208: Cacau Nunes | C208: 37 | D208: 135 | E208: 00:00:51.185 | F208: 55,49km/h
A209: 12 | B209: Cacau Nunes | C209: 37 | D209: 135 | E209: 00:00:50.944 | F209: 55,76km/h
A210: 12 | B210: Cacau Nunes | C210: 37 | D210: 135 | E210: 00:00:50.187 | F210: 56,6km/h
A211: 12 | B211: Cacau Nunes | C211: 37 | D211: 135 | E211: 00:00:50.280 | F211: 56,49km/h
A212: 12 | B212: Cacau Nunes | C212: 37 | D212: 135 | E212: 00:00:50.002 | F212: 56,81km/h
A213: 12 | B213: Cacau Nunes | C213: 37 | D213: 135 | E213: 00:00:50.050 | F213: 56,75km/h
A214: 12 | B214: Cacau Nunes | C214: 37 | D214: 135 | E214: 00:00:50.414 | F214: 56,34km/h
A215: 12 | B215: Cacau Nunes | C215: 37 | D215: 135 | E215: 00:00:50.228 | F215: 56,55km/h
A216: 12 | B216: Cacau Nunes | C216: 37 | D216: 135 | E216: 00:00:50.104 | F216: 56,69km/h
A217: 12 | B217: Cacau Nunes | C217: 37 | D217: 135 | E217: 00:00:50.077 | F217: 56,72km/h
A218: 12 | B218: Cacau Nunes | C218: 37 | D218: 135 | E218: 00:00:50.013 | F218: 56,79km/h
A219: 12 | B219: Cacau Nunes | C219: 37 | D219: 135 | E219: 00:00:50.017 | F219: 56,79km/h
A220: 12 | B220: Cacau Nunes | C220: 37 | D220: 135 | E220: 00:00:50.617 | F220: 56,12km/h
A221: 12 | B221: Cacau Nunes | C221: 37 | D221: 135 | E221: 00:00:49.904 | F221: 56,92km/h
A222: 12 | B222: Cacau Nunes | C222: 37 | D222: 135 | E222: 00:00:50.232 | F222: 56,55km/h
A223: 12 | B223: Cacau Nunes | C223: 37 | D223: 135 | E223: 00:00:50.253 | F223: 56,52km/h
A224: 12 | B224: Cacau Nunes | C224: 37 | D224: 135 | E224: 00:00:50.589 | F224: 56,15km/h
A225: 12 | B225: Cacau Nunes | C225: 37 | D225: 135 | E225: 00:00:52.956 | F225: 53,64km/h
A226: 12 | B226: Cacau Nunes | C226: 37 | D226: 135 | E226: 00:00:49.790 | F226: 57,05km/h
... 632 more rows

Sheet ULTRAPASSAGENS
A1: ULTRAPASSAGENS
A2: ETAPA | B2: PILOTO | C2: ULTRAPASSAGENS | F2: Rótulos de Linha | G2: Soma de ULTRAPASSAGENS
F3: (vazio)
F4: Total Geral

Sheet VOLTAS EM PRIMEIRO
A1: VOLTAS EM PRIMEIRO
A2: ETAPA | B2: PILOTO | C2: VOLTA | D2: KART | E2: Volta Tm | F2: velocidade Media
I3: Rótulos de Linha | J3: Contagem de PILOTO
I4: (vazio)
I5: Total Geral

Sheet DEZ MELHORES VOLTAS POR ETA
A1: DEZ MELHORES VOLTAS POR ETAPA
A2: ETAPA | B2: PILOTO | C2: NÚMERO VOLTAS | D2: KART | E2: Volta Tm | F2: velocidade Media | G2: PISTA
I3: Rótulos de Linha | J3: Contagem de PILOTO | N3: Rótulos de Linha | O3: Contagem de KART
I4: (vazio) | N4: (vazio)
I5: Total Geral | N5: (vazio)
N6: Total Geral

Sheet Posição x Pontos
H1: Posição | I1: Pontos
H2: 1 | I2: 45
H3: 2 | I3: 40
H4: 3 | I4: 37
H5: 4 | I5: 35
H6: 5 | I6: 33
H7: 6 | I7: 31
H8: 7 | I8: 29
H9: 8 | I9: 28
H10: 9 | I10: 27
H11: 10 | I11: 26
H12: 11 | I12: 25
H13: 12 | I13: 24
H14: 13 | I14: 23
H15: 14 | I15: 22
H16: 15 | I16: 21
H17: 16 | I17: 20
H18: 17 | I18: 19
H19: 18 | I19: 18
H20: 19 | I20: 17
H21: 20 | I21: 16
H22: 21 | I22: 15
H23: 22 | I23: 14
H24: 23 | I24: 13
H25: 24 | I25: 12
H26: 25 | I26: 11
H27: 26 | I27: 10
H28: 27 | I28: 9
H29: 28 | I29: 8
H30: 29 | I30: 7
H31: 30 | I31: 6
H32: 31 | I32: 5
H33: 32 | I33: 4
H34: 33 | I34: 3
H35: 34 | I35: 2
H36: 35 | I36: 1
H37: 36 | I37: 1
